Body_Code,Body_Name,Service_Area,Responsible_Unit,Expense_Type,Expense_Code,Narrative,Date,Transaction_Number,Amount,Supplier_Name
http://statistics.data.gov.uk/id/local-authority/38,Oxfordshire County Council,Adult Social Care,MH Community Sup't,Other Agency and Contracted Services,57850,Rented Accomodation,14/01/2015,3100056288,-854.92,Response Organisation
http://statistics.data.gov.uk/id/local-authority/38,Oxfordshire County Council,Adult Social Care,MH Community Sup't,Other Agency and Contracted Services,57850,Rented Accomodation,14/01/2015,3100056289,-1068.65,Response Organisation
http://statistics.data.gov.uk/id/local-authority/38,Oxfordshire County Council,Fire & Emerg. Planng,Fire Projects,Balance Sheet General,B2030,Goods Received not Invoiced,16/01/2015,3100056353,-8000,telent Technology Services
http://statistics.data.gov.uk/id/local-authority/38,Oxfordshire County Council,Oxfordshire Customer Services,Disclosure & Barring Service (DBS Team),Expenses,46512,Criminal Records Bureau Charges Invoiced,20/01/2015,3100056388,-1250,Capita Resourcing Ltd
http://statistics.data.gov.uk/id/local-authority/38,Oxfordshire County Council,Oxfordshire Customer Services,19-24 Apprenticeships,Services,44500,Other Hired & Contract Services,05/01/2015,3150004589,-1281.2,Oxford Active Ltd
http://statistics.data.gov.uk/id/local-authority/38,Oxfordshire County Council,Oxfordshire Customer Services,19-24 Apprenticeships,Services,44500,Other Hired & Contract Services,05/01/2015,3150004590,-584.08,Oxford Active Ltd
http://statistics.data.gov.uk/id/local-authority/38,Oxfordshire County Council,Oxfordshire Customer Services,Workforce - 16-18 Apprentice,Services,44500,Other Hired & Contract Services,05/01/2015,3150004591,-1036.52,Oxford Active Ltd
http://statistics.data.gov.uk/id/local-authority/38,Oxfordshire County Council,Oxfordshire Customer Services,19-24 Apprenticeships,Services,44500,Other Hired & Contract Services,05/01/2015,3150004591,-2424.1,Oxford Active Ltd
http://statistics.data.gov.uk/id/local-authority/38,Oxfordshire County Council,"Older People, Phys Disabilities & Equip",OP Pool Fast Track,Other Agency and Contracted Services,57304,Home Support (Ext) Palliative Care,14/01/2015,3150004615,-1853.85,Mary Knowles Homecare
http://statistics.data.gov.uk/id/local-authority/38,Oxfordshire County Council,Commercial Services,Surplus Property,Energy Costs,23100,Electricity,12/01/2015,3150004616,-8792.27,Npower Ltd
http://statistics.data.gov.uk/id/local-authority/38,Oxfordshire County Council,Strategy & Infrastructure Planning,Innovation Support Programme,Grants and Subscriptions,47150,Grants to Individuals,13/01/2015,3150004617,-17500,BUSINESS BOFFINS LTD
http://statistics.data.gov.uk/id/local-authority/38,Oxfordshire County Council,"Older People, Phys Disabilities & Equip",OP Pool Continuing Care Delegated Health,Other Agency and Contracted Services,57300,Home Support (Ext) OS&HCD,21/01/2015,3150004619,-654,Countywide Caring Limited
http://statistics.data.gov.uk/id/local-authority/38,Oxfordshire County Council,"Older People, Phys Disabilities & Equip",OP Pool Continuing Care Delegated Health,Other Agency and Contracted Services,57300,Home Support (Ext) OS&HCD,21/01/2015,3150004620,-1308,Countywide Caring Limited
http://statistics.data.gov.uk/id/local-authority/38,Oxfordshire County Council,"Older People, Phys Disabilities & Equip",OP Pool Continuing Care Home Support,Other Agency and Contracted Services,57302,Home Support (Ext) Continuing Care,21/01/2015,3150004624,-930.58,Pulse Community Healthcare
http://statistics.data.gov.uk/id/local-authority/38,Oxfordshire County Council,"Older People, Phys Disabilities & Equip",OP Pool Fast Track,Other Agency and Contracted Services,57304,Home Support (Ext) Palliative Care,28/01/2015,3150004631,-546.59,Oxfordshire Crossroads
http://statistics.data.gov.uk/id/local-authority/38,Oxfordshire County Council,In-House,Pension Fund Investment Miscellaneous ex,Pension Fund Revenue,PR362,Investment - Global Custodian Fees,05/01/2015,3300006503,1174.12,BNP Paribas Securities Services
http://statistics.data.gov.uk/id/local-authority/38,Oxfordshire County Council,In-House,Pension Fund Investment Miscellaneous ex,Pension Fund Revenue,PR362,Investment - Global Custodian Fees,05/01/2015,3300006503,625.37,BNP Paribas Securities Services
http://statistics.data.gov.uk/id/local-authority/38,Oxfordshire County Council,Scheduled Bodies,Oxford City Council,Contributions Leaving the Fund,PR401,Transfers out,02/01/2015,3300006515,33562.12,Friends Life Group
http://statistics.data.gov.uk/id/local-authority/38,Oxfordshire County Council,In-House,Miscellaneous,Pension Fund Balance Sheet,PB810,Give As You Earn,12/01/2015,3300006539,689.13,Charities Aid Foundation
http://statistics.data.gov.uk/id/local-authority/38,Oxfordshire County Council,Scheduled Bodies,Oxfordshire County Council,Contributions Leaving the Fund,PR401,Transfers out,14/01/2015,3300006547,2275.26,West Yorkshire Pension Fund
http://statistics.data.gov.uk/id/local-authority/38,Oxfordshire County Council,In-House,Miscellaneous,Pension Fund Balance Sheet,PB602,Tax deducted from Pensioners Payroll and paid over,19/01/2015,3300006563,834356.32,HM Revenue & Customs
http://statistics.data.gov.uk/id/local-authority/38,Oxfordshire County Council,Scheduled Bodies,Oxfordshire County Council,Pension Fund Balance Sheet,PB201,Tax Deducted from Refunds of Conts&Payt made to IR,21/01/2015,3300006567,7063,HM Revenue & Customs
http://statistics.data.gov.uk/id/local-authority/38,Oxfordshire County Council,Admitted Bodies,Museums Service East of England,Contributions Leaving the Fund,PR401,Transfers out,21/01/2015,3300006571,7877.59,Cabinet Office: Civil Service
http://statistics.data.gov.uk/id/local-authority/38,Oxfordshire County Council,Admitted Bodies,ALM London,Contributions Leaving the Fund,PR401,Transfers out,21/01/2015,3300006572,3168.02,Cabinet Office: Civil Service
http://statistics.data.gov.uk/id/local-authority/38,Oxfordshire County Council,Admitted Bodies,ALM London,Contributions Leaving the Fund,PR401,Transfers out,21/01/2015,3300006573,70533.5,Cabinet Office: Civil Service
http://statistics.data.gov.uk/id/local-authority/38,Oxfordshire County Council,Admitted Bodies,South Eastern Museums Lib & Arch Council,Contributions Leaving the Fund,PR401,Transfers out,21/01/2015,3300006575,5524.66,Cabinet Office: Civil Service
http://statistics.data.gov.uk/id/local-authority/38,Oxfordshire County Council,Admitted Bodies,Museums Service East of England,Contributions Leaving the Fund,PR401,Transfers out,21/01/2015,3300006577,49673.61,Cabinet Office: Civil Service
http://statistics.data.gov.uk/id/local-authority/38,Oxfordshire County Council,Admitted Bodies,ALM London,Contributions Leaving the Fund,PR401,Transfers out,21/01/2015,3300006578,39180.82,Cabinet Office: Civil Service
http://statistics.data.gov.uk/id/local-authority/38,Oxfordshire County Council,Admitted Bodies,ALM London,Contributions Leaving the Fund,PR401,Transfers out,21/01/2015,3300006582,12198.84,Cabinet Office: Civil Service
http://statistics.data.gov.uk/id/local-authority/38,Oxfordshire County Council,Admitted Bodies,ALM London,Contributions Leaving the Fund,PR401,Transfers out,23/01/2015,3300006585,16325.16,Cabinet Office: Civil Service
http://statistics.data.gov.uk/id/local-authority/38,Oxfordshire County Council,Scheduled Bodies,Oxford Brookes Univeristy,Contributions Leaving the Fund,PR401,Transfers out,23/01/2015,3300006587,13820.03,Univs Superann Scheme Ltd Trust Fun
http://statistics.data.gov.uk/id/local-authority/38,Oxfordshire County Council,Scheduled Bodies,,Contributions Leaving the Fund,PR401,Transfers out,30/01/2015,3300006626,10098.58,East Sussex County Council
http://statistics.data.gov.uk/id/local-authority/38,Oxfordshire County Council,"Older People, Phys Disabilities & Equip",OP Pool Continuing Care Home Support,Other Agency and Contracted Services,57302,Home Support (Ext) Continuing Care,14/01/2015,3301789954,2121.99,AVR (Oxon) Ltd
http://statistics.data.gov.uk/id/local-authority/38,Oxfordshire County Council,Children's Social Care,Service Agreements - Resource Centres,Voluntary Associations,55402,Service Agreements - Family Support,07/01/2015,3301847592,101443.25,Barnardo's Midlands & South West
http://statistics.data.gov.uk/id/local-authority/38,Oxfordshire County Council,Children's Social Care,Service Agreements - Resource Centres,Voluntary Associations,55402,Service Agreements - Family Support,07/01/2015,3301847593,89298.75,Barnardo's Midlands & South West
http://statistics.data.gov.uk/id/local-authority/38,Oxfordshire County Council,STD Insurance,Other,Insurance Admin Holding A/c,Z5971,Insurance Admin Holding Account External Payments,13/01/2015,3301848017,2850,Zurich Management Services
http://statistics.data.gov.uk/id/local-authority/38,Oxfordshire County Council,Schools,Middle Barton School  Chipping Norton,Property Insurance Fund Rev AC,Z5357,Property IF Fees,20/01/2015,3301848496,675,GAB Robins UK Ltd
http://statistics.data.gov.uk/id/local-authority/38,Oxfordshire County Council,"Older People, Phys Disabilities & Equip",Life Of Your Own Grant Cherwell,Other Agency and Contracted Services,57401,Direct Payments,02/01/2015,3301848539,600,REDACTED PERSONAL DATA
http://statistics.data.gov.uk/id/local-authority/38,Oxfordshire County Council,"Older People, Phys Disabilities & Equip",Life Of Your Own Grant West,Other Agency and Contracted Services,57401,Direct Payments,02/01/2015,3301848541,600,REDACTED PERSONAL DATA
http://statistics.data.gov.uk/id/local-authority/38,Oxfordshire County Council,Adult Social Care,MH Community Sup't,Other Agency and Contracted Services,57401,Direct Payments,02/01/2015,3301848542,3250,REDACTED PERSONAL DATA
http://statistics.data.gov.uk/id/local-authority/38,Oxfordshire County Council,Oxfordshire Customer Services,MIS Payroll Workflow,Balance Sheet General,B7102,Local Government AVC,05/01/2015,3301848545,63497.99,Prudential Assurance Co. Ltd
http://statistics.data.gov.uk/id/local-authority/38,Oxfordshire County Council,Oxfordshire Customer Services,MIS Payroll Workflow,Balance Sheet General,B7103,Teachers AVC,05/01/2015,3301848546,19377.6,Prudential Assurance
http://statistics.data.gov.uk/id/local-authority/38,Oxfordshire County Council,Oxfordshire Customer Services,MIS Payroll Workflow,Balance Sheet General,B7110,Personal Accident Scheme,15/01/2015,3301848548,702.17,Chartis Insurance UK Ltd
http://statistics.data.gov.uk/id/local-authority/38,Oxfordshire County Council,Oxfordshire Customer Services,MIS Payroll Workflow,Balance Sheet General,B7111,Court Orders,15/01/2015,3301848549,556.46,HMCTS
http://statistics.data.gov.uk/id/local-authority/38,Oxfordshire County Council,Oxfordshire Customer Services,MIS Payroll Workflow,Balance Sheet General,B7111,Court Orders,15/01/2015,3301848551,2449.08,Child Maintenance Service
http://statistics.data.gov.uk/id/local-authority/38,Oxfordshire County Council,Oxfordshire Customer Services,MIS Payroll Workflow,Balance Sheet General,B7115,Fire Brigade Union Subs,15/01/2015,3301848553,6633.37,Fire Brigades Union
http://statistics.data.gov.uk/id/local-authority/38,Oxfordshire County Council,Oxfordshire Customer Services,MIS Payroll Workflow,Balance Sheet General,B7114,Fire Service National Benevolent,15/01/2015,3301848554,738.57,The Fire Fighters Charity Regular G
http://statistics.data.gov.uk/id/local-authority/38,Oxfordshire County Council,Oxfordshire Customer Services,MIS Payroll Workflow,Balance Sheet General,B7118,GAYE,15/01/2015,3301848557,808.27,Give As You Earn
http://statistics.data.gov.uk/id/local-authority/38,Oxfordshire County Council,Oxfordshire Customer Services,MIS Payroll Workflow,Balance Sheet General,B7113,GMBU Subscriptions,15/01/2015,3301848558,1081.31,G M B
http://statistics.data.gov.uk/id/local-authority/38,Oxfordshire County Council,Oxfordshire Customer Services,MIS Payroll Workflow,Balance Sheet General,B7111,Court Orders,15/01/2015,3301848559,622.14,Herefordshire Council
http://statistics.data.gov.uk/id/local-authority/38,Oxfordshire County Council,Oxfordshire Customer Services,MIS Payroll Workflow,Balance Sheet General,B7111,Court Orders,15/01/2015,3301848561,1400.06,Oxford City Council
http://statistics.data.gov.uk/id/local-authority/38,Oxfordshire County Council,Oxfordshire Customer Services,MIS Payroll Workflow,Balance Sheet General,B7123,Conservative Group Association,15/01/2015,3301848562,786.49,Oxfordshire Labour Councillors
http://statistics.data.gov.uk/id/local-authority/38,Oxfordshire County Council,Oxfordshire Customer Services,MIS Payroll Workflow,Balance Sheet General,B7105,Unison Subscription,15/01/2015,3301848565,16932.26,Unison
http://statistics.data.gov.uk/id/local-authority/38,Oxfordshire County Council,Oxfordshire Customer Services,MIS Payroll Workflow,Balance Sheet General,B7111,Court Orders,15/01/2015,3301848567,670.26,Vale of White Horse District Counci
http://statistics.data.gov.uk/id/local-authority/38,Oxfordshire County Council,Oxfordshire Customer Services,MIS Payroll Workflow,Balance Sheet General,B7104,NHS Pension Scheme,15/01/2015,3301848569,19203.97,NHS Pension Scheme
http://statistics.data.gov.uk/id/local-authority/38,Oxfordshire County Council,Education & Early Intervention,EIBI & Alternative Programmes,Services,44200,Consultants Fees,05/01/2015,3301848570,943.76,Oona Bannister
http://statistics.data.gov.uk/id/local-authority/38,Oxfordshire County Council,Commercial Services,Electrical Energy,Private Contractors,56700,Electrical Main Energy,05/01/2015,3301848571,267682.25,Npower Ltd
http://statistics.data.gov.uk/id/local-authority/38,Oxfordshire County Council,"Older People, Phys Disabilities & Equip",Community Support Budget - Faringdon,Other Agency and Contracted Services,57401,Direct Payments,05/01/2015,3301848627,2824,REDACTED PERSONAL DATA
http://statistics.data.gov.uk/id/local-authority/38,Oxfordshire County Council,Law & Culture,Legal Services,Expenses,46500,Legal Fees & Exp,05/01/2015,3301848639,1250,Cherwell District Council
http://statistics.data.gov.uk/id/local-authority/38,Oxfordshire County Council,Education & Early Intervention,Quality & Expansion 2 Year Olds,Grants and Subscriptions,47100,Grants to Voluntary,06/01/2015,3301848658,4706.5,Summertown Montessori Nursery
http://statistics.data.gov.uk/id/local-authority/38,Oxfordshire County Council,"Older People, Phys Disabilities & Equip",Community Support Budget - Banbury,Other Agency and Contracted Services,57401,Direct Payments,07/01/2015,3301848832,567.6,REDACTED PERSONAL DATA
http://statistics.data.gov.uk/id/local-authority/38,Oxfordshire County Council,Learning  Disabilities Pooled Budget,Direct Payments City Team,Other Agency and Contracted Services,57401,Direct Payments,07/01/2015,3301848833,1716.6,REDACTED PERSONAL DATA
http://statistics.data.gov.uk/id/local-authority/38,Oxfordshire County Council,"Older People, Phys Disabilities & Equip",PD Comm Supp Purchasg Budget - City,Other Agency and Contracted Services,57401,Direct Payments,07/01/2015,3301848835,993.56,REDACTED PERSONAL DATA
http://statistics.data.gov.uk/id/local-authority/38,Oxfordshire County Council,"Older People, Phys Disabilities & Equip",PD Comm Supp Purchasg Budget - City,Other Agency and Contracted Services,57401,Direct Payments,07/01/2015,3301848838,2162.12,REDACTED PERSONAL DATA
http://statistics.data.gov.uk/id/local-authority/38,Oxfordshire County Council,"Older People, Phys Disabilities & Equip",PD Comm Supp Budget - Banbury,Other Agency and Contracted Services,57401,Direct Payments,07/01/2015,3301848839,2624,REDACTED PERSONAL DATA
http://statistics.data.gov.uk/id/local-authority/38,Oxfordshire County Council,Learning  Disabilities Pooled Budget,Direct Payments South Team,Other Agency and Contracted Services,57401,Direct Payments,07/01/2015,3301848840,3600,REDACTED PERSONAL DATA
http://statistics.data.gov.uk/id/local-authority/38,Oxfordshire County Council,"Older People, Phys Disabilities & Equip",Community Support Budget - Banbury,Other Agency and Contracted Services,57401,Direct Payments,07/01/2015,3301848841,652,REDACTED PERSONAL DATA
http://statistics.data.gov.uk/id/local-authority/38,Oxfordshire County Council,Learning  Disabilities Pooled Budget,Direct Payments North Team,Other Agency and Contracted Services,57401,Direct Payments,07/01/2015,3301848842,1013.6,REDACTED PERSONAL DATA
http://statistics.data.gov.uk/id/local-authority/38,Oxfordshire County Council,"Older People, Phys Disabilities & Equip",Personal Health Budgets PD (PCT),Other Agency and Contracted Services,57401,Direct Payments,07/01/2015,3301848844,6773.88,REDACTED PERSONAL DATA
http://statistics.data.gov.uk/id/local-authority/38,Oxfordshire County Council,"Older People, Phys Disabilities & Equip",Community Support Budget - Thame,Other Agency and Contracted Services,57401,Direct Payments,07/01/2015,3301848845,964,REDACTED PERSONAL DATA
http://statistics.data.gov.uk/id/local-authority/38,Oxfordshire County Council,"Older People, Phys Disabilities & Equip",Community Support Budget - City,Other Agency and Contracted Services,57401,Direct Payments,07/01/2015,3301848847,828,REDACTED PERSONAL DATA
http://statistics.data.gov.uk/id/local-authority/38,Oxfordshire County Council,"Older People, Phys Disabilities & Equip",Community Support Budget - City,Other Agency and Contracted Services,57401,Direct Payments,07/01/2015,3301848848,2391.52,REDACTED PERSONAL DATA
http://statistics.data.gov.uk/id/local-authority/38,Oxfordshire County Council,Learning  Disabilities Pooled Budget,Direct Payments South Team,Other Agency and Contracted Services,57401,Direct Payments,07/01/2015,3301848850,536,REDACTED PERSONAL DATA
http://statistics.data.gov.uk/id/local-authority/38,Oxfordshire County Council,"Older People, Phys Disabilities & Equip",Community Support Budget - City,Other Agency and Contracted Services,57401,Direct Payments,07/01/2015,3301848851,1079.36,REDACTED PERSONAL DATA
http://statistics.data.gov.uk/id/local-authority/38,Oxfordshire County Council,"Older People, Phys Disabilities & Equip",Community Support Budget - Thame,Other Agency and Contracted Services,57401,Direct Payments,07/01/2015,3301848852,1904,REDACTED PERSONAL DATA
http://statistics.data.gov.uk/id/local-authority/38,Oxfordshire County Council,"Older People, Phys Disabilities & Equip",Community Support Budget - Abingdon,Other Agency and Contracted Services,57401,Direct Payments,07/01/2015,3301848854,2812,REDACTED PERSONAL DATA
http://statistics.data.gov.uk/id/local-authority/38,Oxfordshire County Council,Adult Social Care,MH Community Sup't,Other Agency and Contracted Services,57401,Direct Payments,07/01/2015,3301848856,640,REDACTED PERSONAL DATA
http://statistics.data.gov.uk/id/local-authority/38,Oxfordshire County Council,"Older People, Phys Disabilities & Equip",Community Support Budget - Thame,Other Agency and Contracted Services,57401,Direct Payments,07/01/2015,3301848857,1896,REDACTED PERSONAL DATA
http://statistics.data.gov.uk/id/local-authority/38,Oxfordshire County Council,"Older People, Phys Disabilities & Equip",Community Support Budget - Didcot,Other Agency and Contracted Services,57401,Direct Payments,07/01/2015,3301848858,3240,REDACTED PERSONAL DATA
http://statistics.data.gov.uk/id/local-authority/38,Oxfordshire County Council,"Older People, Phys Disabilities & Equip",Community Support Budget - Didcot,Other Agency and Contracted Services,57401,Direct Payments,07/01/2015,3301848859,2532,REDACTED PERSONAL DATA
http://statistics.data.gov.uk/id/local-authority/38,Oxfordshire County Council,"Older People, Phys Disabilities & Equip",PD Comm Supp Budget - Banbury,Other Agency and Contracted Services,57401,Direct Payments,07/01/2015,3301848861,628,REDACTED PERSONAL DATA
http://statistics.data.gov.uk/id/local-authority/38,Oxfordshire County Council,Learning  Disabilities Pooled Budget,Direct Payments South Team,Other Agency and Contracted Services,57401,Direct Payments,07/01/2015,3301848864,954.68,REDACTED PERSONAL DATA
http://statistics.data.gov.uk/id/local-authority/38,Oxfordshire County Council,Learning  Disabilities Pooled Budget,Direct Payments South Team,Other Agency and Contracted Services,57401,Direct Payments,07/01/2015,3301848865,954.68,REDACTED PERSONAL DATA
http://statistics.data.gov.uk/id/local-authority/38,Oxfordshire County Council,"Older People, Phys Disabilities & Equip",Community Support Budget - Didcot,Other Agency and Contracted Services,57401,Direct Payments,07/01/2015,3301848866,1560,REDACTED PERSONAL DATA
http://statistics.data.gov.uk/id/local-authority/38,Oxfordshire County Council,"Older People, Phys Disabilities & Equip",Community Support Budget - City,Other Agency and Contracted Services,57401,Direct Payments,07/01/2015,3301848867,632,REDACTED PERSONAL DATA
http://statistics.data.gov.uk/id/local-authority/38,Oxfordshire County Council,"Older People, Phys Disabilities & Equip",Community Support Budget - Abingdon,Other Agency and Contracted Services,57401,Direct Payments,07/01/2015,3301848868,2708,REDACTED PERSONAL DATA
http://statistics.data.gov.uk/id/local-authority/38,Oxfordshire County Council,"Older People, Phys Disabilities & Equip",Community Support Budget - Banbury,Other Agency and Contracted Services,57401,Direct Payments,07/01/2015,3301848870,876,REDACTED PERSONAL DATA
http://statistics.data.gov.uk/id/local-authority/38,Oxfordshire County Council,Learning  Disabilities Pooled Budget,Direct Payments City Team,Other Agency and Contracted Services,57401,Direct Payments,07/01/2015,3301848871,1125.76,REDACTED PERSONAL DATA
http://statistics.data.gov.uk/id/local-authority/38,Oxfordshire County Council,Learning  Disabilities Pooled Budget,Direct Payments South Team,Other Agency and Contracted Services,57401,Direct Payments,07/01/2015,3301848872,2307.68,REDACTED PERSONAL DATA
http://statistics.data.gov.uk/id/local-authority/38,Oxfordshire County Council,Learning  Disabilities Pooled Budget,Direct Payments North Team,Other Agency and Contracted Services,57401,Direct Payments,07/01/2015,3301848873,11165.08,REDACTED PERSONAL DATA
http://statistics.data.gov.uk/id/local-authority/38,Oxfordshire County Council,Learning  Disabilities Pooled Budget,Direct Payments South Team,Other Agency and Contracted Services,57401,Direct Payments,07/01/2015,3301848874,1537.6,REDACTED PERSONAL DATA
http://statistics.data.gov.uk/id/local-authority/38,Oxfordshire County Council,"Older People, Phys Disabilities & Equip",PD Comm Supp Purchasg Budget - Henley,Other Agency and Contracted Services,57401,Direct Payments,07/01/2015,3301848875,1280,REDACTED PERSONAL DATA
http://statistics.data.gov.uk/id/local-authority/38,Oxfordshire County Council,"Older People, Phys Disabilities & Equip",PD Comm Supp Purchasg Budget - Thame,Other Agency and Contracted Services,57401,Direct Payments,07/01/2015,3301848877,784.32,REDACTED PERSONAL DATA
http://statistics.data.gov.uk/id/local-authority/38,Oxfordshire County Council,Learning  Disabilities Pooled Budget,Direct Payments City Team,Other Agency and Contracted Services,57401,Direct Payments,07/01/2015,3301848878,560,REDACTED PERSONAL DATA
http://statistics.data.gov.uk/id/local-authority/38,Oxfordshire County Council,Learning  Disabilities Pooled Budget,Direct Payments South Team,Other Agency and Contracted Services,57401,Direct Payments,07/01/2015,3301848879,1184.48,REDACTED PERSONAL DATA
http://statistics.data.gov.uk/id/local-authority/38,Oxfordshire County Council,"Older People, Phys Disabilities & Equip",Community Support Budget - Witney,Other Agency and Contracted Services,57401,Direct Payments,07/01/2015,3301848880,1623,REDACTED PERSONAL DATA
http://statistics.data.gov.uk/id/local-authority/38,Oxfordshire County Council,"Older People, Phys Disabilities & Equip",Community Support Budget - Witney,Other Agency and Contracted Services,57401,Direct Payments,07/01/2015,3301848880,541,REDACTED PERSONAL DATA
http://statistics.data.gov.uk/id/local-authority/38,Oxfordshire County Council,"Older People, Phys Disabilities & Equip",PD Comm Supp Purchasg Budget - Wantage,Other Agency and Contracted Services,57401,Direct Payments,07/01/2015,3301848881,516,REDACTED PERSONAL DATA
http://statistics.data.gov.uk/id/local-authority/38,Oxfordshire County Council,Learning  Disabilities Pooled Budget,Direct Payments South Team,Other Agency and Contracted Services,57401,Direct Payments,07/01/2015,3301848882,26635.2,REDACTED PERSONAL DATA
http://statistics.data.gov.uk/id/local-authority/38,Oxfordshire County Council,Learning  Disabilities Pooled Budget,Direct Payments South Team,Other Agency and Contracted Services,57401,Direct Payments,07/01/2015,3301848882,-17589.44,REDACTED PERSONAL DATA
http://statistics.data.gov.uk/id/local-authority/38,Oxfordshire County Council,Learning  Disabilities Pooled Budget,Direct Payments South Team,Other Agency and Contracted Services,57401,Direct Payments,07/01/2015,3301848882,3329.4,REDACTED PERSONAL DATA
http://statistics.data.gov.uk/id/local-authority/38,Oxfordshire County Council,"Older People, Phys Disabilities & Equip",PD Comm Supp Purchasg Budget - Witney,Other Agency and Contracted Services,57401,Direct Payments,07/01/2015,3301848883,1200,REDACTED PERSONAL DATA
http://statistics.data.gov.uk/id/local-authority/38,Oxfordshire County Council,"Older People, Phys Disabilities & Equip",Community Support Budget - Faringdon,Other Agency and Contracted Services,57401,Direct Payments,07/01/2015,3301848885,672,REDACTED PERSONAL DATA
http://statistics.data.gov.uk/id/local-authority/38,Oxfordshire County Council,Learning  Disabilities Pooled Budget,Direct Payments North Team,Other Agency and Contracted Services,57401,Direct Payments,07/01/2015,3301848886,4333.84,REDACTED PERSONAL DATA
http://statistics.data.gov.uk/id/local-authority/38,Oxfordshire County Council,"Older People, Phys Disabilities & Equip",Community Support Budget - Chipping Nort,Other Agency and Contracted Services,57401,Direct Payments,07/01/2015,3301848887,888,REDACTED PERSONAL DATA
http://statistics.data.gov.uk/id/local-authority/38,Oxfordshire County Council,"Older People, Phys Disabilities & Equip",Community Support Budget - Chipping Nort,Other Agency and Contracted Services,57401,Direct Payments,07/01/2015,3301848887,666,REDACTED PERSONAL DATA
http://statistics.data.gov.uk/id/local-authority/38,Oxfordshire County Council,"Older People, Phys Disabilities & Equip",Community Support Budget - Chipping Nort,Other Agency and Contracted Services,57401,Direct Payments,07/01/2015,3301848887,-648,REDACTED PERSONAL DATA
http://statistics.data.gov.uk/id/local-authority/38,Oxfordshire County Council,"Older People, Phys Disabilities & Equip",Community Support Budget - Henley,Other Agency and Contracted Services,57401,Direct Payments,07/01/2015,3301848888,1680,REDACTED PERSONAL DATA
http://statistics.data.gov.uk/id/local-authority/38,Oxfordshire County Council,"Older People, Phys Disabilities & Equip",PD Comm Supp Purchasg Budget - City,Other Agency and Contracted Services,57401,Direct Payments,07/01/2015,3301848890,800,REDACTED PERSONAL DATA
http://statistics.data.gov.uk/id/local-authority/38,Oxfordshire County Council,Learning  Disabilities Pooled Budget,Direct Payments City Team,Other Agency and Contracted Services,57401,Direct Payments,07/01/2015,3301848891,1184,REDACTED PERSONAL DATA
http://statistics.data.gov.uk/id/local-authority/38,Oxfordshire County Council,Learning  Disabilities Pooled Budget,Direct Payments City Team,Other Agency and Contracted Services,57401,Direct Payments,07/01/2015,3301848891,888,REDACTED PERSONAL DATA
http://statistics.data.gov.uk/id/local-authority/38,Oxfordshire County Council,Learning  Disabilities Pooled Budget,Direct Payments City Team,Other Agency and Contracted Services,57401,Direct Payments,07/01/2015,3301848891,-1140,REDACTED PERSONAL DATA
http://statistics.data.gov.uk/id/local-authority/38,Oxfordshire County Council,"Older People, Phys Disabilities & Equip",PD Comm Supp Purchasg Budget - City,Other Agency and Contracted Services,57401,Direct Payments,07/01/2015,3301848892,1316,REDACTED PERSONAL DATA
http://statistics.data.gov.uk/id/local-authority/38,Oxfordshire County Council,"Older People, Phys Disabilities & Equip",PD Comm Supp Purchasg Budget - City,Other Agency and Contracted Services,57401,Direct Payments,07/01/2015,3301848893,532,REDACTED PERSONAL DATA
http://statistics.data.gov.uk/id/local-authority/38,Oxfordshire County Council,"Older People, Phys Disabilities & Equip",PD Comm Supp Purchasg Budget - City,Other Agency and Contracted Services,57401,Direct Payments,07/01/2015,3301848894,1852,REDACTED PERSONAL DATA
http://statistics.data.gov.uk/id/local-authority/38,Oxfordshire County Council,Learning  Disabilities Pooled Budget,Direct Payments North Team,Other Agency and Contracted Services,57401,Direct Payments,07/01/2015,3301848896,863.08,REDACTED PERSONAL DATA
http://statistics.data.gov.uk/id/local-authority/38,Oxfordshire County Council,Learning  Disabilities Pooled Budget,Direct Payments North Team,Other Agency and Contracted Services,57401,Direct Payments,07/01/2015,3301848897,581.48,REDACTED PERSONAL DATA
http://statistics.data.gov.uk/id/local-authority/38,Oxfordshire County Council,Learning  Disabilities Pooled Budget,Direct Payments City Team,Other Agency and Contracted Services,57401,Direct Payments,07/01/2015,3301848898,2990.24,REDACTED PERSONAL DATA
http://statistics.data.gov.uk/id/local-authority/38,Oxfordshire County Council,Learning  Disabilities Pooled Budget,Direct Payments City Team,Other Agency and Contracted Services,57401,Direct Payments,07/01/2015,3301848899,988,REDACTED PERSONAL DATA
http://statistics.data.gov.uk/id/local-authority/38,Oxfordshire County Council,Learning  Disabilities Pooled Budget,Direct Payments City Team,Other Agency and Contracted Services,57401,Direct Payments,07/01/2015,3301848903,2964.16,REDACTED PERSONAL DATA
http://statistics.data.gov.uk/id/local-authority/38,Oxfordshire County Council,"Older People, Phys Disabilities & Equip",Community Support Budget - City,Other Agency and Contracted Services,57401,Direct Payments,07/01/2015,3301848904,740,REDACTED PERSONAL DATA
http://statistics.data.gov.uk/id/local-authority/38,Oxfordshire County Council,Learning  Disabilities Pooled Budget,Direct Payments South Team,Other Agency and Contracted Services,57401,Direct Payments,07/01/2015,3301848905,702.48,REDACTED PERSONAL DATA
http://statistics.data.gov.uk/id/local-authority/38,Oxfordshire County Council,Learning  Disabilities Pooled Budget,Direct Payments City Team,Other Agency and Contracted Services,57401,Direct Payments,07/01/2015,3301848906,717.48,REDACTED PERSONAL DATA
http://statistics.data.gov.uk/id/local-authority/38,Oxfordshire County Council,"Older People, Phys Disabilities & Equip",Community Support Budget - Chipping Nort,Other Agency and Contracted Services,57401,Direct Payments,07/01/2015,3301848907,624,REDACTED PERSONAL DATA
http://statistics.data.gov.uk/id/local-authority/38,Oxfordshire County Council,Learning  Disabilities Pooled Budget,Direct Payments South Team,Other Agency and Contracted Services,57401,Direct Payments,07/01/2015,3301848909,2171.48,REDACTED PERSONAL DATA
http://statistics.data.gov.uk/id/local-authority/38,Oxfordshire County Council,Learning  Disabilities Pooled Budget,Direct Payments North Team,Other Agency and Contracted Services,57401,Direct Payments,07/01/2015,3301848911,756,REDACTED PERSONAL DATA
http://statistics.data.gov.uk/id/local-authority/38,Oxfordshire County Council,"Older People, Phys Disabilities & Equip",Community Support Budget - Didcot,Other Agency and Contracted Services,57401,Direct Payments,07/01/2015,3301848912,952,REDACTED PERSONAL DATA
http://statistics.data.gov.uk/id/local-authority/38,Oxfordshire County Council,Learning  Disabilities Pooled Budget,Direct Payments City Team,Other Agency and Contracted Services,57401,Direct Payments,07/01/2015,3301848913,1027.84,REDACTED PERSONAL DATA
http://statistics.data.gov.uk/id/local-authority/38,Oxfordshire County Council,"Older People, Phys Disabilities & Equip",PD Comm Supp Budgt - Bicester/Kidlington,Other Agency and Contracted Services,57401,Direct Payments,07/01/2015,3301848917,632,REDACTED PERSONAL DATA
http://statistics.data.gov.uk/id/local-authority/38,Oxfordshire County Council,Learning  Disabilities Pooled Budget,Direct Payments North Team,Other Agency and Contracted Services,57401,Direct Payments,07/01/2015,3301848919,6820.84,REDACTED PERSONAL DATA
http://statistics.data.gov.uk/id/local-authority/38,Oxfordshire County Council,"Older People, Phys Disabilities & Equip",PD Comm Supp Purchasg Budget - Witney,Other Agency and Contracted Services,57401,Direct Payments,07/01/2015,3301848920,1846.44,REDACTED PERSONAL DATA
http://statistics.data.gov.uk/id/local-authority/38,Oxfordshire County Council,Learning  Disabilities Pooled Budget,Direct Payments South Team,Other Agency and Contracted Services,57401,Direct Payments,07/01/2015,3301848921,15370.2,REDACTED PERSONAL DATA
http://statistics.data.gov.uk/id/local-authority/38,Oxfordshire County Council,"Older People, Phys Disabilities & Equip",OP Pool Continuing Care Delegated Health,Other Agency and Contracted Services,57401,Direct Payments,07/01/2015,3301848922,552,REDACTED PERSONAL DATA
http://statistics.data.gov.uk/id/local-authority/38,Oxfordshire County Council,"Older People, Phys Disabilities & Equip",Community Support Budget - Thame,Other Agency and Contracted Services,57401,Direct Payments,07/01/2015,3301848922,1064,REDACTED PERSONAL DATA
http://statistics.data.gov.uk/id/local-authority/38,Oxfordshire County Council,Learning  Disabilities Pooled Budget,Direct Payments South Team,Other Agency and Contracted Services,57401,Direct Payments,07/01/2015,3301848924,766,REDACTED PERSONAL DATA
http://statistics.data.gov.uk/id/local-authority/38,Oxfordshire County Council,"Older People, Phys Disabilities & Equip",PD Comm Supp Purchasg Budget - Abingdon,Other Agency and Contracted Services,57401,Direct Payments,07/01/2015,3301848925,1481.64,REDACTED PERSONAL DATA
http://statistics.data.gov.uk/id/local-authority/38,Oxfordshire County Council,"Older People, Phys Disabilities & Equip",Community Support Budget - Abingdon,Other Agency and Contracted Services,57401,Direct Payments,07/01/2015,3301848926,1817.8,REDACTED PERSONAL DATA
http://statistics.data.gov.uk/id/local-authority/38,Oxfordshire County Council,"Older People, Phys Disabilities & Equip",PD Comm Supp Purchasg Budget - City,Other Agency and Contracted Services,57401,Direct Payments,07/01/2015,3301848927,1520.52,REDACTED PERSONAL DATA
http://statistics.data.gov.uk/id/local-authority/38,Oxfordshire County Council,"Older People, Phys Disabilities & Equip",PD Comm Supp Purchasg Budget - Chip. N.,Other Agency and Contracted Services,57401,Direct Payments,07/01/2015,3301848928,1372,REDACTED PERSONAL DATA
http://statistics.data.gov.uk/id/local-authority/38,Oxfordshire County Council,"Older People, Phys Disabilities & Equip",Community Support Budget - Didcot,Other Agency and Contracted Services,57401,Direct Payments,07/01/2015,3301848929,3175.48,REDACTED PERSONAL DATA
http://statistics.data.gov.uk/id/local-authority/38,Oxfordshire County Council,"Older People, Phys Disabilities & Equip",OP Pool Continuing Care Delegated Health,Other Agency and Contracted Services,57401,Direct Payments,07/01/2015,3301848929,886.52,REDACTED PERSONAL DATA
http://statistics.data.gov.uk/id/local-authority/38,Oxfordshire County Council,Learning  Disabilities Pooled Budget,Direct Payments North Team,Other Agency and Contracted Services,57401,Direct Payments,07/01/2015,3301848930,656,REDACTED PERSONAL DATA
http://statistics.data.gov.uk/id/local-authority/38,Oxfordshire County Council,Learning  Disabilities Pooled Budget,Direct Payments South Team,Other Agency and Contracted Services,57401,Direct Payments,07/01/2015,3301848931,5684.16,REDACTED PERSONAL DATA
http://statistics.data.gov.uk/id/local-authority/38,Oxfordshire County Council,Learning  Disabilities Pooled Budget,Direct Payments South Team,Other Agency and Contracted Services,57401,Direct Payments,07/01/2015,3301848932,3842.2,REDACTED PERSONAL DATA
http://statistics.data.gov.uk/id/local-authority/38,Oxfordshire County Council,Learning  Disabilities Pooled Budget,Direct Payments South Team,Other Agency and Contracted Services,57401,Direct Payments,07/01/2015,3301848933,6036,REDACTED PERSONAL DATA
http://statistics.data.gov.uk/id/local-authority/38,Oxfordshire County Council,"Older People, Phys Disabilities & Equip",PD CS Purch Budget - Health S28a JC,Other Agency and Contracted Services,57401,Direct Payments,07/01/2015,3301848935,532,REDACTED PERSONAL DATA
http://statistics.data.gov.uk/id/local-authority/38,Oxfordshire County Council,"Older People, Phys Disabilities & Equip",PD Comm Supp Budget - Banbury,Other Agency and Contracted Services,57401,Direct Payments,07/01/2015,3301848935,2323.12,REDACTED PERSONAL DATA
http://statistics.data.gov.uk/id/local-authority/38,Oxfordshire County Council,"Older People, Phys Disabilities & Equip",PD Comm Supp Budget - Banbury,Other Agency and Contracted Services,57401,Direct Payments,07/01/2015,3301848937,1859.08,REDACTED PERSONAL DATA
http://statistics.data.gov.uk/id/local-authority/38,Oxfordshire County Council,Learning  Disabilities Pooled Budget,Direct Payments City Team,Other Agency and Contracted Services,57401,Direct Payments,07/01/2015,3301848938,1360,REDACTED PERSONAL DATA
http://statistics.data.gov.uk/id/local-authority/38,Oxfordshire County Council,"Older People, Phys Disabilities & Equip",PD Comm Supp Budget - Banbury,Other Agency and Contracted Services,57401,Direct Payments,07/01/2015,3301848939,1644,REDACTED PERSONAL DATA
http://statistics.data.gov.uk/id/local-authority/38,Oxfordshire County Council,"Older People, Phys Disabilities & Equip",OP Pool Continuing Care Delegated Health,Other Agency and Contracted Services,57401,Direct Payments,07/01/2015,3301848940,919.32,REDACTED PERSONAL DATA
http://statistics.data.gov.uk/id/local-authority/38,Oxfordshire County Council,"Older People, Phys Disabilities & Equip",Community Support Budget - Banbury,Other Agency and Contracted Services,57401,Direct Payments,07/01/2015,3301848940,1748.68,REDACTED PERSONAL DATA
http://statistics.data.gov.uk/id/local-authority/38,Oxfordshire County Council,Learning  Disabilities Pooled Budget,Direct Payments North Team,Other Agency and Contracted Services,57401,Direct Payments,07/01/2015,3301848941,585,REDACTED PERSONAL DATA
http://statistics.data.gov.uk/id/local-authority/38,Oxfordshire County Council,Learning  Disabilities Pooled Budget,Direct Payments South Team,Other Agency and Contracted Services,57401,Direct Payments,07/01/2015,3301848942,917.24,REDACTED PERSONAL DATA
http://statistics.data.gov.uk/id/local-authority/38,Oxfordshire County Council,"Older People, Phys Disabilities & Equip",Community Support Budget - Didcot,Other Agency and Contracted Services,57401,Direct Payments,07/01/2015,3301848944,920,Citibank NA London
http://statistics.data.gov.uk/id/local-authority/38,Oxfordshire County Council,"Older People, Phys Disabilities & Equip",PD Comm Supp Purchasg Budget - Didcot,Other Agency and Contracted Services,57401,Direct Payments,07/01/2015,3301848946,1656,Citibank NA London
http://statistics.data.gov.uk/id/local-authority/38,Oxfordshire County Council,"Older People, Phys Disabilities & Equip",PD Comm Supp Purchasg Budget - Didcot,Other Agency and Contracted Services,57401,Direct Payments,07/01/2015,3301848949,1712,Citibank NA London
http://statistics.data.gov.uk/id/local-authority/38,Oxfordshire County Council,"Older People, Phys Disabilities & Equip",Community Support Budget - Didcot,Other Agency and Contracted Services,57401,Direct Payments,07/01/2015,3301848953,2400,Citibank NA London
http://statistics.data.gov.uk/id/local-authority/38,Oxfordshire County Council,"Older People, Phys Disabilities & Equip",Community Support Budget - Witney,Other Agency and Contracted Services,57401,Direct Payments,07/01/2015,3301848955,1456,Citibank NA London
http://statistics.data.gov.uk/id/local-authority/38,Oxfordshire County Council,"Older People, Phys Disabilities & Equip",Community Support Budget - Witney,Other Agency and Contracted Services,57401,Direct Payments,07/01/2015,3301848955,2028,Citibank NA London
http://statistics.data.gov.uk/id/local-authority/38,Oxfordshire County Council,"Older People, Phys Disabilities & Equip",Community Support Budget - Witney,Other Agency and Contracted Services,57401,Direct Payments,07/01/2015,3301848955,-2117.14,Citibank NA London
http://statistics.data.gov.uk/id/local-authority/38,Oxfordshire County Council,"Older People, Phys Disabilities & Equip",PD CS Purch Budget - Health S28a JC,Other Agency and Contracted Services,57401,Direct Payments,07/01/2015,3301848960,1036,WK3 Advance Housing & Support
http://statistics.data.gov.uk/id/local-authority/38,Oxfordshire County Council,"Older People, Phys Disabilities & Equip",PD Community Support Budget - Kidlington,Other Agency and Contracted Services,57401,Direct Payments,07/01/2015,3301848960,2743.2,WK3 Advance Housing & Support
http://statistics.data.gov.uk/id/local-authority/38,Oxfordshire County Council,"Older People, Phys Disabilities & Equip",Community Support Budget - Bicester,Other Agency and Contracted Services,57401,Direct Payments,07/01/2015,3301848961,1120,WK3 Advance Housing & Support
http://statistics.data.gov.uk/id/local-authority/38,Oxfordshire County Council,"Older People, Phys Disabilities & Equip",Community Support Budget - Bicester,Other Agency and Contracted Services,57401,Direct Payments,07/01/2015,3301848961,1360,WK3 Advance Housing & Support
http://statistics.data.gov.uk/id/local-authority/38,Oxfordshire County Council,"Older People, Phys Disabilities & Equip",Community Support Budget - Didcot,Other Agency and Contracted Services,57401,Direct Payments,07/01/2015,3301848963,1312,WK3 Advance Housing & Support
http://statistics.data.gov.uk/id/local-authority/38,Oxfordshire County Council,Learning  Disabilities Pooled Budget,Direct Payments City Team,Other Agency and Contracted Services,57401,Direct Payments,07/01/2015,3301848964,960,WK3 Advance Housing & Support
http://statistics.data.gov.uk/id/local-authority/38,Oxfordshire County Council,"Older People, Phys Disabilities & Equip",PD Comm Supp Purchasg Budget - Witney,Other Agency and Contracted Services,57401,Direct Payments,07/01/2015,3301848967,1056,WK3 Advance Housing & Support
http://statistics.data.gov.uk/id/local-authority/38,Oxfordshire County Council,Learning  Disabilities Pooled Budget,Direct Payments City Team,Other Agency and Contracted Services,57401,Direct Payments,07/01/2015,3301848968,1325.84,WK3 Advance Housing & Support
http://statistics.data.gov.uk/id/local-authority/38,Oxfordshire County Council,"Older People, Phys Disabilities & Equip",PD Comm Supp Budget - Banbury,Other Agency and Contracted Services,57401,Direct Payments,07/01/2015,3301848969,5130,WK3 Advance Housing & Support
http://statistics.data.gov.uk/id/local-authority/38,Oxfordshire County Council,"Older People, Phys Disabilities & Equip",PD Comm Supp Budget - Banbury,Other Agency and Contracted Services,57401,Direct Payments,07/01/2015,3301848969,-1267.83,WK3 Advance Housing & Support
http://statistics.data.gov.uk/id/local-authority/38,Oxfordshire County Council,"Older People, Phys Disabilities & Equip",PD Comm Supp Budget - Banbury,Other Agency and Contracted Services,57401,Direct Payments,07/01/2015,3301848969,2280,WK3 Advance Housing & Support
http://statistics.data.gov.uk/id/local-authority/38,Oxfordshire County Council,"Older People, Phys Disabilities & Equip",PD Comm Supp Purchasg Budget - City,Other Agency and Contracted Services,57401,Direct Payments,07/01/2015,3301848970,1484.44,WK3 Advance Housing & Support
http://statistics.data.gov.uk/id/local-authority/38,Oxfordshire County Council,"Older People, Phys Disabilities & Equip",Community Support Budget - Chipping Nort,Other Agency and Contracted Services,57401,Direct Payments,07/01/2015,3301848974,1059.44,WK3 Advance Housing & Support
http://statistics.data.gov.uk/id/local-authority/38,Oxfordshire County Council,"Older People, Phys Disabilities & Equip",Community Support Budget - Chipping Nort,Other Agency and Contracted Services,57401,Direct Payments,07/01/2015,3301848974,756.74,WK3 Advance Housing & Support
http://statistics.data.gov.uk/id/local-authority/38,Oxfordshire County Council,"Older People, Phys Disabilities & Equip",Community Support Budget - Chipping Nort,Other Agency and Contracted Services,57401,Direct Payments,07/01/2015,3301848974,-528.17,WK3 Advance Housing & Support
http://statistics.data.gov.uk/id/local-authority/38,Oxfordshire County Council,"Older People, Phys Disabilities & Equip",Community Support Budget - Banbury,Other Agency and Contracted Services,57401,Direct Payments,07/01/2015,3301848975,784,WK3 Advance Housing & Support
http://statistics.data.gov.uk/id/local-authority/38,Oxfordshire County Council,Learning  Disabilities Pooled Budget,Direct Payments South Team,Other Agency and Contracted Services,57401,Direct Payments,07/01/2015,3301848977,3567.34,WK3 Advance Housing & Support
http://statistics.data.gov.uk/id/local-authority/38,Oxfordshire County Council,Learning  Disabilities Pooled Budget,Direct Payments South Team,Other Agency and Contracted Services,57401,Direct Payments,07/01/2015,3301848977,1019.24,WK3 Advance Housing & Support
http://statistics.data.gov.uk/id/local-authority/38,Oxfordshire County Council,"Older People, Phys Disabilities & Equip",Community Support Budget - Chipping Nort,Other Agency and Contracted Services,57401,Direct Payments,07/01/2015,3301848979,648,WK3 Advance Housing & Support
http://statistics.data.gov.uk/id/local-authority/38,Oxfordshire County Council,Learning  Disabilities Pooled Budget,Direct Payments South Team,Other Agency and Contracted Services,57401,Direct Payments,07/01/2015,3301848980,907.2,WK3 Advance Housing & Support
http://statistics.data.gov.uk/id/local-authority/38,Oxfordshire County Council,"Older People, Phys Disabilities & Equip",Community Support Budget - Bicester,Other Agency and Contracted Services,57401,Direct Payments,07/01/2015,3301848981,2409.14,WK3 Advance Housing & Support
http://statistics.data.gov.uk/id/local-authority/38,Oxfordshire County Council,"Older People, Phys Disabilities & Equip",Community Support Budget - Bicester,Other Agency and Contracted Services,57401,Direct Payments,07/01/2015,3301848981,1984,WK3 Advance Housing & Support
http://statistics.data.gov.uk/id/local-authority/38,Oxfordshire County Council,"Older People, Phys Disabilities & Equip",PD Comm Supp Budgt - Bicester/Kidlington,Other Agency and Contracted Services,57401,Direct Payments,07/01/2015,3301848984,1824,WK3 Advance Housing & Support
http://statistics.data.gov.uk/id/local-authority/38,Oxfordshire County Council,"Older People, Phys Disabilities & Equip",Community Support Budget - Witney,Other Agency and Contracted Services,57401,Direct Payments,07/01/2015,3301848986,1025.6,WK3 Advance Housing & Support
http://statistics.data.gov.uk/id/local-authority/38,Oxfordshire County Council,"Older People, Phys Disabilities & Equip",Personal Health Budgets PD (PCT),Other Agency and Contracted Services,57401,Direct Payments,07/01/2015,3301848987,7334.52,WK3 Advance Housing & Support
http://statistics.data.gov.uk/id/local-authority/38,Oxfordshire County Council,"Older People, Phys Disabilities & Equip",Community Support Budget - Faringdon,Other Agency and Contracted Services,57401,Direct Payments,07/01/2015,3301848989,1312,WK3 Advance Housing & Support
http://statistics.data.gov.uk/id/local-authority/38,Oxfordshire County Council,Learning  Disabilities Pooled Budget,Direct Payments South Team,Other Agency and Contracted Services,57401,Direct Payments,07/01/2015,3301848991,1036.76,WK3 Advance Housing & Support
http://statistics.data.gov.uk/id/local-authority/38,Oxfordshire County Council,"Older People, Phys Disabilities & Equip",Community Support Budget - Abingdon,Other Agency and Contracted Services,57401,Direct Payments,07/01/2015,3301848992,1226.68,WK3 Advance Housing & Support
http://statistics.data.gov.uk/id/local-authority/38,Oxfordshire County Council,"Older People, Phys Disabilities & Equip",OP Pool Continuing Care Delegated Health,Other Agency and Contracted Services,57401,Direct Payments,07/01/2015,3301848992,917.32,WK3 Advance Housing & Support
http://statistics.data.gov.uk/id/local-authority/38,Oxfordshire County Council,"Older People, Phys Disabilities & Equip",Community Support Budget - Banbury,Other Agency and Contracted Services,57401,Direct Payments,07/01/2015,3301848993,1068,WK3 Advance Housing & Support
http://statistics.data.gov.uk/id/local-authority/38,Oxfordshire County Council,"Older People, Phys Disabilities & Equip",PD Comm Supp Purchasg Budget - Witney,Other Agency and Contracted Services,57401,Direct Payments,07/01/2015,3301848994,1040,WK3 Advance Housing & Support
http://statistics.data.gov.uk/id/local-authority/38,Oxfordshire County Council,"Older People, Phys Disabilities & Equip",Community Support Budget - Abingdon,Other Agency and Contracted Services,57401,Direct Payments,07/01/2015,3301848997,512,WK3 Advance Housing & Support
http://statistics.data.gov.uk/id/local-authority/38,Oxfordshire County Council,"Older People, Phys Disabilities & Equip",Community Support Budget - City,Other Agency and Contracted Services,57401,Direct Payments,07/01/2015,3301848998,964,WK3 Advance Housing & Support
http://statistics.data.gov.uk/id/local-authority/38,Oxfordshire County Council,"Older People, Phys Disabilities & Equip",Community Support Budget - Banbury,Other Agency and Contracted Services,57401,Direct Payments,07/01/2015,3301848999,834.8,WK3 Advance Housing & Support
http://statistics.data.gov.uk/id/local-authority/38,Oxfordshire County Council,"Older People, Phys Disabilities & Equip",Community Support Budget - Didcot,Other Agency and Contracted Services,57401,Direct Payments,07/01/2015,3301849001,540,WK3 Advance Housing & Support
http://statistics.data.gov.uk/id/local-authority/38,Oxfordshire County Council,"Older People, Phys Disabilities & Equip",Community Support Budget - Chipping Nort,Other Agency and Contracted Services,57401,Direct Payments,07/01/2015,3301849004,512,WK3 Advance Housing & Support
http://statistics.data.gov.uk/id/local-authority/38,Oxfordshire County Council,"Older People, Phys Disabilities & Equip",Community Support Budget - Didcot,Other Agency and Contracted Services,57401,Direct Payments,07/01/2015,3301849005,732,WK3 Advance Housing & Support
http://statistics.data.gov.uk/id/local-authority/38,Oxfordshire County Council,"Older People, Phys Disabilities & Equip",Community Support Budget - Kidlington,Other Agency and Contracted Services,57401,Direct Payments,07/01/2015,3301849007,1454.15,WK3 Advance Housing & Support
http://statistics.data.gov.uk/id/local-authority/38,Oxfordshire County Council,"Older People, Phys Disabilities & Equip",Community Support Budget - Kidlington,Other Agency and Contracted Services,57401,Direct Payments,07/01/2015,3301849007,1240.32,WK3 Advance Housing & Support
http://statistics.data.gov.uk/id/local-authority/38,Oxfordshire County Council,"Older People, Phys Disabilities & Equip",PD Comm Supp Purchasg Budget - City,Other Agency and Contracted Services,57401,Direct Payments,07/01/2015,3301849008,784,WK3 Advance Housing & Support
http://statistics.data.gov.uk/id/local-authority/38,Oxfordshire County Council,"Older People, Phys Disabilities & Equip",PD Comm Supp Purchasg Budget - Abingdon,Other Agency and Contracted Services,57401,Direct Payments,07/01/2015,3301849009,1016,WK3 Advance Housing & Support
http://statistics.data.gov.uk/id/local-authority/38,Oxfordshire County Council,"Older People, Phys Disabilities & Equip",Community Support Budget - Witney,Other Agency and Contracted Services,57401,Direct Payments,07/01/2015,3301849010,519.76,WK3 Advance Housing & Support
http://statistics.data.gov.uk/id/local-authority/38,Oxfordshire County Council,"Older People, Phys Disabilities & Equip",Community Support Budget - Witney,Other Agency and Contracted Services,57401,Direct Payments,07/01/2015,3301849010,631.14,WK3 Advance Housing & Support
http://statistics.data.gov.uk/id/local-authority/38,Oxfordshire County Council,"Older People, Phys Disabilities & Equip",PD Community Support Budget - Kidlington,Other Agency and Contracted Services,57401,Direct Payments,07/01/2015,3301849011,3264,WK3 Advance Housing & Support
http://statistics.data.gov.uk/id/local-authority/38,Oxfordshire County Council,Adult Social Care,MH Community Sup't,Other Agency and Contracted Services,57401,Direct Payments,07/01/2015,3301849012,880,WK3 Advance Housing & Support
http://statistics.data.gov.uk/id/local-authority/38,Oxfordshire County Council,"Older People, Phys Disabilities & Equip",Community Support Budget - Faringdon,Other Agency and Contracted Services,57401,Direct Payments,07/01/2015,3301849013,592,WK3 Advance Housing & Support
http://statistics.data.gov.uk/id/local-authority/38,Oxfordshire County Council,"Older People, Phys Disabilities & Equip",PD Comm Supp Purchasg Budget - City,Other Agency and Contracted Services,57401,Direct Payments,07/01/2015,3301849014,520,WK3 Advance Housing & Support
http://statistics.data.gov.uk/id/local-authority/38,Oxfordshire County Council,"Older People, Phys Disabilities & Equip",Community Support Budget - City,Other Agency and Contracted Services,57401,Direct Payments,07/01/2015,3301849015,1040,WK3 Advance Housing & Support
http://statistics.data.gov.uk/id/local-authority/38,Oxfordshire County Council,"Older People, Phys Disabilities & Equip",Community Support Budget - Bicester,Other Agency and Contracted Services,57401,Direct Payments,07/01/2015,3301849016,912,WK3 Advance Housing & Support
http://statistics.data.gov.uk/id/local-authority/38,Oxfordshire County Council,"Older People, Phys Disabilities & Equip",PD Comm Supp Purchasg Budget - Thame,Other Agency and Contracted Services,57401,Direct Payments,07/01/2015,3301849017,1228.24,WK3 Advance Housing & Support
http://statistics.data.gov.uk/id/local-authority/38,Oxfordshire County Council,Learning  Disabilities Pooled Budget,Direct Payments South Team,Other Agency and Contracted Services,57401,Direct Payments,07/01/2015,3301849018,1068,WK3 Advance Housing & Support
http://statistics.data.gov.uk/id/local-authority/38,Oxfordshire County Council,"Older People, Phys Disabilities & Equip",PD Comm Supp Purchasg Budget - City,Other Agency and Contracted Services,57401,Direct Payments,07/01/2015,3301849020,560,WK3 Advance Housing & Support
http://statistics.data.gov.uk/id/local-authority/38,Oxfordshire County Council,"Older People, Phys Disabilities & Equip",Community Support Budget - Didcot,Other Agency and Contracted Services,57401,Direct Payments,07/01/2015,3301849021,5952,WK3 Advance Housing & Support
http://statistics.data.gov.uk/id/local-authority/38,Oxfordshire County Council,"Older People, Phys Disabilities & Equip",Community Support Budget - Witney,Other Agency and Contracted Services,57401,Direct Payments,07/01/2015,3301849022,1528,WK3 Advance Housing & Support
http://statistics.data.gov.uk/id/local-authority/38,Oxfordshire County Council,"Older People, Phys Disabilities & Equip",Community Support Budget - City,Other Agency and Contracted Services,57401,Direct Payments,07/01/2015,3301849024,796,WK3 Advance Housing & Support
http://statistics.data.gov.uk/id/local-authority/38,Oxfordshire County Council,Learning  Disabilities Pooled Budget,Direct Payments South Team,Other Agency and Contracted Services,57401,Direct Payments,07/01/2015,3301849025,907.2,WK3 Advance Housing & Support
http://statistics.data.gov.uk/id/local-authority/38,Oxfordshire County Council,"Older People, Phys Disabilities & Equip",PD Comm Supp Purchasg Budget - Witney,Other Agency and Contracted Services,57401,Direct Payments,07/01/2015,3301849027,2392,WK3 Advance Housing & Support
http://statistics.data.gov.uk/id/local-authority/38,Oxfordshire County Council,"Older People, Phys Disabilities & Equip",Community Support Budget - Banbury,Other Agency and Contracted Services,57401,Direct Payments,07/01/2015,3301849029,2192,WK3 Advance Housing & Support
http://statistics.data.gov.uk/id/local-authority/38,Oxfordshire County Council,"Older People, Phys Disabilities & Equip",Community Support Budget - Banbury,Other Agency and Contracted Services,57401,Direct Payments,07/01/2015,3301849029,2192,WK3 Advance Housing & Support
http://statistics.data.gov.uk/id/local-authority/38,Oxfordshire County Council,"Older People, Phys Disabilities & Equip",Community Support Budget - Banbury,Other Agency and Contracted Services,57401,Direct Payments,07/01/2015,3301849029,-1304,WK3 Advance Housing & Support
http://statistics.data.gov.uk/id/local-authority/38,Oxfordshire County Council,"Older People, Phys Disabilities & Equip",Community Support Budget - Banbury,Other Agency and Contracted Services,57401,Direct Payments,07/01/2015,3301849030,616,WK3 Advance Housing & Support
http://statistics.data.gov.uk/id/local-authority/38,Oxfordshire County Council,"Older People, Phys Disabilities & Equip",PD Comm Supp Budget - Banbury,Other Agency and Contracted Services,57401,Direct Payments,07/01/2015,3301849031,900,WK3 Advance Housing & Support
http://statistics.data.gov.uk/id/local-authority/38,Oxfordshire County Council,"Older People, Phys Disabilities & Equip",Community Support Budget - Banbury,Other Agency and Contracted Services,57401,Direct Payments,07/01/2015,3301849032,504,WK3 Advance Housing & Support
http://statistics.data.gov.uk/id/local-authority/38,Oxfordshire County Council,"Older People, Phys Disabilities & Equip",Community Support Budget - Faringdon,Other Agency and Contracted Services,57401,Direct Payments,07/01/2015,3301849035,860,WK3 Advance Housing & Support
http://statistics.data.gov.uk/id/local-authority/38,Oxfordshire County Council,"Older People, Phys Disabilities & Equip",OP Pool Continuing Care Delegated Health,Other Agency and Contracted Services,57401,Direct Payments,07/01/2015,3301849035,500,WK3 Advance Housing & Support
http://statistics.data.gov.uk/id/local-authority/38,Oxfordshire County Council,"Older People, Phys Disabilities & Equip",Community Support Budget - Banbury,Other Agency and Contracted Services,57401,Direct Payments,07/01/2015,3301849036,724,WK3 Advance Housing & Support
http://statistics.data.gov.uk/id/local-authority/38,Oxfordshire County Council,Learning  Disabilities Pooled Budget,Direct Payments City Team,Other Agency and Contracted Services,57401,Direct Payments,07/01/2015,3301849037,1875.24,WK3 Advance Housing & Support
http://statistics.data.gov.uk/id/local-authority/38,Oxfordshire County Council,"Older People, Phys Disabilities & Equip",Community Support Budget - Wantage,Other Agency and Contracted Services,57401,Direct Payments,07/01/2015,3301849038,3227.2,WK3 Advance Housing & Support
http://statistics.data.gov.uk/id/local-authority/38,Oxfordshire County Council,"Older People, Phys Disabilities & Equip",PD Comm Supp Purchasg Budget - Thame,Other Agency and Contracted Services,57401,Direct Payments,07/01/2015,3301849040,740,WK3 Advance Housing & Support
http://statistics.data.gov.uk/id/local-authority/38,Oxfordshire County Council,"Older People, Phys Disabilities & Equip",Community Support Budget - Wantage,Other Agency and Contracted Services,57401,Direct Payments,07/01/2015,3301849041,588,WK3 Advance Housing & Support
http://statistics.data.gov.uk/id/local-authority/38,Oxfordshire County Council,"Older People, Phys Disabilities & Equip",Community Support Budget - Wantage,Other Agency and Contracted Services,57401,Direct Payments,07/01/2015,3301849041,504,WK3 Advance Housing & Support
http://statistics.data.gov.uk/id/local-authority/38,Oxfordshire County Council,"Older People, Phys Disabilities & Equip",Community Support Budget - Banbury,Other Agency and Contracted Services,57401,Direct Payments,07/01/2015,3301849042,3012.8,WK3 Advance Housing & Support
http://statistics.data.gov.uk/id/local-authority/38,Oxfordshire County Council,"Older People, Phys Disabilities & Equip",Community Support Budget - Banbury,Other Agency and Contracted Services,57401,Direct Payments,07/01/2015,3301849042,1000,WK3 Advance Housing & Support
http://statistics.data.gov.uk/id/local-authority/38,Oxfordshire County Council,Learning  Disabilities Pooled Budget,Direct Payments South Team,Other Agency and Contracted Services,57401,Direct Payments,07/01/2015,3301849044,735.2,WK3 Advance Housing & Support
http://statistics.data.gov.uk/id/local-authority/38,Oxfordshire County Council,Learning  Disabilities Pooled Budget,Direct Payments North Team,Other Agency and Contracted Services,57401,Direct Payments,07/01/2015,3301849045,3691.32,WK3 Advance Housing & Support
http://statistics.data.gov.uk/id/local-authority/38,Oxfordshire County Council,"Older People, Phys Disabilities & Equip",PD Comm Supp Purchasg Budget - Didcot,Other Agency and Contracted Services,57401,Direct Payments,07/01/2015,3301849048,1519,WK3 Advance Housing & Support
http://statistics.data.gov.uk/id/local-authority/38,Oxfordshire County Council,"Older People, Phys Disabilities & Equip",PD Comm Supp Purchasg Budget - Witney,Other Agency and Contracted Services,57401,Direct Payments,07/01/2015,3301849050,1888,WK3 Advance Housing & Support
http://statistics.data.gov.uk/id/local-authority/38,Oxfordshire County Council,"Older People, Phys Disabilities & Equip",Community Support Budget - Chipping Nort,Other Agency and Contracted Services,57401,Direct Payments,07/01/2015,3301849051,622.28,WK3 Advance Housing & Support
http://statistics.data.gov.uk/id/local-authority/38,Oxfordshire County Council,"Older People, Phys Disabilities & Equip",Community Support Budget - Banbury,Other Agency and Contracted Services,57401,Direct Payments,07/01/2015,3301849052,600,WK3 Advance Housing & Support
http://statistics.data.gov.uk/id/local-authority/38,Oxfordshire County Council,"Older People, Phys Disabilities & Equip",PD Comm Supp Budget - Banbury,Other Agency and Contracted Services,57401,Direct Payments,07/01/2015,3301849054,676,WK3 Advance Housing & Support
http://statistics.data.gov.uk/id/local-authority/38,Oxfordshire County Council,"Older People, Phys Disabilities & Equip",Community Support Budget - Bicester,Other Agency and Contracted Services,57401,Direct Payments,07/01/2015,3301849055,1400,WK3 Advance Housing & Support
http://statistics.data.gov.uk/id/local-authority/38,Oxfordshire County Council,"Older People, Phys Disabilities & Equip",Community Support Budget - Banbury,Other Agency and Contracted Services,57401,Direct Payments,07/01/2015,3301849056,688,WK3 Advance Housing & Support
http://statistics.data.gov.uk/id/local-authority/38,Oxfordshire County Council,"Older People, Phys Disabilities & Equip",Community Support Budget - Witney,Other Agency and Contracted Services,57401,Direct Payments,07/01/2015,3301849057,1092,WK3 Advance Housing & Support
http://statistics.data.gov.uk/id/local-authority/38,Oxfordshire County Council,"Older People, Phys Disabilities & Equip",PD Comm Supp Purchasg Budget - Thame,Other Agency and Contracted Services,57401,Direct Payments,07/01/2015,3301849059,992,WK3 Advance Housing & Support
http://statistics.data.gov.uk/id/local-authority/38,Oxfordshire County Council,"Older People, Phys Disabilities & Equip",Community Support Budget - Didcot,Other Agency and Contracted Services,57401,Direct Payments,07/01/2015,3301849060,1160,WK3 Advance Housing & Support
http://statistics.data.gov.uk/id/local-authority/38,Oxfordshire County Council,"Older People, Phys Disabilities & Equip",PD Comm Supp Purchasg Budget - Witney,Other Agency and Contracted Services,57401,Direct Payments,07/01/2015,3301849061,616,WK3 Advance Housing & Support
http://statistics.data.gov.uk/id/local-authority/38,Oxfordshire County Council,Learning  Disabilities Pooled Budget,Direct Payments North Team,Other Agency and Contracted Services,57401,Direct Payments,07/01/2015,3301849062,1681,WK3 Advance Housing & Support
http://statistics.data.gov.uk/id/local-authority/38,Oxfordshire County Council,Learning  Disabilities Pooled Budget,Direct Payments North Team,Other Agency and Contracted Services,57401,Direct Payments,07/01/2015,3301849063,1880,WK3 Advance Housing & Support
http://statistics.data.gov.uk/id/local-authority/38,Oxfordshire County Council,"Older People, Phys Disabilities & Equip",Community Support Budget - Bicester,Other Agency and Contracted Services,57401,Direct Payments,07/01/2015,3301849064,500,WK3 Advance Housing & Support
http://statistics.data.gov.uk/id/local-authority/38,Oxfordshire County Council,Learning  Disabilities Pooled Budget,Direct Payments City Team,Other Agency and Contracted Services,57401,Direct Payments,07/01/2015,3301849066,960,WK3 Advance Housing & Support
http://statistics.data.gov.uk/id/local-authority/38,Oxfordshire County Council,Learning  Disabilities Pooled Budget,Direct Payments City Team,Other Agency and Contracted Services,57401,Direct Payments,07/01/2015,3301849066,1920,WK3 Advance Housing & Support
http://statistics.data.gov.uk/id/local-authority/38,Oxfordshire County Council,Learning  Disabilities Pooled Budget,Direct Payments City Team,Other Agency and Contracted Services,57401,Direct Payments,07/01/2015,3301849066,-1277.36,WK3 Advance Housing & Support
http://statistics.data.gov.uk/id/local-authority/38,Oxfordshire County Council,"Older People, Phys Disabilities & Equip",PD Comm Supp Purchasg Budget - Didcot,Other Agency and Contracted Services,57401,Direct Payments,07/01/2015,3301849067,776,WK3 Advance Housing & Support
http://statistics.data.gov.uk/id/local-authority/38,Oxfordshire County Council,"Older People, Phys Disabilities & Equip",Community Support Budget - Didcot,Other Agency and Contracted Services,57401,Direct Payments,07/01/2015,3301849068,816,WK3 Advance Housing & Support
http://statistics.data.gov.uk/id/local-authority/38,Oxfordshire County Council,"Older People, Phys Disabilities & Equip",Community Support Budget - Henley,Other Agency and Contracted Services,57401,Direct Payments,07/01/2015,3301849069,1400,WK3 Advance Housing & Support
http://statistics.data.gov.uk/id/local-authority/38,Oxfordshire County Council,Learning  Disabilities Pooled Budget,Direct Payments South Team,Other Agency and Contracted Services,57401,Direct Payments,07/01/2015,3301849070,774,WK3 Advance Housing & Support
http://statistics.data.gov.uk/id/local-authority/38,Oxfordshire County Council,Learning  Disabilities Pooled Budget,Direct Payments North Team,Other Agency and Contracted Services,57401,Direct Payments,07/01/2015,3301849071,660,WK3 Advance Housing & Support
http://statistics.data.gov.uk/id/local-authority/38,Oxfordshire County Council,"Older People, Phys Disabilities & Equip",Community Support Budget - Witney,Other Agency and Contracted Services,57401,Direct Payments,07/01/2015,3301849072,972,WK3 Advance Housing & Support
http://statistics.data.gov.uk/id/local-authority/38,Oxfordshire County Council,Learning  Disabilities Pooled Budget,Direct Payments City Team,Other Agency and Contracted Services,57401,Direct Payments,07/01/2015,3301849073,1280,WK3 Advance Housing & Support
http://statistics.data.gov.uk/id/local-authority/38,Oxfordshire County Council,"Older People, Phys Disabilities & Equip",Community Support Budget - Thame,Other Agency and Contracted Services,57401,Direct Payments,07/01/2015,3301849074,756.6,WK3 Advance Housing & Support
http://statistics.data.gov.uk/id/local-authority/38,Oxfordshire County Council,Learning  Disabilities Pooled Budget,Direct Payments City Team,Other Agency and Contracted Services,57401,Direct Payments,07/01/2015,3301849075,2800,WK3 Advance Housing & Support
http://statistics.data.gov.uk/id/local-authority/38,Oxfordshire County Council,"Older People, Phys Disabilities & Equip",PD Comm Supp Purchasg Budget - Abingdon,Other Agency and Contracted Services,57401,Direct Payments,07/01/2015,3301849076,1040,WK3 Advance Housing & Support
http://statistics.data.gov.uk/id/local-authority/38,Oxfordshire County Council,"Older People, Phys Disabilities & Equip",Community Support Budget - City,Other Agency and Contracted Services,57401,Direct Payments,07/01/2015,3301849077,1948,WK3 Advance Housing & Support
http://statistics.data.gov.uk/id/local-authority/38,Oxfordshire County Council,"Older People, Phys Disabilities & Equip",Community Support Budget - Henley,Other Agency and Contracted Services,57401,Direct Payments,07/01/2015,3301849078,880,WK3 Advance Housing & Support
http://statistics.data.gov.uk/id/local-authority/38,Oxfordshire County Council,"Older People, Phys Disabilities & Equip",PD Comm Supp Purchasg Budget - Wantage,Other Agency and Contracted Services,57401,Direct Payments,07/01/2015,3301849079,856,WK3 Advance Housing & Support
http://statistics.data.gov.uk/id/local-authority/38,Oxfordshire County Council,"Older People, Phys Disabilities & Equip",PD Comm Supp Budget - Banbury,Other Agency and Contracted Services,57401,Direct Payments,07/01/2015,3301849080,600,WK3 Advance Housing & Support
http://statistics.data.gov.uk/id/local-authority/38,Oxfordshire County Council,"Older People, Phys Disabilities & Equip",Community Support Budget - Witney,Other Agency and Contracted Services,57401,Direct Payments,07/01/2015,3301849081,1448,WK3 Advance Housing & Support
http://statistics.data.gov.uk/id/local-authority/38,Oxfordshire County Council,Learning  Disabilities Pooled Budget,Direct Payments North Team,Other Agency and Contracted Services,57401,Direct Payments,07/01/2015,3301849082,3201.92,WK3 Advance Housing & Support
http://statistics.data.gov.uk/id/local-authority/38,Oxfordshire County Council,"Older People, Phys Disabilities & Equip",Community Support Budget - City,Other Agency and Contracted Services,57401,Direct Payments,07/01/2015,3301849083,2008,WK3 Advance Housing & Support
http://statistics.data.gov.uk/id/local-authority/38,Oxfordshire County Council,"Older People, Phys Disabilities & Equip",PD Comm Supp Budgt - Bicester/Kidlington,Other Agency and Contracted Services,57401,Direct Payments,07/01/2015,3301849084,716,WK3 Advance Housing & Support
http://statistics.data.gov.uk/id/local-authority/38,Oxfordshire County Council,Learning  Disabilities Pooled Budget,Direct Payments North Team,Other Agency and Contracted Services,57401,Direct Payments,07/01/2015,3301849085,664.6,WK3 Advance Housing & Support
http://statistics.data.gov.uk/id/local-authority/38,Oxfordshire County Council,"Older People, Phys Disabilities & Equip",PD Comm Supp Budget - Banbury,Other Agency and Contracted Services,57401,Direct Payments,07/01/2015,3301849086,1916.6,WK3 Advance Housing & Support
http://statistics.data.gov.uk/id/local-authority/38,Oxfordshire County Council,"Older People, Phys Disabilities & Equip",PD Comm Supp Budgt - Bicester/Kidlington,Other Agency and Contracted Services,57401,Direct Payments,07/01/2015,3301849087,661.6,WK3 Advance Housing & Support
http://statistics.data.gov.uk/id/local-authority/38,Oxfordshire County Council,"Older People, Phys Disabilities & Equip",Community Support Budget - Abingdon,Other Agency and Contracted Services,57401,Direct Payments,07/01/2015,3301849089,504,WK3 Advance Housing & Support
http://statistics.data.gov.uk/id/local-authority/38,Oxfordshire County Council,Learning  Disabilities Pooled Budget,Direct Payments North Team,Other Agency and Contracted Services,57401,Direct Payments,07/01/2015,3301849090,659.24,WK3 Advance Housing & Support
http://statistics.data.gov.uk/id/local-authority/38,Oxfordshire County Council,Learning  Disabilities Pooled Budget,Direct Payments North Team,Other Agency and Contracted Services,57401,Direct Payments,07/01/2015,3301849092,5540,WK3 Advance Housing & Support
http://statistics.data.gov.uk/id/local-authority/38,Oxfordshire County Council,"Older People, Phys Disabilities & Equip",Community Support Budget - Banbury,Other Agency and Contracted Services,57401,Direct Payments,07/01/2015,3301849093,666,WK3 Advance Housing & Support
http://statistics.data.gov.uk/id/local-authority/38,Oxfordshire County Council,"Older People, Phys Disabilities & Equip",Community Support Budget - Bicester,Other Agency and Contracted Services,57401,Direct Payments,07/01/2015,3301849094,712,WK3 Advance Housing & Support
http://statistics.data.gov.uk/id/local-authority/38,Oxfordshire County Council,"Older People, Phys Disabilities & Equip",Community Support Budget - Bicester,Other Agency and Contracted Services,57401,Direct Payments,07/01/2015,3301849095,1377.6,WK3 Advance Housing & Support
http://statistics.data.gov.uk/id/local-authority/38,Oxfordshire County Council,"Older People, Phys Disabilities & Equip",PD Comm Supp Purchasg Budget - Abingdon,Other Agency and Contracted Services,57401,Direct Payments,07/01/2015,3301849096,772,WK3 Advance Housing & Support
http://statistics.data.gov.uk/id/local-authority/38,Oxfordshire County Council,Learning  Disabilities Pooled Budget,Direct Payments South Team,Other Agency and Contracted Services,57401,Direct Payments,07/01/2015,3301849097,798.52,WK3 Advance Housing & Support
http://statistics.data.gov.uk/id/local-authority/38,Oxfordshire County Council,Learning  Disabilities Pooled Budget,Direct Payments South Team,Other Agency and Contracted Services,57401,Direct Payments,07/01/2015,3301849098,914,WK3 Advance Housing & Support
http://statistics.data.gov.uk/id/local-authority/38,Oxfordshire County Council,"Older People, Phys Disabilities & Equip",PD Comm Supp Purchasg Budget - Didcot,Other Agency and Contracted Services,57401,Direct Payments,07/01/2015,3301849102,680,WK3 Advance Housing & Support
http://statistics.data.gov.uk/id/local-authority/38,Oxfordshire County Council,"Older People, Phys Disabilities & Equip",PD Comm Supp Budgt - Bicester/Kidlington,Other Agency and Contracted Services,57401,Direct Payments,07/01/2015,3301849105,856,WK3 Advance Housing & Support
http://statistics.data.gov.uk/id/local-authority/38,Oxfordshire County Council,Learning  Disabilities Pooled Budget,Direct Payments North Team,Other Agency and Contracted Services,57401,Direct Payments,07/01/2015,3301849107,2893.6,WK3 Advance Housing & Support
http://statistics.data.gov.uk/id/local-authority/38,Oxfordshire County Council,Learning  Disabilities Pooled Budget,Direct Payments North Team,Other Agency and Contracted Services,57401,Direct Payments,07/01/2015,3301849108,5893.84,WK3 Advance Housing & Support
http://statistics.data.gov.uk/id/local-authority/38,Oxfordshire County Council,"Older People, Phys Disabilities & Equip",PHB OP Package,Other Agency and Contracted Services,57401,Direct Payments,07/01/2015,3301849110,6251.92,WK3 Advance Housing & Support
http://statistics.data.gov.uk/id/local-authority/38,Oxfordshire County Council,Learning  Disabilities Pooled Budget,Direct Payments North Team,Other Agency and Contracted Services,57401,Direct Payments,07/01/2015,3301849111,4480,WK3 Advance Housing & Support
http://statistics.data.gov.uk/id/local-authority/38,Oxfordshire County Council,Learning  Disabilities Pooled Budget,Direct Payments South Team,Other Agency and Contracted Services,57401,Direct Payments,07/01/2015,3301849112,907.2,WK3 Advance Housing & Support
http://statistics.data.gov.uk/id/local-authority/38,Oxfordshire County Council,Learning  Disabilities Pooled Budget,Direct Payments South Team,Other Agency and Contracted Services,57401,Direct Payments,07/01/2015,3301849114,1166.4,WK3 Advance Housing & Support
http://statistics.data.gov.uk/id/local-authority/38,Oxfordshire County Council,Learning  Disabilities Pooled Budget,Direct Payments South Team,Other Agency and Contracted Services,57401,Direct Payments,07/01/2015,3301849115,1060,WK3 Advance Housing & Support
http://statistics.data.gov.uk/id/local-authority/38,Oxfordshire County Council,Learning  Disabilities Pooled Budget,Direct Payments South Team,Other Agency and Contracted Services,57401,Direct Payments,07/01/2015,3301849117,907.2,WK3 Advance Housing & Support
http://statistics.data.gov.uk/id/local-authority/38,Oxfordshire County Council,Learning  Disabilities Pooled Budget,Direct Payments South Team,Other Agency and Contracted Services,57401,Direct Payments,07/01/2015,3301849118,907.2,WK3 Advance Housing & Support
http://statistics.data.gov.uk/id/local-authority/38,Oxfordshire County Council,Learning  Disabilities Pooled Budget,Direct Payments South Team,Other Agency and Contracted Services,57401,Direct Payments,07/01/2015,3301849119,3400,WK3 Advance Housing & Support
http://statistics.data.gov.uk/id/local-authority/38,Oxfordshire County Council,Learning  Disabilities Pooled Budget,Direct Payments South Team,Other Agency and Contracted Services,57401,Direct Payments,07/01/2015,3301849120,907.2,WK3 Advance Housing & Support
http://statistics.data.gov.uk/id/local-authority/38,Oxfordshire County Council,Learning  Disabilities Pooled Budget,Direct Payments South Team,Other Agency and Contracted Services,57401,Direct Payments,07/01/2015,3301849123,907.2,WK3 Advance Housing & Support
http://statistics.data.gov.uk/id/local-authority/38,Oxfordshire County Council,"Older People, Phys Disabilities & Equip",Community Support Budget - Abingdon,Other Agency and Contracted Services,57401,Direct Payments,07/01/2015,3301849124,2828,WK3 Advance Housing & Support
http://statistics.data.gov.uk/id/local-authority/38,Oxfordshire County Council,Learning  Disabilities Pooled Budget,Direct Payments South Team,Other Agency and Contracted Services,57401,Direct Payments,07/01/2015,3301849125,777.6,WK3 Advance Housing & Support
http://statistics.data.gov.uk/id/local-authority/38,Oxfordshire County Council,"Older People, Phys Disabilities & Equip",PD Community Support Budget - Kidlington,Other Agency and Contracted Services,57401,Direct Payments,07/01/2015,3301849126,560,WK3 Advance Housing & Support
http://statistics.data.gov.uk/id/local-authority/38,Oxfordshire County Council,"Older People, Phys Disabilities & Equip",OP Pool Continuing Care Delegated Health,Other Agency and Contracted Services,57401,Direct Payments,07/01/2015,3301849128,1764,WK3 Advance Housing & Support
http://statistics.data.gov.uk/id/local-authority/38,Oxfordshire County Council,"Older People, Phys Disabilities & Equip",Community Support Budget - City,Other Agency and Contracted Services,57401,Direct Payments,07/01/2015,3301849128,3108,WK3 Advance Housing & Support
http://statistics.data.gov.uk/id/local-authority/38,Oxfordshire County Council,"Older People, Phys Disabilities & Equip",PD Community Support Budget - Kidlington,Other Agency and Contracted Services,57401,Direct Payments,07/01/2015,3301849130,2872,WK3 Advance Housing & Support
http://statistics.data.gov.uk/id/local-authority/38,Oxfordshire County Council,Learning  Disabilities Pooled Budget,Direct Payments City Team,Other Agency and Contracted Services,57401,Direct Payments,07/01/2015,3301849132,2754.32,WK3 Advance Housing & Support
http://statistics.data.gov.uk/id/local-authority/38,Oxfordshire County Council,Learning  Disabilities Pooled Budget,Direct Payments City Team,Other Agency and Contracted Services,57401,Direct Payments,07/01/2015,3301849133,840,WK3 Advance Housing & Support
http://statistics.data.gov.uk/id/local-authority/38,Oxfordshire County Council,Learning  Disabilities Pooled Budget,Direct Payments City Team,Other Agency and Contracted Services,57401,Direct Payments,07/01/2015,3301849134,648,WK3 Advance Housing & Support
http://statistics.data.gov.uk/id/local-authority/38,Oxfordshire County Council,Learning  Disabilities Pooled Budget,Direct Payments City Team,Other Agency and Contracted Services,57401,Direct Payments,07/01/2015,3301849135,1016.4,WK3 Advance Housing & Support
http://statistics.data.gov.uk/id/local-authority/38,Oxfordshire County Council,"Older People, Phys Disabilities & Equip",PD Comm Supp Purchasg Budget - City,Other Agency and Contracted Services,57401,Direct Payments,07/01/2015,3301849136,1673.04,WK3 Advance Housing & Support
http://statistics.data.gov.uk/id/local-authority/38,Oxfordshire County Council,"Older People, Phys Disabilities & Equip",PD CS Purch Budget - Health S28a JC,Other Agency and Contracted Services,57401,Direct Payments,07/01/2015,3301849136,582.28,WK3 Advance Housing & Support
http://statistics.data.gov.uk/id/local-authority/38,Oxfordshire County Council,"Older People, Phys Disabilities & Equip",Community Support Budget - City,Other Agency and Contracted Services,57401,Direct Payments,07/01/2015,3301849138,3675.2,WK3 Advance Housing & Support
http://statistics.data.gov.uk/id/local-authority/38,Oxfordshire County Council,Learning  Disabilities Pooled Budget,Direct Payments South Team,Other Agency and Contracted Services,57401,Direct Payments,07/01/2015,3301849140,648,WK3 Advance Housing & Support
http://statistics.data.gov.uk/id/local-authority/38,Oxfordshire County Council,Learning  Disabilities Pooled Budget,Direct Payments South Team,Other Agency and Contracted Services,57401,Direct Payments,07/01/2015,3301849141,1101.6,WK3 Advance Housing & Support
http://statistics.data.gov.uk/id/local-authority/38,Oxfordshire County Council,Learning  Disabilities Pooled Budget,Direct Payments South Team,Other Agency and Contracted Services,57401,Direct Payments,07/01/2015,3301849144,907.2,WK3 Advance Housing & Support
http://statistics.data.gov.uk/id/local-authority/38,Oxfordshire County Council,Learning  Disabilities Pooled Budget,Direct Payments South Team,Other Agency and Contracted Services,57401,Direct Payments,07/01/2015,3301849145,705.6,WK3 Advance Housing & Support
http://statistics.data.gov.uk/id/local-authority/38,Oxfordshire County Council,Learning  Disabilities Pooled Budget,Direct Payments North Team,Other Agency and Contracted Services,57401,Direct Payments,07/01/2015,3301849146,705.68,WK3 Advance Housing & Support
http://statistics.data.gov.uk/id/local-authority/38,Oxfordshire County Council,Learning  Disabilities Pooled Budget,Direct Payments South Team,Other Agency and Contracted Services,57401,Direct Payments,07/01/2015,3301849147,5040,WK3 Advance Housing & Support
http://statistics.data.gov.uk/id/local-authority/38,Oxfordshire County Council,Learning  Disabilities Pooled Budget,Direct Payments South Team,Other Agency and Contracted Services,57401,Direct Payments,07/01/2015,3301849148,777.6,WK3 Advance Housing & Support
http://statistics.data.gov.uk/id/local-authority/38,Oxfordshire County Council,"Older People, Phys Disabilities & Equip",Community Support Budget - Didcot,Other Agency and Contracted Services,57401,Direct Payments,07/01/2015,3301849149,1476,WK3 Advance Housing & Support
http://statistics.data.gov.uk/id/local-authority/38,Oxfordshire County Council,"Older People, Phys Disabilities & Equip",PD Comm Supp Purchasg Budget - Thame,Other Agency and Contracted Services,57401,Direct Payments,07/01/2015,3301849150,1340,WK3 Advance Housing & Support
http://statistics.data.gov.uk/id/local-authority/38,Oxfordshire County Council,"Older People, Phys Disabilities & Equip",PD Comm Supp Purchasg Budget - Thame,Other Agency and Contracted Services,57401,Direct Payments,07/01/2015,3301849150,1340,WK3 Advance Housing & Support
http://statistics.data.gov.uk/id/local-authority/38,Oxfordshire County Council,"Older People, Phys Disabilities & Equip",PD Comm Supp Purchasg Budget - Thame,Other Agency and Contracted Services,57401,Direct Payments,07/01/2015,3301849150,-904,WK3 Advance Housing & Support
http://statistics.data.gov.uk/id/local-authority/38,Oxfordshire County Council,"Older People, Phys Disabilities & Equip",PD Comm Supp Budget - Banbury,Other Agency and Contracted Services,57401,Direct Payments,07/01/2015,3301849153,1073.6,WK3 Advance Housing & Support
http://statistics.data.gov.uk/id/local-authority/38,Oxfordshire County Council,"Older People, Phys Disabilities & Equip",PD Comm Supp Budget - Banbury,Other Agency and Contracted Services,57401,Direct Payments,07/01/2015,3301849153,1303.66,WK3 Advance Housing & Support
http://statistics.data.gov.uk/id/local-authority/38,Oxfordshire County Council,"Older People, Phys Disabilities & Equip",PD Comm Supp Budget - Banbury,Other Agency and Contracted Services,57401,Direct Payments,07/01/2015,3301849153,-1060.8,WK3 Advance Housing & Support
http://statistics.data.gov.uk/id/local-authority/38,Oxfordshire County Council,"Older People, Phys Disabilities & Equip",PD Comm Supp Budgt - Bicester/Kidlington,Other Agency and Contracted Services,57401,Direct Payments,07/01/2015,3301849154,1015.2,WK3 Advance Housing & Support
http://statistics.data.gov.uk/id/local-authority/38,Oxfordshire County Council,"Older People, Phys Disabilities & Equip",PD Comm Supp Budget - Banbury,Other Agency and Contracted Services,57401,Direct Payments,07/01/2015,3301849155,1000,WK3 Advance Housing & Support
http://statistics.data.gov.uk/id/local-authority/38,Oxfordshire County Council,Learning  Disabilities Pooled Budget,Direct Payments North Team,Other Agency and Contracted Services,57401,Direct Payments,07/01/2015,3301849156,7973,WK3 Advance Housing & Support
http://statistics.data.gov.uk/id/local-authority/38,Oxfordshire County Council,"Older People, Phys Disabilities & Equip",Community Support Budget - Banbury,Other Agency and Contracted Services,57401,Direct Payments,07/01/2015,3301849157,612,WK3 Advance Housing & Support
http://statistics.data.gov.uk/id/local-authority/38,Oxfordshire County Council,"Older People, Phys Disabilities & Equip",Community Support Budget - Banbury,Other Agency and Contracted Services,57401,Direct Payments,07/01/2015,3301849158,1020,WK3 Advance Housing & Support
http://statistics.data.gov.uk/id/local-authority/38,Oxfordshire County Council,"Older People, Phys Disabilities & Equip",Community Support Budget - Banbury,Other Agency and Contracted Services,57401,Direct Payments,07/01/2015,3301849160,1556,WK3 Advance Housing & Support
http://statistics.data.gov.uk/id/local-authority/38,Oxfordshire County Council,Learning  Disabilities Pooled Budget,Direct Payments North Team,Other Agency and Contracted Services,57401,Direct Payments,07/01/2015,3301849162,4224,WK3 Advance Housing & Support
http://statistics.data.gov.uk/id/local-authority/38,Oxfordshire County Council,"Older People, Phys Disabilities & Equip",Community Support Budget - Banbury,Other Agency and Contracted Services,57401,Direct Payments,07/01/2015,3301849163,1920,WK3 Advance Housing & Support
http://statistics.data.gov.uk/id/local-authority/38,Oxfordshire County Council,"Older People, Phys Disabilities & Equip",PD Comm Supp Budget - Banbury,Other Agency and Contracted Services,57401,Direct Payments,07/01/2015,3301849165,548,WK3 Advance Housing & Support
http://statistics.data.gov.uk/id/local-authority/38,Oxfordshire County Council,"Older People, Phys Disabilities & Equip",PD CS Purch Budget - Health S28a JC,Other Agency and Contracted Services,57401,Direct Payments,07/01/2015,3301849166,1456,WK3 Advance Housing & Support
http://statistics.data.gov.uk/id/local-authority/38,Oxfordshire County Council,"Older People, Phys Disabilities & Equip",PD Comm Supp Budget - Banbury,Other Agency and Contracted Services,57401,Direct Payments,07/01/2015,3301849166,4824,WK3 Advance Housing & Support
http://statistics.data.gov.uk/id/local-authority/38,Oxfordshire County Council,"Older People, Phys Disabilities & Equip",PD Comm Supp Purchasg Budget - City,Other Agency and Contracted Services,57401,Direct Payments,07/01/2015,3301849169,662.96,WK3 Advance Housing & Support
http://statistics.data.gov.uk/id/local-authority/38,Oxfordshire County Council,"Older People, Phys Disabilities & Equip",PD Comm Supp Purchasg Budget - Witney,Other Agency and Contracted Services,57401,Direct Payments,07/01/2015,3301849170,876,WK3 Advance Housing & Support
http://statistics.data.gov.uk/id/local-authority/38,Oxfordshire County Council,Learning  Disabilities Pooled Budget,Direct Payments North Team,Other Agency and Contracted Services,57401,Direct Payments,07/01/2015,3301849172,600,WK3 Advance Housing & Support
http://statistics.data.gov.uk/id/local-authority/38,Oxfordshire County Council,"Older People, Phys Disabilities & Equip",Community Support Budget - Banbury,Other Agency and Contracted Services,57401,Direct Payments,07/01/2015,3301849173,1011.2,WK3 Advance Housing & Support
http://statistics.data.gov.uk/id/local-authority/38,Oxfordshire County Council,"Older People, Phys Disabilities & Equip",Community Support Budget - Witney,Other Agency and Contracted Services,57401,Direct Payments,07/01/2015,3301849175,1714.8,WK3 Advance Housing & Support
http://statistics.data.gov.uk/id/local-authority/38,Oxfordshire County Council,"Older People, Phys Disabilities & Equip",Carers Break / Respite Project,Other Agency and Contracted Services,57401,Direct Payments,07/01/2015,3301849227,600,REDACTED PERSONAL DATA
http://statistics.data.gov.uk/id/local-authority/38,Oxfordshire County Council,"Older People, Phys Disabilities & Equip",Carers Break / Respite Project,Other Agency and Contracted Services,57401,Direct Payments,07/01/2015,3301849230,600,REDACTED PERSONAL DATA
http://statistics.data.gov.uk/id/local-authority/38,Oxfordshire County Council,"Older People, Phys Disabilities & Equip",Carers Break / Respite Project,Other Agency and Contracted Services,57401,Direct Payments,07/01/2015,3301849232,600,REDACTED PERSONAL DATA
http://statistics.data.gov.uk/id/local-authority/38,Oxfordshire County Council,"Older People, Phys Disabilities & Equip",Carers Break / Respite Project,Other Agency and Contracted Services,57401,Direct Payments,07/01/2015,3301849233,600,REDACTED PERSONAL DATA
http://statistics.data.gov.uk/id/local-authority/38,Oxfordshire County Council,Learning  Disabilities Pooled Budget,OCCG Carers,Other Agency and Contracted Services,57401,Direct Payments,07/01/2015,3301849235,600,REDACTED PERSONAL DATA
http://statistics.data.gov.uk/id/local-authority/38,Oxfordshire County Council,"Older People, Phys Disabilities & Equip",Carers Break / Respite Project,Other Agency and Contracted Services,57401,Direct Payments,07/01/2015,3301849240,600,REDACTED PERSONAL DATA
http://statistics.data.gov.uk/id/local-authority/38,Oxfordshire County Council,"Older People, Phys Disabilities & Equip",Carers Break / Respite Project,Other Agency and Contracted Services,57401,Direct Payments,07/01/2015,3301849243,600,REDACTED PERSONAL DATA
http://statistics.data.gov.uk/id/local-authority/38,Oxfordshire County Council,"Older People, Phys Disabilities & Equip",Carers Break / Respite Project,Other Agency and Contracted Services,57401,Direct Payments,07/01/2015,3301849246,600,REDACTED PERSONAL DATA
http://statistics.data.gov.uk/id/local-authority/38,Oxfordshire County Council,"Older People, Phys Disabilities & Equip",Life Of Your Own Grant West,Other Agency and Contracted Services,57401,Direct Payments,07/01/2015,3301849248,600,REDACTED PERSONAL DATA
http://statistics.data.gov.uk/id/local-authority/38,Oxfordshire County Council,Learning  Disabilities Pooled Budget,Direct Payments North Team,Other Agency and Contracted Services,57401,Direct Payments,07/01/2015,3301849254,2400,REDACTED PERSONAL DATA
http://statistics.data.gov.uk/id/local-authority/38,Oxfordshire County Council,Personal Budgets,Personal Budgets OP CHERWELL,Other Agency and Contracted Services,57401,Direct Payments,07/01/2015,3301849324,4600.91,1 Off Advance Housing & Support
http://statistics.data.gov.uk/id/local-authority/38,Oxfordshire County Council,"Older People, Phys Disabilities & Equip",Carers Break / Respite Project,Other Agency and Contracted Services,57401,Direct Payments,07/01/2015,3301849357,600,REDACTED PERSONAL DATA
http://statistics.data.gov.uk/id/local-authority/38,Oxfordshire County Council,STD Insurance,Motor Fleet,Motor Insurance Fund Rev AC,Z5151,Motor IF Own Damage,07/01/2015,3301849397,1086.54,AWP Body Repairs
http://statistics.data.gov.uk/id/local-authority/38,Oxfordshire County Council,Children's Social Care,Countywide Adoptin & Fostering Team,Services,44500,Other Hired & Contract Services,07/01/2015,3301849398,614.4,Bruce Newman
http://statistics.data.gov.uk/id/local-authority/38,Oxfordshire County Council,Personal Budgets,Personal Budgets LD City,Other Agency and Contracted Services,57401,Direct Payments,07/01/2015,3301849451,871,WK1 Advance Housing & Support
http://statistics.data.gov.uk/id/local-authority/38,Oxfordshire County Council,Commercial Services,Traffic Signals Maintenance,Private Contractors,56202,Maint Costs 2nd Sche,15/01/2015,3301849496,553.76,SSE Contracting Ltd
http://statistics.data.gov.uk/id/local-authority/38,Oxfordshire County Council,"Older People, Phys Disabilities & Equip",Community Support Budget - Witney,Other Agency and Contracted Services,57401,Direct Payments,09/01/2015,3301849968,3697,WK2 Advance Housing & Support
http://statistics.data.gov.uk/id/local-authority/38,Oxfordshire County Council,Children's Social Care,Service Manager - Disabilities,Other Agency and Contracted Services,57401,Direct Payments,12/01/2015,3301850250,579.87,REDACTED PERSONAL DATA
http://statistics.data.gov.uk/id/local-authority/38,Oxfordshire County Council,Commercial Services,"Electrical NP Rds, Street Lighting",Private Contractors,56400,Major Contracts,12/01/2015,3301850342,555.06,Southern Electric Contracting Ltd.
http://statistics.data.gov.uk/id/local-authority/38,Oxfordshire County Council,"Older People, Phys Disabilities & Equip",Life Of Your Own Grant West,Other Agency and Contracted Services,57401,Direct Payments,12/01/2015,3301850378,600,REDACTED PERSONAL DATA
http://statistics.data.gov.uk/id/local-authority/38,Oxfordshire County Council,"Older People, Phys Disabilities & Equip",Carers Break / Respite Project,Other Agency and Contracted Services,57401,Direct Payments,12/01/2015,3301850381,600,REDACTED PERSONAL DATA
http://statistics.data.gov.uk/id/local-authority/38,Oxfordshire County Council,"Older People, Phys Disabilities & Equip",Carers Break / Respite Project,Other Agency and Contracted Services,57401,Direct Payments,12/01/2015,3301850383,600,REDACTED PERSONAL DATA
http://statistics.data.gov.uk/id/local-authority/38,Oxfordshire County Council,"Older People, Phys Disabilities & Equip",Life Of Your Own Grant West,Other Agency and Contracted Services,57401,Direct Payments,12/01/2015,3301850385,600,REDACTED PERSONAL DATA
http://statistics.data.gov.uk/id/local-authority/38,Oxfordshire County Council,"Older People, Phys Disabilities & Equip",Carers Break / Respite Project,Other Agency and Contracted Services,57401,Direct Payments,12/01/2015,3301850388,600,REDACTED PERSONAL DATA
http://statistics.data.gov.uk/id/local-authority/38,Oxfordshire County Council,"Older People, Phys Disabilities & Equip",Life Of Your Own Grant South,Other Agency and Contracted Services,57401,Direct Payments,12/01/2015,3301850390,600,REDACTED PERSONAL DATA
http://statistics.data.gov.uk/id/local-authority/38,Oxfordshire County Council,Adult Social Care,MH Carers Grant,Other Agency and Contracted Services,57401,Direct Payments,12/01/2015,3301850397,600,REDACTED PERSONAL DATA
http://statistics.data.gov.uk/id/local-authority/38,Oxfordshire County Council,Commercial Services,Traffic Signals Maintenance,Private Contractors,56202,Maint Costs 2nd Sche,12/01/2015,3301850462,3785.42,SIEMENS PLC
http://statistics.data.gov.uk/id/local-authority/38,Oxfordshire County Council,"Older People, Phys Disabilities & Equip",Community Support Budget - Didcot,Other Agency and Contracted Services,57401,Direct Payments,12/01/2015,3301850477,2061,1 Off Advance Housing & Support
http://statistics.data.gov.uk/id/local-authority/38,Oxfordshire County Council,Adult Social Care,MH Community Sup't,Other Agency and Contracted Services,57401,Direct Payments,12/01/2015,3301850478,3582.51,REDACTED PERSONAL DATA
http://statistics.data.gov.uk/id/local-authority/38,Oxfordshire County Council,Commercial Services,"Electrical NP Rds, Street Lighting",Private Contractors,56400,Major Contracts,13/01/2015,3301850525,9561.21,Southern Electric Contracting Ltd.
http://statistics.data.gov.uk/id/local-authority/38,Oxfordshire County Council,Commercial Services,"Electrical NP Rds, Street Lighting",Private Contractors,56400,Major Contracts,13/01/2015,3301850526,682.64,Southern Electric Contracting Ltd.
http://statistics.data.gov.uk/id/local-authority/38,Oxfordshire County Council,Commercial Services,"Electrical NP Rds, Street Lighting",Private Contractors,56400,Major Contracts,13/01/2015,3301850527,1033.58,Southern Electric Contracting Ltd.
http://statistics.data.gov.uk/id/local-authority/38,Oxfordshire County Council,Commercial Services,"Electrical NP Rds, Street Lighting",Private Contractors,56400,Major Contracts,13/01/2015,3301850529,1033.5,Southern Electric Contracting Ltd.
http://statistics.data.gov.uk/id/local-authority/38,Oxfordshire County Council,Commercial Services,"Electrical NP Rds, Street Lighting",Private Contractors,56400,Major Contracts,13/01/2015,3301850531,1163.24,Southern Electric Contracting Ltd.
http://statistics.data.gov.uk/id/local-authority/38,Oxfordshire County Council,Commercial Services,"Electrical NP Rds, Street Lighting",Private Contractors,56400,Major Contracts,13/01/2015,3301850532,1834.98,Southern Electric Contracting Ltd.
http://statistics.data.gov.uk/id/local-authority/38,Oxfordshire County Council,Commercial Services,"Electrical NP Rds, Street Lighting",Private Contractors,56700,Electrical Main Energy,13/01/2015,3301850533,1654.8,Southern Electric Contracting Ltd.
http://statistics.data.gov.uk/id/local-authority/38,Oxfordshire County Council,Commercial Services,"Electrical Prin Rds, illuminated Signs",Private Contractors,56400,Major Contracts,13/01/2015,3301850534,1361.63,Southern Electric Contracting Ltd.
http://statistics.data.gov.uk/id/local-authority/38,Oxfordshire County Council,Commercial Services,"Electrical NP Rds, Street Lighting",Private Contractors,56400,Major Contracts,13/01/2015,3301850590,831.5,Southern Electric Contracting Ltd.
http://statistics.data.gov.uk/id/local-authority/38,Oxfordshire County Council,Commercial Services,"Electrical NP Rds, Street Lighting",Private Contractors,56400,Major Contracts,13/01/2015,3301850594,898.44,Southern Electric Contracting Ltd.
http://statistics.data.gov.uk/id/local-authority/38,Oxfordshire County Council,Commercial Services,"Electrical Prin Rds, illuminated Signs",Private Contractors,56400,Major Contracts,13/01/2015,3301850600,2117.12,Southern Electric Contracting Ltd.
http://statistics.data.gov.uk/id/local-authority/38,Oxfordshire County Council,"Older People, Phys Disabilities & Equip",OP Pool Continuing Care Delegated Health,Other Agency and Contracted Services,57300,Home Support (Ext) OS&HCD,13/01/2015,3301850629,591,REDACTED PERSONAL DATA
http://statistics.data.gov.uk/id/local-authority/38,Oxfordshire County Council,"Older People, Phys Disabilities & Equip",PD Comm Supp Purchasg Budget - Thame,Other Agency and Contracted Services,57401,Direct Payments,14/01/2015,3301850891,4120,WK4 Advance Housing & Support
http://statistics.data.gov.uk/id/local-authority/38,Oxfordshire County Council,"Older People, Phys Disabilities & Equip",PD Comm Supp Purchasg Budget - Witney,Other Agency and Contracted Services,57401,Direct Payments,14/01/2015,3301850893,856,WK4 Advance Housing & Support
http://statistics.data.gov.uk/id/local-authority/38,Oxfordshire County Council,"Older People, Phys Disabilities & Equip",Community Support Budget - Witney,Other Agency and Contracted Services,57401,Direct Payments,14/01/2015,3301850894,684,WK4 Advance Housing & Support
http://statistics.data.gov.uk/id/local-authority/38,Oxfordshire County Council,"Older People, Phys Disabilities & Equip",PD Comm Supp Purchasg Budget - Didcot,Other Agency and Contracted Services,57401,Direct Payments,14/01/2015,3301850896,1320,WK4 Advance Housing & Support
http://statistics.data.gov.uk/id/local-authority/38,Oxfordshire County Council,"Older People, Phys Disabilities & Equip",OP Pool Continuing Care Delegated Health,Other Agency and Contracted Services,57401,Direct Payments,14/01/2015,3301850897,919.36,WK4 Advance Housing & Support
http://statistics.data.gov.uk/id/local-authority/38,Oxfordshire County Council,"Older People, Phys Disabilities & Equip",Community Support Budget - City,Other Agency and Contracted Services,57401,Direct Payments,14/01/2015,3301850897,2532.64,WK4 Advance Housing & Support
http://statistics.data.gov.uk/id/local-authority/38,Oxfordshire County Council,"Older People, Phys Disabilities & Equip",Community Support Budget - Banbury,Other Agency and Contracted Services,57401,Direct Payments,14/01/2015,3301850900,1048,WK4 Advance Housing & Support
http://statistics.data.gov.uk/id/local-authority/38,Oxfordshire County Council,"Older People, Phys Disabilities & Equip",Community Support Budget - Witney,Other Agency and Contracted Services,57401,Direct Payments,14/01/2015,3301850901,1160,WK4 Advance Housing & Support
http://statistics.data.gov.uk/id/local-authority/38,Oxfordshire County Council,"Older People, Phys Disabilities & Equip",Community Support Budget - Witney,Other Agency and Contracted Services,57401,Direct Payments,14/01/2015,3301850904,928,WK4 Advance Housing & Support
http://statistics.data.gov.uk/id/local-authority/38,Oxfordshire County Council,"Older People, Phys Disabilities & Equip",Community Support Budget - Banbury,Other Agency and Contracted Services,57401,Direct Payments,14/01/2015,3301850905,1505.32,WK4 Advance Housing & Support
http://statistics.data.gov.uk/id/local-authority/38,Oxfordshire County Council,"Older People, Phys Disabilities & Equip",Community Support Budget - Chipping Nort,Other Agency and Contracted Services,57401,Direct Payments,14/01/2015,3301850907,1024,WK4 Advance Housing & Support
http://statistics.data.gov.uk/id/local-authority/38,Oxfordshire County Council,"Older People, Phys Disabilities & Equip",Community Support Budget - City,Other Agency and Contracted Services,57401,Direct Payments,14/01/2015,3301850908,515.2,WK4 Advance Housing & Support
http://statistics.data.gov.uk/id/local-authority/38,Oxfordshire County Council,"Older People, Phys Disabilities & Equip",Community Support Budget - Thame,Other Agency and Contracted Services,57401,Direct Payments,14/01/2015,3301850909,2665.2,WK4 Advance Housing & Support
http://statistics.data.gov.uk/id/local-authority/38,Oxfordshire County Council,Learning  Disabilities Pooled Budget,Direct Payments South Team,Other Agency and Contracted Services,57401,Direct Payments,14/01/2015,3301850913,1696,WK4 Advance Housing & Support
http://statistics.data.gov.uk/id/local-authority/38,Oxfordshire County Council,"Older People, Phys Disabilities & Equip",PD Comm Supp Purchasg Budget - Wantage,Other Agency and Contracted Services,57401,Direct Payments,14/01/2015,3301850914,1240,WK4 Advance Housing & Support
http://statistics.data.gov.uk/id/local-authority/38,Oxfordshire County Council,"Older People, Phys Disabilities & Equip",Personal Health Budgets PD (PCT),Other Agency and Contracted Services,57401,Direct Payments,14/01/2015,3301850915,8441.36,WK4 Advance Housing & Support
http://statistics.data.gov.uk/id/local-authority/38,Oxfordshire County Council,"Older People, Phys Disabilities & Equip",Community Support Budget - City,Other Agency and Contracted Services,57401,Direct Payments,14/01/2015,3301850916,560,WK4 Advance Housing & Support
http://statistics.data.gov.uk/id/local-authority/38,Oxfordshire County Council,Learning  Disabilities Pooled Budget,Direct Payments City Team,Other Agency and Contracted Services,57401,Direct Payments,14/01/2015,3301850918,548,WK4 Advance Housing & Support
http://statistics.data.gov.uk/id/local-authority/38,Oxfordshire County Council,"Older People, Phys Disabilities & Equip",PD Comm Supp Budget - Banbury,Other Agency and Contracted Services,57401,Direct Payments,14/01/2015,3301850919,1085.6,WK4 Advance Housing & Support
http://statistics.data.gov.uk/id/local-authority/38,Oxfordshire County Council,"Older People, Phys Disabilities & Equip",PD Comm Supp Purchasg Budget - Didcot,Other Agency and Contracted Services,57401,Direct Payments,14/01/2015,3301850920,812,WK4 Advance Housing & Support
http://statistics.data.gov.uk/id/local-authority/38,Oxfordshire County Council,"Older People, Phys Disabilities & Equip",Community Support Budget - Didcot,Other Agency and Contracted Services,57401,Direct Payments,14/01/2015,3301850921,1160,WK4 Advance Housing & Support
http://statistics.data.gov.uk/id/local-authority/38,Oxfordshire County Council,Learning  Disabilities Pooled Budget,Direct Payments South Team,Other Agency and Contracted Services,57401,Direct Payments,14/01/2015,3301850922,933.24,WK4 Advance Housing & Support
http://statistics.data.gov.uk/id/local-authority/38,Oxfordshire County Council,Learning  Disabilities Pooled Budget,Direct Payments City Team,Other Agency and Contracted Services,57401,Direct Payments,14/01/2015,3301850923,1789.48,WK4 Advance Housing & Support
http://statistics.data.gov.uk/id/local-authority/38,Oxfordshire County Council,"Older People, Phys Disabilities & Equip",Community Support Budget - Didcot,Other Agency and Contracted Services,57401,Direct Payments,14/01/2015,3301850924,3100,WK4 Advance Housing & Support
http://statistics.data.gov.uk/id/local-authority/38,Oxfordshire County Council,"Older People, Phys Disabilities & Equip",PD Community Support Budget - Kidlington,Other Agency and Contracted Services,57401,Direct Payments,14/01/2015,3301850925,1900,WK4 Advance Housing & Support
http://statistics.data.gov.uk/id/local-authority/38,Oxfordshire County Council,"Older People, Phys Disabilities & Equip",Community Support Budget - City,Other Agency and Contracted Services,57401,Direct Payments,14/01/2015,3301850927,824,WK4 Advance Housing & Support
http://statistics.data.gov.uk/id/local-authority/38,Oxfordshire County Council,"Older People, Phys Disabilities & Equip",PD Comm Supp Purchasg Budget - Abingdon,Other Agency and Contracted Services,57401,Direct Payments,14/01/2015,3301850928,684,WK4 Advance Housing & Support
http://statistics.data.gov.uk/id/local-authority/38,Oxfordshire County Council,"Older People, Phys Disabilities & Equip",PD Comm Supp Budget - Banbury,Other Agency and Contracted Services,57401,Direct Payments,14/01/2015,3301850929,1024,WK4 Advance Housing & Support
http://statistics.data.gov.uk/id/local-authority/38,Oxfordshire County Council,"Older People, Phys Disabilities & Equip",Community Support Budget - Banbury,Other Agency and Contracted Services,57401,Direct Payments,14/01/2015,3301850930,520,WK4 Advance Housing & Support
http://statistics.data.gov.uk/id/local-authority/38,Oxfordshire County Council,"Older People, Phys Disabilities & Equip",PD Community Support Budget - Faringdon,Other Agency and Contracted Services,57401,Direct Payments,14/01/2015,3301850932,1215.2,WK4 Advance Housing & Support
http://statistics.data.gov.uk/id/local-authority/38,Oxfordshire County Council,"Older People, Phys Disabilities & Equip",PD Comm Supp Purchasg Budget - Henley,Other Agency and Contracted Services,57401,Direct Payments,14/01/2015,3301850933,2512,WK4 Advance Housing & Support
http://statistics.data.gov.uk/id/local-authority/38,Oxfordshire County Council,"Older People, Phys Disabilities & Equip",PD Comm Supp Purchasg Budget - Didcot,Other Agency and Contracted Services,57401,Direct Payments,14/01/2015,3301850934,1904,WK4 Advance Housing & Support
http://statistics.data.gov.uk/id/local-authority/38,Oxfordshire County Council,Learning  Disabilities Pooled Budget,Direct Payments North Team,Other Agency and Contracted Services,57401,Direct Payments,14/01/2015,3301850935,2000,WK4 Advance Housing & Support
http://statistics.data.gov.uk/id/local-authority/38,Oxfordshire County Council,"Older People, Phys Disabilities & Equip",PD Comm Supp Purchasg Budget - City,Other Agency and Contracted Services,57401,Direct Payments,14/01/2015,3301850936,916,WK4 Advance Housing & Support
http://statistics.data.gov.uk/id/local-authority/38,Oxfordshire County Council,"Older People, Phys Disabilities & Equip",Community Support Budget - Banbury,Other Agency and Contracted Services,57401,Direct Payments,14/01/2015,3301850937,753.6,WK4 Advance Housing & Support
http://statistics.data.gov.uk/id/local-authority/38,Oxfordshire County Council,"Older People, Phys Disabilities & Equip",PD Comm Supp Purchasg Budget - Thame,Other Agency and Contracted Services,57401,Direct Payments,14/01/2015,3301850939,3552,WK4 Advance Housing & Support
http://statistics.data.gov.uk/id/local-authority/38,Oxfordshire County Council,"Older People, Phys Disabilities & Equip",Community Support Budget - Abingdon,Other Agency and Contracted Services,57401,Direct Payments,14/01/2015,3301850940,1320,WK4 Advance Housing & Support
http://statistics.data.gov.uk/id/local-authority/38,Oxfordshire County Council,"Older People, Phys Disabilities & Equip",Community Support Budget - Wantage,Other Agency and Contracted Services,57401,Direct Payments,14/01/2015,3301850941,1053.6,WK4 Advance Housing & Support
http://statistics.data.gov.uk/id/local-authority/38,Oxfordshire County Council,"Older People, Phys Disabilities & Equip",PD Comm Supp Purchasg Budget - Witney,Other Agency and Contracted Services,57401,Direct Payments,14/01/2015,3301850942,2895.52,WK4 Advance Housing & Support
http://statistics.data.gov.uk/id/local-authority/38,Oxfordshire County Council,"Older People, Phys Disabilities & Equip",PD Comm Supp Budget - Banbury,Other Agency and Contracted Services,57401,Direct Payments,14/01/2015,3301850943,788,WK4 Advance Housing & Support
http://statistics.data.gov.uk/id/local-authority/38,Oxfordshire County Council,"Older People, Phys Disabilities & Equip",PD Comm Supp Budgt - Bicester/Kidlington,Other Agency and Contracted Services,57401,Direct Payments,14/01/2015,3301850946,1208,WK4 Advance Housing & Support
http://statistics.data.gov.uk/id/local-authority/38,Oxfordshire County Council,"Older People, Phys Disabilities & Equip",Community Support Budget - City,Other Agency and Contracted Services,57401,Direct Payments,14/01/2015,3301850947,580,WK4 Advance Housing & Support
http://statistics.data.gov.uk/id/local-authority/38,Oxfordshire County Council,"Older People, Phys Disabilities & Equip",Community Support Budget - Banbury,Other Agency and Contracted Services,57401,Direct Payments,14/01/2015,3301850949,1644,WK4 Advance Housing & Support
http://statistics.data.gov.uk/id/local-authority/38,Oxfordshire County Council,"Older People, Phys Disabilities & Equip",Community Support Budget - Banbury,Other Agency and Contracted Services,57401,Direct Payments,14/01/2015,3301850952,836,WK4 Advance Housing & Support
http://statistics.data.gov.uk/id/local-authority/38,Oxfordshire County Council,"Older People, Phys Disabilities & Equip",Community Support Budget - City,Other Agency and Contracted Services,57401,Direct Payments,14/01/2015,3301850955,658.04,WK4 Advance Housing & Support
http://statistics.data.gov.uk/id/local-authority/38,Oxfordshire County Council,"Older People, Phys Disabilities & Equip",PD Comm Supp Purchasg Budget - City,Other Agency and Contracted Services,57401,Direct Payments,14/01/2015,3301850956,1143.16,WK4 Advance Housing & Support
http://statistics.data.gov.uk/id/local-authority/38,Oxfordshire County Council,"Older People, Phys Disabilities & Equip",Personal Health Budgets PD (PCT),Other Agency and Contracted Services,57401,Direct Payments,14/01/2015,3301850957,3167.04,WK4 Advance Housing & Support
http://statistics.data.gov.uk/id/local-authority/38,Oxfordshire County Council,"Older People, Phys Disabilities & Equip",PD Community Support Budget - Kidlington,Other Agency and Contracted Services,57401,Direct Payments,14/01/2015,3301850958,1264,WK4 Advance Housing & Support
http://statistics.data.gov.uk/id/local-authority/38,Oxfordshire County Council,"Older People, Phys Disabilities & Equip",Community Support Budget - Henley,Other Agency and Contracted Services,57401,Direct Payments,14/01/2015,3301850959,1200,WK4 Advance Housing & Support
http://statistics.data.gov.uk/id/local-authority/38,Oxfordshire County Council,"Older People, Phys Disabilities & Equip",Community Support Budget - Banbury,Other Agency and Contracted Services,57401,Direct Payments,14/01/2015,3301850960,1240,WK4 Advance Housing & Support
http://statistics.data.gov.uk/id/local-authority/38,Oxfordshire County Council,"Older People, Phys Disabilities & Equip",Community Support Budget - Banbury,Other Agency and Contracted Services,57401,Direct Payments,14/01/2015,3301850961,2368,WK4 Advance Housing & Support
http://statistics.data.gov.uk/id/local-authority/38,Oxfordshire County Council,"Older People, Phys Disabilities & Equip",PD Comm Supp Purchasg Budget - Thame,Other Agency and Contracted Services,57401,Direct Payments,14/01/2015,3301850963,1067.4,WK4 Advance Housing & Support
http://statistics.data.gov.uk/id/local-authority/38,Oxfordshire County Council,"Older People, Phys Disabilities & Equip",Community Support Budget - Witney,Other Agency and Contracted Services,57401,Direct Payments,14/01/2015,3301850964,1084,WK4 Advance Housing & Support
http://statistics.data.gov.uk/id/local-authority/38,Oxfordshire County Council,Adult Social Care,MH Community Sup't,Other Agency and Contracted Services,57401,Direct Payments,14/01/2015,3301850965,683.04,WK4 Advance Housing & Support
http://statistics.data.gov.uk/id/local-authority/38,Oxfordshire County Council,"Older People, Phys Disabilities & Equip",PD Comm Supp Budget - Banbury,Other Agency and Contracted Services,57401,Direct Payments,14/01/2015,3301850966,3904,WK4 Advance Housing & Support
http://statistics.data.gov.uk/id/local-authority/38,Oxfordshire County Council,"Older People, Phys Disabilities & Equip",Community Support Budget - Witney,Other Agency and Contracted Services,57401,Direct Payments,14/01/2015,3301850967,1836,WK4 Advance Housing & Support
http://statistics.data.gov.uk/id/local-authority/38,Oxfordshire County Council,"Older People, Phys Disabilities & Equip",Community Support Budget - Thame,Other Agency and Contracted Services,57401,Direct Payments,14/01/2015,3301850968,788,WK4 Advance Housing & Support
http://statistics.data.gov.uk/id/local-authority/38,Oxfordshire County Council,"Older People, Phys Disabilities & Equip",PD Comm Supp Purchasg Budget - Witney,Other Agency and Contracted Services,57401,Direct Payments,14/01/2015,3301850969,524,WK4 Advance Housing & Support
http://statistics.data.gov.uk/id/local-authority/38,Oxfordshire County Council,"Older People, Phys Disabilities & Equip",PD Comm Supp Purchasg Budget - City,Other Agency and Contracted Services,57401,Direct Payments,14/01/2015,3301850972,3152,WK4 Advance Housing & Support
http://statistics.data.gov.uk/id/local-authority/38,Oxfordshire County Council,"Older People, Phys Disabilities & Equip",Community Support Budget - Abingdon,Other Agency and Contracted Services,57401,Direct Payments,14/01/2015,3301850973,-959,WK4 Advance Housing & Support
http://statistics.data.gov.uk/id/local-authority/38,Oxfordshire County Council,"Older People, Phys Disabilities & Equip",Community Support Budget - Abingdon,Other Agency and Contracted Services,57401,Direct Payments,14/01/2015,3301850973,1169,WK4 Advance Housing & Support
http://statistics.data.gov.uk/id/local-authority/38,Oxfordshire County Council,"Older People, Phys Disabilities & Equip",Community Support Budget - Abingdon,Other Agency and Contracted Services,57401,Direct Payments,14/01/2015,3301850973,668,WK4 Advance Housing & Support
http://statistics.data.gov.uk/id/local-authority/38,Oxfordshire County Council,"Older People, Phys Disabilities & Equip",PD Comm Supp Budget - Banbury,Other Agency and Contracted Services,57401,Direct Payments,14/01/2015,3301850975,616,WK4 Advance Housing & Support
http://statistics.data.gov.uk/id/local-authority/38,Oxfordshire County Council,"Older People, Phys Disabilities & Equip",Community Support Budget - Thame,Other Agency and Contracted Services,57401,Direct Payments,14/01/2015,3301850976,1244,WK4 Advance Housing & Support
http://statistics.data.gov.uk/id/local-authority/38,Oxfordshire County Council,"Older People, Phys Disabilities & Equip",Community Support Budget - Thame,Other Agency and Contracted Services,57401,Direct Payments,14/01/2015,3301850976,533.14,WK4 Advance Housing & Support
http://statistics.data.gov.uk/id/local-authority/38,Oxfordshire County Council,"Older People, Phys Disabilities & Equip",Community Support Budget - Thame,Other Agency and Contracted Services,57401,Direct Payments,14/01/2015,3301850977,2308,WK4 Advance Housing & Support
http://statistics.data.gov.uk/id/local-authority/38,Oxfordshire County Council,"Older People, Phys Disabilities & Equip",Community Support Budget - Banbury,Other Agency and Contracted Services,57401,Direct Payments,14/01/2015,3301850978,1956,WK4 Advance Housing & Support
http://statistics.data.gov.uk/id/local-authority/38,Oxfordshire County Council,"Older People, Phys Disabilities & Equip",Community Support Budget - Didcot,Other Agency and Contracted Services,57401,Direct Payments,14/01/2015,3301850979,2804,WK4 Advance Housing & Support
http://statistics.data.gov.uk/id/local-authority/38,Oxfordshire County Council,"Older People, Phys Disabilities & Equip",Community Support Budget - Bicester,Other Agency and Contracted Services,57401,Direct Payments,14/01/2015,3301850980,1060,WK4 Advance Housing & Support
http://statistics.data.gov.uk/id/local-authority/38,Oxfordshire County Council,"Older People, Phys Disabilities & Equip",PD Comm Supp Budget - Banbury,Other Agency and Contracted Services,57401,Direct Payments,14/01/2015,3301850981,924,WK4 Advance Housing & Support
http://statistics.data.gov.uk/id/local-authority/38,Oxfordshire County Council,"Older People, Phys Disabilities & Equip",Community Support Budget - Banbury,Other Agency and Contracted Services,57401,Direct Payments,14/01/2015,3301850982,560.32,WK4 Advance Housing & Support
http://statistics.data.gov.uk/id/local-authority/38,Oxfordshire County Council,"Older People, Phys Disabilities & Equip",Community Support Budget - Banbury,Other Agency and Contracted Services,57401,Direct Payments,14/01/2015,3301850983,1055.2,WK4 Advance Housing & Support
http://statistics.data.gov.uk/id/local-authority/38,Oxfordshire County Council,"Older People, Phys Disabilities & Equip",Community Support Budget - City,Other Agency and Contracted Services,57401,Direct Payments,14/01/2015,3301850984,916,WK4 Advance Housing & Support
http://statistics.data.gov.uk/id/local-authority/38,Oxfordshire County Council,"Older People, Phys Disabilities & Equip",Community Support Budget - Faringdon,Other Agency and Contracted Services,57401,Direct Payments,14/01/2015,3301850985,2336.12,WK4 Advance Housing & Support
http://statistics.data.gov.uk/id/local-authority/38,Oxfordshire County Council,"Older People, Phys Disabilities & Equip",Community Support Budget - Thame,Other Agency and Contracted Services,57401,Direct Payments,14/01/2015,3301850987,1632,WK4 Advance Housing & Support
http://statistics.data.gov.uk/id/local-authority/38,Oxfordshire County Council,"Older People, Phys Disabilities & Equip",Community Support Budget - Banbury,Other Agency and Contracted Services,57401,Direct Payments,14/01/2015,3301850988,2332,WK4 Advance Housing & Support
http://statistics.data.gov.uk/id/local-authority/38,Oxfordshire County Council,"Older People, Phys Disabilities & Equip",Community Support Budget - Abingdon,Other Agency and Contracted Services,57401,Direct Payments,14/01/2015,3301850990,635.2,WK4 Advance Housing & Support
http://statistics.data.gov.uk/id/local-authority/38,Oxfordshire County Council,"Older People, Phys Disabilities & Equip",Community Support Budget - Abingdon,Other Agency and Contracted Services,57401,Direct Payments,14/01/2015,3301850991,1228,WK4 Advance Housing & Support
http://statistics.data.gov.uk/id/local-authority/38,Oxfordshire County Council,"Older People, Phys Disabilities & Equip",Community Support Budget - City,Other Agency and Contracted Services,57401,Direct Payments,14/01/2015,3301850992,1300,WK4 Advance Housing & Support
http://statistics.data.gov.uk/id/local-authority/38,Oxfordshire County Council,"Older People, Phys Disabilities & Equip",Community Support Budget - Chipping Nort,Other Agency and Contracted Services,57401,Direct Payments,14/01/2015,3301850993,1432,WK4 Advance Housing & Support
http://statistics.data.gov.uk/id/local-authority/38,Oxfordshire County Council,"Older People, Phys Disabilities & Equip",Community Support Budget - Banbury,Other Agency and Contracted Services,57401,Direct Payments,14/01/2015,3301850994,880,WK4 Advance Housing & Support
http://statistics.data.gov.uk/id/local-authority/38,Oxfordshire County Council,"Older People, Phys Disabilities & Equip",Community Support Budget - Henley,Other Agency and Contracted Services,57401,Direct Payments,14/01/2015,3301850995,932,WK4 Advance Housing & Support
http://statistics.data.gov.uk/id/local-authority/38,Oxfordshire County Council,"Older People, Phys Disabilities & Equip",Community Support Budget - Bicester,Other Agency and Contracted Services,57401,Direct Payments,14/01/2015,3301850998,1052.8,WK4 Advance Housing & Support
http://statistics.data.gov.uk/id/local-authority/38,Oxfordshire County Council,"Older People, Phys Disabilities & Equip",PD Comm Supp Purchasg Budget - Didcot,Other Agency and Contracted Services,57401,Direct Payments,14/01/2015,3301850999,928,WK4 Advance Housing & Support
http://statistics.data.gov.uk/id/local-authority/38,Oxfordshire County Council,"Older People, Phys Disabilities & Equip",PD Comm Supp Purchasg Budget - Witney,Other Agency and Contracted Services,57401,Direct Payments,14/01/2015,3301851000,1188.12,WK4 Advance Housing & Support
http://statistics.data.gov.uk/id/local-authority/38,Oxfordshire County Council,"Older People, Phys Disabilities & Equip",Community Support Budget - Abingdon,Other Agency and Contracted Services,57401,Direct Payments,14/01/2015,3301851002,948,WK4 Advance Housing & Support
http://statistics.data.gov.uk/id/local-authority/38,Oxfordshire County Council,"Older People, Phys Disabilities & Equip",Community Support Budget - City,Other Agency and Contracted Services,57401,Direct Payments,14/01/2015,3301851003,1108,WK4 Advance Housing & Support
http://statistics.data.gov.uk/id/local-authority/38,Oxfordshire County Council,"Older People, Phys Disabilities & Equip",PHB OP Package,Other Agency and Contracted Services,57401,Direct Payments,14/01/2015,3301851004,4832.04,WK4 Advance Housing & Support
http://statistics.data.gov.uk/id/local-authority/38,Oxfordshire County Council,"Older People, Phys Disabilities & Equip",Community Support Budget - City,Other Agency and Contracted Services,57401,Direct Payments,14/01/2015,3301851005,2692,WK4 Advance Housing & Support
http://statistics.data.gov.uk/id/local-authority/38,Oxfordshire County Council,"Older People, Phys Disabilities & Equip",Community Support Budget - Banbury,Other Agency and Contracted Services,57401,Direct Payments,14/01/2015,3301851007,603.2,WK4 Advance Housing & Support
http://statistics.data.gov.uk/id/local-authority/38,Oxfordshire County Council,"Older People, Phys Disabilities & Equip",PD Comm Supp Purchasg Budget - City,Other Agency and Contracted Services,57401,Direct Payments,14/01/2015,3301851008,1048,WK4 Advance Housing & Support
http://statistics.data.gov.uk/id/local-authority/38,Oxfordshire County Council,"Older People, Phys Disabilities & Equip",PD CS Purch Budget - Health S28a JC,Other Agency and Contracted Services,57401,Direct Payments,14/01/2015,3301851009,1064,WK4 Advance Housing & Support
http://statistics.data.gov.uk/id/local-authority/38,Oxfordshire County Council,Learning  Disabilities Pooled Budget,Direct Payments North Team,Other Agency and Contracted Services,57401,Direct Payments,14/01/2015,3301851010,1268,WK4 Advance Housing & Support
http://statistics.data.gov.uk/id/local-authority/38,Oxfordshire County Council,"Older People, Phys Disabilities & Equip",Community Support Budget - Bicester,Other Agency and Contracted Services,57401,Direct Payments,14/01/2015,3301851011,1028,WK4 Advance Housing & Support
http://statistics.data.gov.uk/id/local-authority/38,Oxfordshire County Council,Learning  Disabilities Pooled Budget,Direct Payments City Team,Other Agency and Contracted Services,57401,Direct Payments,14/01/2015,3301851012,2882.4,WK4 Advance Housing & Support
http://statistics.data.gov.uk/id/local-authority/38,Oxfordshire County Council,"Older People, Phys Disabilities & Equip",Community Support Budget - Wantage,Other Agency and Contracted Services,57401,Direct Payments,14/01/2015,3301851013,1048.84,WK4 Advance Housing & Support
http://statistics.data.gov.uk/id/local-authority/38,Oxfordshire County Council,"Older People, Phys Disabilities & Equip",Community Support Budget - Wantage,Other Agency and Contracted Services,57401,Direct Payments,14/01/2015,3301851013,519.2,WK4 Advance Housing & Support
http://statistics.data.gov.uk/id/local-authority/38,Oxfordshire County Council,"Older People, Phys Disabilities & Equip",Community Support Budget - Abingdon,Other Agency and Contracted Services,57401,Direct Payments,14/01/2015,3301851014,692,WK4 Advance Housing & Support
http://statistics.data.gov.uk/id/local-authority/38,Oxfordshire County Council,Learning  Disabilities Pooled Budget,Direct Payments City Team,Other Agency and Contracted Services,57401,Direct Payments,14/01/2015,3301851015,1365.84,WK4 Advance Housing & Support
http://statistics.data.gov.uk/id/local-authority/38,Oxfordshire County Council,"Older People, Phys Disabilities & Equip",PD Comm Supp Budgt - Bicester/Kidlington,Other Agency and Contracted Services,57401,Direct Payments,14/01/2015,3301851016,3128,WK4 Advance Housing & Support
http://statistics.data.gov.uk/id/local-authority/38,Oxfordshire County Council,"Older People, Phys Disabilities & Equip",PD Community Support Budget - Faringdon,Other Agency and Contracted Services,57401,Direct Payments,14/01/2015,3301851017,804,WK4 Advance Housing & Support
http://statistics.data.gov.uk/id/local-authority/38,Oxfordshire County Council,"Older People, Phys Disabilities & Equip",PD Community Support Budget - Faringdon,Other Agency and Contracted Services,57401,Direct Payments,14/01/2015,3301851017,516.86,WK4 Advance Housing & Support
http://statistics.data.gov.uk/id/local-authority/38,Oxfordshire County Council,"Older People, Phys Disabilities & Equip",PD Community Support Budget - Faringdon,Other Agency and Contracted Services,57401,Direct Payments,14/01/2015,3301851017,-727.71,WK4 Advance Housing & Support
http://statistics.data.gov.uk/id/local-authority/38,Oxfordshire County Council,"Older People, Phys Disabilities & Equip",Community Support Budget - Thame,Other Agency and Contracted Services,57401,Direct Payments,14/01/2015,3301851018,2568,WK4 Advance Housing & Support
http://statistics.data.gov.uk/id/local-authority/38,Oxfordshire County Council,Learning  Disabilities Pooled Budget,Direct Payments City Team,Other Agency and Contracted Services,57401,Direct Payments,14/01/2015,3301851019,660,WK4 Advance Housing & Support
http://statistics.data.gov.uk/id/local-authority/38,Oxfordshire County Council,"Older People, Phys Disabilities & Equip",Community Support Budget - Kidlington,Other Agency and Contracted Services,57401,Direct Payments,14/01/2015,3301851020,512,WK4 Advance Housing & Support
http://statistics.data.gov.uk/id/local-authority/38,Oxfordshire County Council,"Older People, Phys Disabilities & Equip",PD Comm Supp Purchasg Budget - Abingdon,Other Agency and Contracted Services,57401,Direct Payments,14/01/2015,3301851021,868,WK4 Advance Housing & Support
http://statistics.data.gov.uk/id/local-authority/38,Oxfordshire County Council,"Older People, Phys Disabilities & Equip",Community Support Budget - Abingdon,Other Agency and Contracted Services,57401,Direct Payments,14/01/2015,3301851022,1240,WK4 Advance Housing & Support
http://statistics.data.gov.uk/id/local-authority/38,Oxfordshire County Council,"Older People, Phys Disabilities & Equip",Community Support Budget - Witney,Other Agency and Contracted Services,57401,Direct Payments,14/01/2015,3301851023,512,WK4 Advance Housing & Support
http://statistics.data.gov.uk/id/local-authority/38,Oxfordshire County Council,Learning  Disabilities Pooled Budget,Direct Payments North Team,Other Agency and Contracted Services,57401,Direct Payments,14/01/2015,3301851024,600,WK4 Advance Housing & Support
http://statistics.data.gov.uk/id/local-authority/38,Oxfordshire County Council,"Older People, Phys Disabilities & Equip",Community Support Budget - Banbury,Other Agency and Contracted Services,57401,Direct Payments,14/01/2015,3301851025,1008,WK4 Advance Housing & Support
http://statistics.data.gov.uk/id/local-authority/38,Oxfordshire County Council,"Older People, Phys Disabilities & Equip",PD Comm Supp Purchasg Budget - Witney,Other Agency and Contracted Services,57401,Direct Payments,14/01/2015,3301851026,1372,WK4 Advance Housing & Support
http://statistics.data.gov.uk/id/local-authority/38,Oxfordshire County Council,Learning  Disabilities Pooled Budget,Direct Payments City Team,Other Agency and Contracted Services,57401,Direct Payments,14/01/2015,3301851027,658,WK4 Advance Housing & Support
http://statistics.data.gov.uk/id/local-authority/38,Oxfordshire County Council,Learning  Disabilities Pooled Budget,Direct Payments North Team,Other Agency and Contracted Services,57401,Direct Payments,14/01/2015,3301851028,2745.24,WK4 Advance Housing & Support
http://statistics.data.gov.uk/id/local-authority/38,Oxfordshire County Council,"Older People, Phys Disabilities & Equip",Community Support Budget - Chipping Nort,Other Agency and Contracted Services,57401,Direct Payments,14/01/2015,3301851029,848,WK4 Advance Housing & Support
http://statistics.data.gov.uk/id/local-authority/38,Oxfordshire County Council,"Older People, Phys Disabilities & Equip",Community Support Budget - Banbury,Other Agency and Contracted Services,57401,Direct Payments,14/01/2015,3301851030,2696,WK4 Advance Housing & Support
http://statistics.data.gov.uk/id/local-authority/38,Oxfordshire County Council,"Older People, Phys Disabilities & Equip",Community Support Budget - Banbury,Other Agency and Contracted Services,57401,Direct Payments,14/01/2015,3301851031,800,WK4 Advance Housing & Support
http://statistics.data.gov.uk/id/local-authority/38,Oxfordshire County Council,"Older People, Phys Disabilities & Equip",Community Support Budget - Banbury,Other Agency and Contracted Services,57401,Direct Payments,14/01/2015,3301851032,668,WK4 Advance Housing & Support
http://statistics.data.gov.uk/id/local-authority/38,Oxfordshire County Council,Learning  Disabilities Pooled Budget,Direct Payments South Team,Other Agency and Contracted Services,57401,Direct Payments,14/01/2015,3301851033,3212.48,WK4 Advance Housing & Support
http://statistics.data.gov.uk/id/local-authority/38,Oxfordshire County Council,Learning  Disabilities Pooled Budget,Direct Payments South Team,Other Agency and Contracted Services,57401,Direct Payments,14/01/2015,3301851033,3900.87,WK4 Advance Housing & Support
http://statistics.data.gov.uk/id/local-authority/38,Oxfordshire County Council,Learning  Disabilities Pooled Budget,Direct Payments South Team,Other Agency and Contracted Services,57401,Direct Payments,14/01/2015,3301851033,-1425.67,WK4 Advance Housing & Support
http://statistics.data.gov.uk/id/local-authority/38,Oxfordshire County Council,"Older People, Phys Disabilities & Equip",PD Community Support Budget - Kidlington,Other Agency and Contracted Services,57401,Direct Payments,14/01/2015,3301851036,1040,WK4 Advance Housing & Support
http://statistics.data.gov.uk/id/local-authority/38,Oxfordshire County Council,Learning  Disabilities Pooled Budget,Direct Payments North Team,Other Agency and Contracted Services,57401,Direct Payments,14/01/2015,3301851037,572,WK4 Advance Housing & Support
http://statistics.data.gov.uk/id/local-authority/38,Oxfordshire County Council,"Older People, Phys Disabilities & Equip",Community Support Budget - Banbury,Other Agency and Contracted Services,57401,Direct Payments,14/01/2015,3301851038,1512,WK4 Advance Housing & Support
http://statistics.data.gov.uk/id/local-authority/38,Oxfordshire County Council,"Older People, Phys Disabilities & Equip",PD Comm Supp Purchasg Budget - City,Other Agency and Contracted Services,57401,Direct Payments,14/01/2015,3301851039,600,WK4 Advance Housing & Support
http://statistics.data.gov.uk/id/local-authority/38,Oxfordshire County Council,"Older People, Phys Disabilities & Equip",Community Support Budget - Witney,Other Agency and Contracted Services,57401,Direct Payments,14/01/2015,3301851040,828,WK4 Advance Housing & Support
http://statistics.data.gov.uk/id/local-authority/38,Oxfordshire County Council,"Older People, Phys Disabilities & Equip",Community Support Budget - Thame,Other Agency and Contracted Services,57401,Direct Payments,14/01/2015,3301851043,688,WK4 Advance Housing & Support
http://statistics.data.gov.uk/id/local-authority/38,Oxfordshire County Council,"Older People, Phys Disabilities & Equip",Community Support Budget - Abingdon,Other Agency and Contracted Services,57401,Direct Payments,14/01/2015,3301851044,1564,WK4 Advance Housing & Support
http://statistics.data.gov.uk/id/local-authority/38,Oxfordshire County Council,"Older People, Phys Disabilities & Equip",PD Comm Supp Purchasg Budget - Abingdon,Other Agency and Contracted Services,57401,Direct Payments,14/01/2015,3301851046,1772,WK4 Advance Housing & Support
http://statistics.data.gov.uk/id/local-authority/38,Oxfordshire County Council,Learning  Disabilities Pooled Budget,Direct Payments South Team,Other Agency and Contracted Services,57401,Direct Payments,14/01/2015,3301851047,1743.4,WK4 Advance Housing & Support
http://statistics.data.gov.uk/id/local-authority/38,Oxfordshire County Council,"Older People, Phys Disabilities & Equip",PD Comm Supp Purchasg Budget - City,Other Agency and Contracted Services,57401,Direct Payments,14/01/2015,3301851048,4944,WK4 Advance Housing & Support
http://statistics.data.gov.uk/id/local-authority/38,Oxfordshire County Council,"Older People, Phys Disabilities & Equip",Community Support Budget - Banbury,Other Agency and Contracted Services,57401,Direct Payments,14/01/2015,3301851050,852,WK4 Advance Housing & Support
http://statistics.data.gov.uk/id/local-authority/38,Oxfordshire County Council,"Older People, Phys Disabilities & Equip",Community Support Budget - Chipping Nort,Other Agency and Contracted Services,57401,Direct Payments,14/01/2015,3301851051,576,WK4 Advance Housing & Support
http://statistics.data.gov.uk/id/local-authority/38,Oxfordshire County Council,Learning  Disabilities Pooled Budget,Direct Payments South Team,Other Agency and Contracted Services,57401,Direct Payments,14/01/2015,3301851054,1344,WK4 Advance Housing & Support
http://statistics.data.gov.uk/id/local-authority/38,Oxfordshire County Council,Learning  Disabilities Pooled Budget,Direct Payments North Team,Other Agency and Contracted Services,57401,Direct Payments,14/01/2015,3301851055,1463.84,WK4 Advance Housing & Support
http://statistics.data.gov.uk/id/local-authority/38,Oxfordshire County Council,"Older People, Phys Disabilities & Equip",Community Support Budget - Abingdon,Other Agency and Contracted Services,57401,Direct Payments,14/01/2015,3301851056,1016.32,WK4 Advance Housing & Support
http://statistics.data.gov.uk/id/local-authority/38,Oxfordshire County Council,"Older People, Phys Disabilities & Equip",Community Support Budget - Abingdon,Other Agency and Contracted Services,57401,Direct Payments,14/01/2015,3301851056,508.16,WK4 Advance Housing & Support
http://statistics.data.gov.uk/id/local-authority/38,Oxfordshire County Council,"Older People, Phys Disabilities & Equip",Community Support Budget - Banbury,Other Agency and Contracted Services,57401,Direct Payments,14/01/2015,3301851059,1041.6,WK4 Advance Housing & Support
http://statistics.data.gov.uk/id/local-authority/38,Oxfordshire County Council,"Older People, Phys Disabilities & Equip",PD Comm Supp Purchasg Budget - City,Other Agency and Contracted Services,57401,Direct Payments,14/01/2015,3301851060,1060,WK4 Advance Housing & Support
http://statistics.data.gov.uk/id/local-authority/38,Oxfordshire County Council,"Older People, Phys Disabilities & Equip",Community Support Budget - Bicester,Other Agency and Contracted Services,57401,Direct Payments,14/01/2015,3301851062,1024,WK4 Advance Housing & Support
http://statistics.data.gov.uk/id/local-authority/38,Oxfordshire County Council,"Older People, Phys Disabilities & Equip",PD Community Support Budget - Kidlington,Other Agency and Contracted Services,57401,Direct Payments,14/01/2015,3301851064,840,WK4 Advance Housing & Support
http://statistics.data.gov.uk/id/local-authority/38,Oxfordshire County Council,"Older People, Phys Disabilities & Equip",Community Support Budget - Henley,Other Agency and Contracted Services,57401,Direct Payments,14/01/2015,3301851065,564,WK4 Advance Housing & Support
http://statistics.data.gov.uk/id/local-authority/38,Oxfordshire County Council,"Older People, Phys Disabilities & Equip",PD Comm Supp Purchasg Budget - Abingdon,Other Agency and Contracted Services,57401,Direct Payments,14/01/2015,3301851066,572,WK4 Advance Housing & Support
http://statistics.data.gov.uk/id/local-authority/38,Oxfordshire County Council,"Older People, Phys Disabilities & Equip",Community Support Budget - Didcot,Other Agency and Contracted Services,57401,Direct Payments,14/01/2015,3301851067,680,WK4 Advance Housing & Support
http://statistics.data.gov.uk/id/local-authority/38,Oxfordshire County Council,"Older People, Phys Disabilities & Equip",PD Comm Supp Purchasg Budget - City,Other Agency and Contracted Services,57401,Direct Payments,14/01/2015,3301851068,1480,WK4 Advance Housing & Support
http://statistics.data.gov.uk/id/local-authority/38,Oxfordshire County Council,"Older People, Phys Disabilities & Equip",Community Support Budget - Banbury,Other Agency and Contracted Services,57401,Direct Payments,14/01/2015,3301851069,3348,WK4 Advance Housing & Support
http://statistics.data.gov.uk/id/local-authority/38,Oxfordshire County Council,Learning  Disabilities Pooled Budget,Direct Payments South Team,Other Agency and Contracted Services,57401,Direct Payments,14/01/2015,3301851070,877.4,WK4 Advance Housing & Support
http://statistics.data.gov.uk/id/local-authority/38,Oxfordshire County Council,Learning  Disabilities Pooled Budget,Direct Payments City Team,Other Agency and Contracted Services,57401,Direct Payments,14/01/2015,3301851071,1195.08,WK4 Advance Housing & Support
http://statistics.data.gov.uk/id/local-authority/38,Oxfordshire County Council,"Older People, Phys Disabilities & Equip",Community Support Budget - Faringdon,Other Agency and Contracted Services,57401,Direct Payments,14/01/2015,3301851072,1004,WK4 Advance Housing & Support
http://statistics.data.gov.uk/id/local-authority/38,Oxfordshire County Council,"Older People, Phys Disabilities & Equip",PD Comm Supp Budgt - Bicester/Kidlington,Other Agency and Contracted Services,57401,Direct Payments,14/01/2015,3301851077,2688,WK4 Advance Housing & Support
http://statistics.data.gov.uk/id/local-authority/38,Oxfordshire County Council,"Older People, Phys Disabilities & Equip",Community Support Budget - Banbury,Other Agency and Contracted Services,57401,Direct Payments,14/01/2015,3301851078,908,WK4 Advance Housing & Support
http://statistics.data.gov.uk/id/local-authority/38,Oxfordshire County Council,"Older People, Phys Disabilities & Equip",Community Support Budget - Abingdon,Other Agency and Contracted Services,57401,Direct Payments,14/01/2015,3301851079,914.8,WK4 Advance Housing & Support
http://statistics.data.gov.uk/id/local-authority/38,Oxfordshire County Council,"Older People, Phys Disabilities & Equip",PD Comm Supp Purchasg Budget - City,Other Agency and Contracted Services,57401,Direct Payments,14/01/2015,3301851080,1072,WK4 Advance Housing & Support
http://statistics.data.gov.uk/id/local-authority/38,Oxfordshire County Council,"Older People, Phys Disabilities & Equip",PD Comm Supp Purchasg Budget - Witney,Other Agency and Contracted Services,57401,Direct Payments,14/01/2015,3301851081,1792,WK4 Advance Housing & Support
http://statistics.data.gov.uk/id/local-authority/38,Oxfordshire County Council,"Older People, Phys Disabilities & Equip",PD Comm Supp Purchasg Budget - Witney,Other Agency and Contracted Services,57401,Direct Payments,14/01/2015,3301851081,2176,WK4 Advance Housing & Support
http://statistics.data.gov.uk/id/local-authority/38,Oxfordshire County Council,"Older People, Phys Disabilities & Equip",PD Comm Supp Purchasg Budget - Witney,Other Agency and Contracted Services,57401,Direct Payments,14/01/2015,3301851081,-3103.71,WK4 Advance Housing & Support
http://statistics.data.gov.uk/id/local-authority/38,Oxfordshire County Council,"Older People, Phys Disabilities & Equip",Community Support Budget - Kidlington,Other Agency and Contracted Services,57401,Direct Payments,14/01/2015,3301851082,728,WK4 Advance Housing & Support
http://statistics.data.gov.uk/id/local-authority/38,Oxfordshire County Council,"Older People, Phys Disabilities & Equip",Community Support Budget - Abingdon,Other Agency and Contracted Services,57401,Direct Payments,14/01/2015,3301851083,720,WK4 Advance Housing & Support
http://statistics.data.gov.uk/id/local-authority/38,Oxfordshire County Council,"Older People, Phys Disabilities & Equip",PD Community Support Budget - Kidlington,Other Agency and Contracted Services,57401,Direct Payments,14/01/2015,3301851084,1400,WK4 Advance Housing & Support
http://statistics.data.gov.uk/id/local-authority/38,Oxfordshire County Council,"Older People, Phys Disabilities & Equip",Community Support Budget - Bicester,Other Agency and Contracted Services,57401,Direct Payments,14/01/2015,3301851086,1400,WK4 Advance Housing & Support
http://statistics.data.gov.uk/id/local-authority/38,Oxfordshire County Council,"Older People, Phys Disabilities & Equip",PD Comm Supp Purchasg Budget - Witney,Other Agency and Contracted Services,57401,Direct Payments,14/01/2015,3301851088,1420,WK4 Advance Housing & Support
http://statistics.data.gov.uk/id/local-authority/38,Oxfordshire County Council,"Older People, Phys Disabilities & Equip",Community Support Budget - Witney,Other Agency and Contracted Services,57401,Direct Payments,14/01/2015,3301851090,1548.16,WK4 Advance Housing & Support
http://statistics.data.gov.uk/id/local-authority/38,Oxfordshire County Council,"Older People, Phys Disabilities & Equip",Community Support Budget - Witney,Other Agency and Contracted Services,57401,Direct Payments,14/01/2015,3301851092,2360,WK4 Advance Housing & Support
http://statistics.data.gov.uk/id/local-authority/38,Oxfordshire County Council,Learning  Disabilities Pooled Budget,Direct Payments North Team,Other Agency and Contracted Services,57401,Direct Payments,14/01/2015,3301851094,1808,WK4 Advance Housing & Support
http://statistics.data.gov.uk/id/local-authority/38,Oxfordshire County Council,Learning  Disabilities Pooled Budget,Direct Payments North Team,Other Agency and Contracted Services,57401,Direct Payments,14/01/2015,3301851095,814.16,WK4 Advance Housing & Support
http://statistics.data.gov.uk/id/local-authority/38,Oxfordshire County Council,Learning  Disabilities Pooled Budget,Direct Payments North Team,Other Agency and Contracted Services,57401,Direct Payments,14/01/2015,3301851096,782.48,WK4 Advance Housing & Support
http://statistics.data.gov.uk/id/local-authority/38,Oxfordshire County Council,"Older People, Phys Disabilities & Equip",Community Support Budget - Witney,Other Agency and Contracted Services,57401,Direct Payments,14/01/2015,3301851098,944,WK4 Advance Housing & Support
http://statistics.data.gov.uk/id/local-authority/38,Oxfordshire County Council,Learning  Disabilities Pooled Budget,Direct Payments South Team,Other Agency and Contracted Services,57401,Direct Payments,14/01/2015,3301851099,1014.16,WK4 Advance Housing & Support
http://statistics.data.gov.uk/id/local-authority/38,Oxfordshire County Council,"Older People, Phys Disabilities & Equip",Community Support Budget - Abingdon,Other Agency and Contracted Services,57401,Direct Payments,14/01/2015,3301851100,1624,WK4 Advance Housing & Support
http://statistics.data.gov.uk/id/local-authority/38,Oxfordshire County Council,"Older People, Phys Disabilities & Equip",Community Support Budget - Abingdon,Other Agency and Contracted Services,57401,Direct Payments,14/01/2015,3301851101,1420,WK4 Advance Housing & Support
http://statistics.data.gov.uk/id/local-authority/38,Oxfordshire County Council,Learning  Disabilities Pooled Budget,Direct Payments South Team,Other Agency and Contracted Services,57401,Direct Payments,14/01/2015,3301851102,1203.6,WK4 Advance Housing & Support
http://statistics.data.gov.uk/id/local-authority/38,Oxfordshire County Council,"Older People, Phys Disabilities & Equip",Community Support Budget - Abingdon,Other Agency and Contracted Services,57401,Direct Payments,14/01/2015,3301851103,552.64,WK4 Advance Housing & Support
http://statistics.data.gov.uk/id/local-authority/38,Oxfordshire County Council,"Older People, Phys Disabilities & Equip",PD Comm Supp Purchasg Budget - City,Other Agency and Contracted Services,57401,Direct Payments,14/01/2015,3301851106,2072,WK4 Advance Housing & Support
http://statistics.data.gov.uk/id/local-authority/38,Oxfordshire County Council,Learning  Disabilities Pooled Budget,Direct Payments South Team,Other Agency and Contracted Services,57401,Direct Payments,14/01/2015,3301851107,10116.92,WK4 Advance Housing & Support
http://statistics.data.gov.uk/id/local-authority/38,Oxfordshire County Council,"Older People, Phys Disabilities & Equip",Community Support Budget - City,Other Agency and Contracted Services,57401,Direct Payments,14/01/2015,3301851108,1680,WK4 Advance Housing & Support
http://statistics.data.gov.uk/id/local-authority/38,Oxfordshire County Council,"Older People, Phys Disabilities & Equip",PD Comm Supp Purchasg Budget - City,Other Agency and Contracted Services,57401,Direct Payments,14/01/2015,3301851109,612,WK4 Advance Housing & Support
http://statistics.data.gov.uk/id/local-authority/38,Oxfordshire County Council,Learning  Disabilities Pooled Budget,Direct Payments North Team,Other Agency and Contracted Services,57401,Direct Payments,14/01/2015,3301851110,3256,WK4 Advance Housing & Support
http://statistics.data.gov.uk/id/local-authority/38,Oxfordshire County Council,"Older People, Phys Disabilities & Equip",PD Comm Supp Purchasg Budget - City,Other Agency and Contracted Services,57401,Direct Payments,14/01/2015,3301851112,573.2,WK4 Advance Housing & Support
http://statistics.data.gov.uk/id/local-authority/38,Oxfordshire County Council,"Older People, Phys Disabilities & Equip",PD Comm Supp Purchasg Budget - City,Other Agency and Contracted Services,57401,Direct Payments,14/01/2015,3301851113,1921.44,WK4 Advance Housing & Support
http://statistics.data.gov.uk/id/local-authority/38,Oxfordshire County Council,Learning  Disabilities Pooled Budget,Direct Payments City Team,Other Agency and Contracted Services,57401,Direct Payments,14/01/2015,3301851114,1428.72,WK4 Advance Housing & Support
http://statistics.data.gov.uk/id/local-authority/38,Oxfordshire County Council,Learning  Disabilities Pooled Budget,Direct Payments City Team,Other Agency and Contracted Services,57401,Direct Payments,14/01/2015,3301851115,1189.12,WK4 Advance Housing & Support
http://statistics.data.gov.uk/id/local-authority/38,Oxfordshire County Council,Learning  Disabilities Pooled Budget,Direct Payments South Team,Other Agency and Contracted Services,57401,Direct Payments,14/01/2015,3301851116,1189.12,WK4 Advance Housing & Support
http://statistics.data.gov.uk/id/local-authority/38,Oxfordshire County Council,Learning  Disabilities Pooled Budget,Direct Payments South Team,Other Agency and Contracted Services,57401,Direct Payments,14/01/2015,3301851120,3172.12,WK4 Advance Housing & Support
http://statistics.data.gov.uk/id/local-authority/38,Oxfordshire County Council,"Older People, Phys Disabilities & Equip",PD Comm Supp Purchasg Budget - Didcot,Other Agency and Contracted Services,57401,Direct Payments,14/01/2015,3301851121,1532,WK4 Advance Housing & Support
http://statistics.data.gov.uk/id/local-authority/38,Oxfordshire County Council,"Older People, Phys Disabilities & Equip",Community Support Budget - Henley,Other Agency and Contracted Services,57401,Direct Payments,14/01/2015,3301851122,2033.12,WK4 Advance Housing & Support
http://statistics.data.gov.uk/id/local-authority/38,Oxfordshire County Council,"Older People, Phys Disabilities & Equip",Personal Health Budgets PD (PCT),Other Agency and Contracted Services,57401,Direct Payments,14/01/2015,3301851123,10762.8,WK4 Advance Housing & Support
http://statistics.data.gov.uk/id/local-authority/38,Oxfordshire County Council,Learning  Disabilities Pooled Budget,Direct Payments South Team,Other Agency and Contracted Services,57401,Direct Payments,14/01/2015,3301851124,1074.56,WK4 Advance Housing & Support
http://statistics.data.gov.uk/id/local-authority/38,Oxfordshire County Council,Learning  Disabilities Pooled Budget,Direct Payments South Team,Other Agency and Contracted Services,57401,Direct Payments,14/01/2015,3301851125,1300.4,WK4 Advance Housing & Support
http://statistics.data.gov.uk/id/local-authority/38,Oxfordshire County Council,"Older People, Phys Disabilities & Equip",PD Comm Supp Budget - Banbury,Other Agency and Contracted Services,57401,Direct Payments,14/01/2015,3301851126,5500,WK4 Advance Housing & Support
http://statistics.data.gov.uk/id/local-authority/38,Oxfordshire County Council,"Older People, Phys Disabilities & Equip",Community Support Budget - Didcot,Other Agency and Contracted Services,57401,Direct Payments,14/01/2015,3301851127,864,WK4 Advance Housing & Support
http://statistics.data.gov.uk/id/local-authority/38,Oxfordshire County Council,"Older People, Phys Disabilities & Equip",Community Support Budget - Bicester,Other Agency and Contracted Services,57401,Direct Payments,14/01/2015,3301851128,876,WK4 Advance Housing & Support
http://statistics.data.gov.uk/id/local-authority/38,Oxfordshire County Council,"Older People, Phys Disabilities & Equip",Community Support Budget - Kidlington,Other Agency and Contracted Services,57401,Direct Payments,14/01/2015,3301851130,984,WK4 Advance Housing & Support
http://statistics.data.gov.uk/id/local-authority/38,Oxfordshire County Council,"Older People, Phys Disabilities & Equip",Community Support Budget - Kidlington,Other Agency and Contracted Services,57401,Direct Payments,14/01/2015,3301851131,1252,WK4 Advance Housing & Support
http://statistics.data.gov.uk/id/local-authority/38,Oxfordshire County Council,"Older People, Phys Disabilities & Equip",PD Comm Supp Budgt - Bicester/Kidlington,Other Agency and Contracted Services,57401,Direct Payments,14/01/2015,3301851132,705.6,WK4 Advance Housing & Support
http://statistics.data.gov.uk/id/local-authority/38,Oxfordshire County Council,"Older People, Phys Disabilities & Equip",Community Support Budget - Bicester,Other Agency and Contracted Services,57401,Direct Payments,14/01/2015,3301851134,1020,WK4 Advance Housing & Support
http://statistics.data.gov.uk/id/local-authority/38,Oxfordshire County Council,Learning  Disabilities Pooled Budget,Direct Payments City Team,Other Agency and Contracted Services,57401,Direct Payments,14/01/2015,3301851135,9856,WK4 Advance Housing & Support
http://statistics.data.gov.uk/id/local-authority/38,Oxfordshire County Council,"Older People, Phys Disabilities & Equip",PD Comm Supp Budget - Banbury,Other Agency and Contracted Services,57401,Direct Payments,14/01/2015,3301851136,708,WK4 Advance Housing & Support
http://statistics.data.gov.uk/id/local-authority/38,Oxfordshire County Council,"Older People, Phys Disabilities & Equip",Community Support Budget - Banbury,Other Agency and Contracted Services,57401,Direct Payments,14/01/2015,3301851138,640,WK4 Advance Housing & Support
http://statistics.data.gov.uk/id/local-authority/38,Oxfordshire County Council,"Older People, Phys Disabilities & Equip",Community Support Budget - Banbury,Other Agency and Contracted Services,57401,Direct Payments,14/01/2015,3301851139,1912,WK4 Advance Housing & Support
http://statistics.data.gov.uk/id/local-authority/38,Oxfordshire County Council,"Older People, Phys Disabilities & Equip",PD Comm Supp Budget - Banbury,Other Agency and Contracted Services,57401,Direct Payments,14/01/2015,3301851141,841.6,WK4 Advance Housing & Support
http://statistics.data.gov.uk/id/local-authority/38,Oxfordshire County Council,Learning  Disabilities Pooled Budget,Direct Payments North Team,Other Agency and Contracted Services,57401,Direct Payments,14/01/2015,3301851143,744,WK4 Advance Housing & Support
http://statistics.data.gov.uk/id/local-authority/38,Oxfordshire County Council,"Older People, Phys Disabilities & Equip",Community Support Budget - Kidlington,Other Agency and Contracted Services,57401,Direct Payments,14/01/2015,3301851144,600,WK4 Advance Housing & Support
http://statistics.data.gov.uk/id/local-authority/38,Oxfordshire County Council,"Older People, Phys Disabilities & Equip",Community Support Budget - Banbury,Other Agency and Contracted Services,57401,Direct Payments,14/01/2015,3301851145,3584.52,WK4 Advance Housing & Support
http://statistics.data.gov.uk/id/local-authority/38,Oxfordshire County Council,"Older People, Phys Disabilities & Equip",OP Pool Continuing Care Delegated Health,Other Agency and Contracted Services,57401,Direct Payments,14/01/2015,3301851145,735.48,WK4 Advance Housing & Support
http://statistics.data.gov.uk/id/local-authority/38,Oxfordshire County Council,"Older People, Phys Disabilities & Equip",PD Comm Supp Purchasg Budget - Witney,Other Agency and Contracted Services,57401,Direct Payments,14/01/2015,3301851147,588,WK4 Advance Housing & Support
http://statistics.data.gov.uk/id/local-authority/38,Oxfordshire County Council,Learning  Disabilities Pooled Budget,Direct Payments North Team,Other Agency and Contracted Services,57401,Direct Payments,14/01/2015,3301851148,2141.76,WK4 Advance Housing & Support
http://statistics.data.gov.uk/id/local-authority/38,Oxfordshire County Council,"Older People, Phys Disabilities & Equip",Community Support Budget - Didcot,Other Agency and Contracted Services,57401,Direct Payments,14/01/2015,3301851151,1076,WK4 Advance Housing & Support
http://statistics.data.gov.uk/id/local-authority/38,Oxfordshire County Council,"Older People, Phys Disabilities & Equip",Community Support Budget - Didcot,Other Agency and Contracted Services,57401,Direct Payments,14/01/2015,3301851151,538,WK4 Advance Housing & Support
http://statistics.data.gov.uk/id/local-authority/38,Oxfordshire County Council,Learning  Disabilities Pooled Budget,Direct Payments North Team,Other Agency and Contracted Services,57401,Direct Payments,14/01/2015,3301851153,1314.48,WK4 Advance Housing & Support
http://statistics.data.gov.uk/id/local-authority/38,Oxfordshire County Council,"Older People, Phys Disabilities & Equip",Community Support Budget - Abingdon,Other Agency and Contracted Services,57401,Direct Payments,14/01/2015,3301851154,512,WK4 Advance Housing & Support
http://statistics.data.gov.uk/id/local-authority/38,Oxfordshire County Council,"Older People, Phys Disabilities & Equip",PD Comm Supp Purchasg Budget - Witney,Other Agency and Contracted Services,57401,Direct Payments,14/01/2015,3301851155,898,WK4 Advance Housing & Support
http://statistics.data.gov.uk/id/local-authority/38,Oxfordshire County Council,Learning  Disabilities Pooled Budget,Direct Payments North Team,Other Agency and Contracted Services,57401,Direct Payments,14/01/2015,3301851156,1361.4,WK4 Advance Housing & Support
http://statistics.data.gov.uk/id/local-authority/38,Oxfordshire County Council,Learning  Disabilities Pooled Budget,Direct Payments South Team,Other Agency and Contracted Services,57401,Direct Payments,14/01/2015,3301851157,661.8,WK4 Advance Housing & Support
http://statistics.data.gov.uk/id/local-authority/38,Oxfordshire County Council,"Older People, Phys Disabilities & Equip",PD Comm Supp Purchasg Budget - Thame,Other Agency and Contracted Services,57401,Direct Payments,14/01/2015,3301851159,1036,WK4 Advance Housing & Support
http://statistics.data.gov.uk/id/local-authority/38,Oxfordshire County Council,"Older People, Phys Disabilities & Equip",Community Support Budget - Abingdon,Other Agency and Contracted Services,57401,Direct Payments,14/01/2015,3301851160,836,WK4 Advance Housing & Support
http://statistics.data.gov.uk/id/local-authority/38,Oxfordshire County Council,"Older People, Phys Disabilities & Equip",PD Comm Supp Purchasg Budget - City,Other Agency and Contracted Services,57401,Direct Payments,14/01/2015,3301851161,1172,WK4 Advance Housing & Support
http://statistics.data.gov.uk/id/local-authority/38,Oxfordshire County Council,"Older People, Phys Disabilities & Equip",Community Support Budget - Bicester,Other Agency and Contracted Services,57401,Direct Payments,14/01/2015,3301851163,1600,REDACTED PERSONAL DATA
http://statistics.data.gov.uk/id/local-authority/38,Oxfordshire County Council,"Older People, Phys Disabilities & Equip",PD Comm Supp Budgt - Bicester/Kidlington,Other Agency and Contracted Services,57401,Direct Payments,14/01/2015,3301851164,1592,REDACTED PERSONAL DATA
http://statistics.data.gov.uk/id/local-authority/38,Oxfordshire County Council,Learning  Disabilities Pooled Budget,Direct Payments South Team,Other Agency and Contracted Services,57401,Direct Payments,14/01/2015,3301851165,552,REDACTED PERSONAL DATA
http://statistics.data.gov.uk/id/local-authority/38,Oxfordshire County Council,Learning  Disabilities Pooled Budget,Direct Payments South Team,Other Agency and Contracted Services,57401,Direct Payments,14/01/2015,3301851166,720,REDACTED PERSONAL DATA
http://statistics.data.gov.uk/id/local-authority/38,Oxfordshire County Council,"Older People, Phys Disabilities & Equip",PD CS Purch Budget - Health S28a JC,Other Agency and Contracted Services,57401,Direct Payments,14/01/2015,3301851167,804,REDACTED PERSONAL DATA
http://statistics.data.gov.uk/id/local-authority/38,Oxfordshire County Council,"Older People, Phys Disabilities & Equip",PD Comm Supp Purchasg Budget - City,Other Agency and Contracted Services,57401,Direct Payments,14/01/2015,3301851167,2254.88,REDACTED PERSONAL DATA
http://statistics.data.gov.uk/id/local-authority/38,Oxfordshire County Council,"Older People, Phys Disabilities & Equip",Community Support Budget - Banbury,Other Agency and Contracted Services,57401,Direct Payments,14/01/2015,3301851168,1248,REDACTED PERSONAL DATA
http://statistics.data.gov.uk/id/local-authority/38,Oxfordshire County Council,"Older People, Phys Disabilities & Equip",Community Support Budget - Banbury,Other Agency and Contracted Services,57401,Direct Payments,14/01/2015,3301851169,1548,REDACTED PERSONAL DATA
http://statistics.data.gov.uk/id/local-authority/38,Oxfordshire County Council,Learning  Disabilities Pooled Budget,Direct Payments North Team,Other Agency and Contracted Services,57401,Direct Payments,14/01/2015,3301851170,2073.76,REDACTED PERSONAL DATA
http://statistics.data.gov.uk/id/local-authority/38,Oxfordshire County Council,"Older People, Phys Disabilities & Equip",PHB OP Package,Other Agency and Contracted Services,57401,Direct Payments,14/01/2015,3301851171,5682.72,REDACTED PERSONAL DATA
http://statistics.data.gov.uk/id/local-authority/38,Oxfordshire County Council,"Older People, Phys Disabilities & Equip",Personal Health Budgets PD (PCT),Other Agency and Contracted Services,57401,Direct Payments,14/01/2015,3301851172,8695.8,REDACTED PERSONAL DATA
http://statistics.data.gov.uk/id/local-authority/38,Oxfordshire County Council,"Older People, Phys Disabilities & Equip",Community Support Budget - Chipping Nort,Other Agency and Contracted Services,57401,Direct Payments,14/01/2015,3301851173,860,REDACTED PERSONAL DATA
http://statistics.data.gov.uk/id/local-authority/38,Oxfordshire County Council,"Older People, Phys Disabilities & Equip",Community Support Budget - Bicester,Other Agency and Contracted Services,57401,Direct Payments,14/01/2015,3301851174,1172,REDACTED PERSONAL DATA
http://statistics.data.gov.uk/id/local-authority/38,Oxfordshire County Council,Learning  Disabilities Pooled Budget,Direct Payments North Team,Other Agency and Contracted Services,57401,Direct Payments,14/01/2015,3301851175,1141.24,REDACTED PERSONAL DATA
http://statistics.data.gov.uk/id/local-authority/38,Oxfordshire County Council,"Older People, Phys Disabilities & Equip",Community Support Budget - Didcot,Other Agency and Contracted Services,57401,Direct Payments,14/01/2015,3301851176,748,REDACTED PERSONAL DATA
http://statistics.data.gov.uk/id/local-authority/38,Oxfordshire County Council,"Older People, Phys Disabilities & Equip",PD Comm Supp Purchasg Budget - Henley,Other Agency and Contracted Services,57401,Direct Payments,14/01/2015,3301851177,840,REDACTED PERSONAL DATA
http://statistics.data.gov.uk/id/local-authority/38,Oxfordshire County Council,"Older People, Phys Disabilities & Equip",Community Support Budget - Banbury,Other Agency and Contracted Services,57401,Direct Payments,14/01/2015,3301851178,2200,REDACTED PERSONAL DATA
http://statistics.data.gov.uk/id/local-authority/38,Oxfordshire County Council,"Older People, Phys Disabilities & Equip",Community Support Budget - City,Other Agency and Contracted Services,57401,Direct Payments,14/01/2015,3301851179,3083.44,REDACTED PERSONAL DATA
http://statistics.data.gov.uk/id/local-authority/38,Oxfordshire County Council,"Older People, Phys Disabilities & Equip",Community Support Budget - City,Other Agency and Contracted Services,57401,Direct Payments,14/01/2015,3301851180,1424,REDACTED PERSONAL DATA
http://statistics.data.gov.uk/id/local-authority/38,Oxfordshire County Council,"Older People, Phys Disabilities & Equip",Community Support Budget - Chipping Nort,Other Agency and Contracted Services,57401,Direct Payments,14/01/2015,3301851182,652,REDACTED PERSONAL DATA
http://statistics.data.gov.uk/id/local-authority/38,Oxfordshire County Council,"Older People, Phys Disabilities & Equip",Community Support Budget - Didcot,Other Agency and Contracted Services,57401,Direct Payments,14/01/2015,3301851183,920,REDACTED PERSONAL DATA
http://statistics.data.gov.uk/id/local-authority/38,Oxfordshire County Council,"Older People, Phys Disabilities & Equip",PD Community Support Budget - Kidlington,Other Agency and Contracted Services,57401,Direct Payments,14/01/2015,3301851184,3775.2,REDACTED PERSONAL DATA
http://statistics.data.gov.uk/id/local-authority/38,Oxfordshire County Council,"Older People, Phys Disabilities & Equip",PD Comm Supp Budget - Banbury,Other Agency and Contracted Services,57401,Direct Payments,14/01/2015,3301851185,580,REDACTED PERSONAL DATA
http://statistics.data.gov.uk/id/local-authority/38,Oxfordshire County Council,"Older People, Phys Disabilities & Equip",PD Comm Supp Budget - Banbury,Other Agency and Contracted Services,57401,Direct Payments,14/01/2015,3301851186,792,REDACTED PERSONAL DATA
http://statistics.data.gov.uk/id/local-authority/38,Oxfordshire County Council,"Older People, Phys Disabilities & Equip",Community Support Budget - Banbury,Other Agency and Contracted Services,57401,Direct Payments,14/01/2015,3301851187,1848.04,REDACTED PERSONAL DATA
http://statistics.data.gov.uk/id/local-authority/38,Oxfordshire County Council,"Older People, Phys Disabilities & Equip",Community Support Budget - Didcot,Other Agency and Contracted Services,57401,Direct Payments,14/01/2015,3301851188,1820,REDACTED PERSONAL DATA
http://statistics.data.gov.uk/id/local-authority/38,Oxfordshire County Council,"Older People, Phys Disabilities & Equip",Community Support Budget - Banbury,Other Agency and Contracted Services,57401,Direct Payments,14/01/2015,3301851189,2632,REDACTED PERSONAL DATA
http://statistics.data.gov.uk/id/local-authority/38,Oxfordshire County Council,Learning  Disabilities Pooled Budget,Direct Payments South Team,Other Agency and Contracted Services,57401,Direct Payments,14/01/2015,3301851190,1200,REDACTED PERSONAL DATA
http://statistics.data.gov.uk/id/local-authority/38,Oxfordshire County Council,"Older People, Phys Disabilities & Equip",Community Support Budget - Witney,Other Agency and Contracted Services,57401,Direct Payments,14/01/2015,3301851192,1700.32,REDACTED PERSONAL DATA
http://statistics.data.gov.uk/id/local-authority/38,Oxfordshire County Council,"Older People, Phys Disabilities & Equip",Community Support Budget - Bicester,Other Agency and Contracted Services,57401,Direct Payments,14/01/2015,3301851193,2848,REDACTED PERSONAL DATA
http://statistics.data.gov.uk/id/local-authority/38,Oxfordshire County Council,"Older People, Phys Disabilities & Equip",PD Comm Supp Purchasg Budget - Henley,Other Agency and Contracted Services,57401,Direct Payments,14/01/2015,3301851195,776,REDACTED PERSONAL DATA
http://statistics.data.gov.uk/id/local-authority/38,Oxfordshire County Council,"Older People, Phys Disabilities & Equip",Community Support Budget - Didcot,Other Agency and Contracted Services,57401,Direct Payments,14/01/2015,3301851196,1640,REDACTED PERSONAL DATA
http://statistics.data.gov.uk/id/local-authority/38,Oxfordshire County Council,"Older People, Phys Disabilities & Equip",PD CS Purch Budget - Health S28a JC,Other Agency and Contracted Services,57401,Direct Payments,14/01/2015,3301851197,1080,REDACTED PERSONAL DATA
http://statistics.data.gov.uk/id/local-authority/38,Oxfordshire County Council,"Older People, Phys Disabilities & Equip",PD Comm Supp Purchasg Budget - Didcot,Other Agency and Contracted Services,57401,Direct Payments,14/01/2015,3301851197,1416.52,REDACTED PERSONAL DATA
http://statistics.data.gov.uk/id/local-authority/38,Oxfordshire County Council,"Older People, Phys Disabilities & Equip",Community Support Budget - Abingdon,Other Agency and Contracted Services,57401,Direct Payments,14/01/2015,3301851198,3576,REDACTED PERSONAL DATA
http://statistics.data.gov.uk/id/local-authority/38,Oxfordshire County Council,Learning  Disabilities Pooled Budget,Direct Payments North Team,Other Agency and Contracted Services,57401,Direct Payments,14/01/2015,3301851200,916,REDACTED PERSONAL DATA
http://statistics.data.gov.uk/id/local-authority/38,Oxfordshire County Council,Learning  Disabilities Pooled Budget,Direct Payments South Team,Other Agency and Contracted Services,57401,Direct Payments,14/01/2015,3301851201,7883.76,REDACTED PERSONAL DATA
http://statistics.data.gov.uk/id/local-authority/38,Oxfordshire County Council,Learning  Disabilities Pooled Budget,Direct Payments South Team,Other Agency and Contracted Services,57401,Direct Payments,14/01/2015,3301851202,7112.08,REDACTED PERSONAL DATA
http://statistics.data.gov.uk/id/local-authority/38,Oxfordshire County Council,Learning  Disabilities Pooled Budget,Direct Payments South Team,Other Agency and Contracted Services,57401,Direct Payments,14/01/2015,3301851203,3921.52,REDACTED PERSONAL DATA
http://statistics.data.gov.uk/id/local-authority/38,Oxfordshire County Council,"Older People, Phys Disabilities & Equip",Community Support Budget - City,Other Agency and Contracted Services,57401,Direct Payments,14/01/2015,3301851205,2848,REDACTED PERSONAL DATA
http://statistics.data.gov.uk/id/local-authority/38,Oxfordshire County Council,Learning  Disabilities Pooled Budget,Direct Payments South Team,Other Agency and Contracted Services,57401,Direct Payments,14/01/2015,3301851206,556,REDACTED PERSONAL DATA
http://statistics.data.gov.uk/id/local-authority/38,Oxfordshire County Council,Learning  Disabilities Pooled Budget,Direct Payments South Team,Other Agency and Contracted Services,57401,Direct Payments,14/01/2015,3301851208,1956,REDACTED PERSONAL DATA
http://statistics.data.gov.uk/id/local-authority/38,Oxfordshire County Council,"Older People, Phys Disabilities & Equip",PD Comm Supp Purchasg Budget - City,Other Agency and Contracted Services,57401,Direct Payments,14/01/2015,3301851209,2180,REDACTED PERSONAL DATA
http://statistics.data.gov.uk/id/local-authority/38,Oxfordshire County Council,Learning  Disabilities Pooled Budget,Direct Payments North Team,Other Agency and Contracted Services,57401,Direct Payments,14/01/2015,3301851210,2898.32,REDACTED PERSONAL DATA
http://statistics.data.gov.uk/id/local-authority/38,Oxfordshire County Council,Learning  Disabilities Pooled Budget,Direct Payments North Team,Other Agency and Contracted Services,57401,Direct Payments,14/01/2015,3301851211,573.84,REDACTED PERSONAL DATA
http://statistics.data.gov.uk/id/local-authority/38,Oxfordshire County Council,"Older People, Phys Disabilities & Equip",Community Support Budget - Bicester,Other Agency and Contracted Services,57401,Direct Payments,14/01/2015,3301851212,2092,REDACTED PERSONAL DATA
http://statistics.data.gov.uk/id/local-authority/38,Oxfordshire County Council,"Older People, Phys Disabilities & Equip",PD Comm Supp Purchasg Budget - City,Other Agency and Contracted Services,57401,Direct Payments,14/01/2015,3301851213,3556,REDACTED PERSONAL DATA
http://statistics.data.gov.uk/id/local-authority/38,Oxfordshire County Council,Learning  Disabilities Pooled Budget,Direct Payments North Team,Other Agency and Contracted Services,57401,Direct Payments,14/01/2015,3301851214,1370.32,REDACTED PERSONAL DATA
http://statistics.data.gov.uk/id/local-authority/38,Oxfordshire County Council,Learning  Disabilities Pooled Budget,Direct Payments City Team,Other Agency and Contracted Services,57401,Direct Payments,14/01/2015,3301851215,776,REDACTED PERSONAL DATA
http://statistics.data.gov.uk/id/local-authority/38,Oxfordshire County Council,Learning  Disabilities Pooled Budget,Direct Payments South Team,Other Agency and Contracted Services,57401,Direct Payments,14/01/2015,3301851216,1246.08,REDACTED PERSONAL DATA
http://statistics.data.gov.uk/id/local-authority/38,Oxfordshire County Council,Learning  Disabilities Pooled Budget,Direct Payments North Team,Other Agency and Contracted Services,57401,Direct Payments,14/01/2015,3301851217,4493.16,REDACTED PERSONAL DATA
http://statistics.data.gov.uk/id/local-authority/38,Oxfordshire County Council,"Older People, Phys Disabilities & Equip",Community Support Budget - Abingdon,Other Agency and Contracted Services,57401,Direct Payments,14/01/2015,3301851218,1132,REDACTED PERSONAL DATA
http://statistics.data.gov.uk/id/local-authority/38,Oxfordshire County Council,"Older People, Phys Disabilities & Equip",Community Support Budget - Banbury,Other Agency and Contracted Services,57401,Direct Payments,14/01/2015,3301851219,2500,REDACTED PERSONAL DATA
http://statistics.data.gov.uk/id/local-authority/38,Oxfordshire County Council,Learning  Disabilities Pooled Budget,Direct Payments South Team,Other Agency and Contracted Services,57401,Direct Payments,14/01/2015,3301851220,2337.4,REDACTED PERSONAL DATA
http://statistics.data.gov.uk/id/local-authority/38,Oxfordshire County Council,Learning  Disabilities Pooled Budget,Continuing Health Care,Other Agency and Contracted Services,57401,Direct Payments,14/01/2015,3301851221,1289.24,REDACTED PERSONAL DATA
http://statistics.data.gov.uk/id/local-authority/38,Oxfordshire County Council,"Older People, Phys Disabilities & Equip",PD Comm Supp Budget - Banbury,Other Agency and Contracted Services,57401,Direct Payments,14/01/2015,3301851223,1088,REDACTED PERSONAL DATA
http://statistics.data.gov.uk/id/local-authority/38,Oxfordshire County Council,Learning  Disabilities Pooled Budget,Direct Payments South Team,Other Agency and Contracted Services,57401,Direct Payments,14/01/2015,3301851224,2769.24,REDACTED PERSONAL DATA
http://statistics.data.gov.uk/id/local-authority/38,Oxfordshire County Council,"Older People, Phys Disabilities & Equip",Community Support Budget - City,Other Agency and Contracted Services,57401,Direct Payments,14/01/2015,3301851225,732,REDACTED PERSONAL DATA
http://statistics.data.gov.uk/id/local-authority/38,Oxfordshire County Council,Learning  Disabilities Pooled Budget,Direct Payments City Team,Other Agency and Contracted Services,57401,Direct Payments,14/01/2015,3301851229,624.4,REDACTED PERSONAL DATA
http://statistics.data.gov.uk/id/local-authority/38,Oxfordshire County Council,Learning  Disabilities Pooled Budget,Direct Payments South Team,Other Agency and Contracted Services,57401,Direct Payments,14/01/2015,3301851231,1721.76,REDACTED PERSONAL DATA
http://statistics.data.gov.uk/id/local-authority/38,Oxfordshire County Council,Learning  Disabilities Pooled Budget,Direct Payments City Team,Other Agency and Contracted Services,57401,Direct Payments,14/01/2015,3301851232,1740,REDACTED PERSONAL DATA
http://statistics.data.gov.uk/id/local-authority/38,Oxfordshire County Council,Learning  Disabilities Pooled Budget,Direct Payments City Team,Other Agency and Contracted Services,57401,Direct Payments,14/01/2015,3301851233,1357.76,REDACTED PERSONAL DATA
http://statistics.data.gov.uk/id/local-authority/38,Oxfordshire County Council,Learning  Disabilities Pooled Budget,Direct Payments City Team,Other Agency and Contracted Services,57401,Direct Payments,14/01/2015,3301851234,6144,REDACTED PERSONAL DATA
http://statistics.data.gov.uk/id/local-authority/38,Oxfordshire County Council,Learning  Disabilities Pooled Budget,Direct Payments City Team,Other Agency and Contracted Services,57401,Direct Payments,14/01/2015,3301851235,788,REDACTED PERSONAL DATA
http://statistics.data.gov.uk/id/local-authority/38,Oxfordshire County Council,"Older People, Phys Disabilities & Equip",Community Support Budget - City,Other Agency and Contracted Services,57401,Direct Payments,14/01/2015,3301851238,2068,REDACTED PERSONAL DATA
http://statistics.data.gov.uk/id/local-authority/38,Oxfordshire County Council,Learning  Disabilities Pooled Budget,Direct Payments South Team,Other Agency and Contracted Services,57401,Direct Payments,14/01/2015,3301851239,1309.4,REDACTED PERSONAL DATA
http://statistics.data.gov.uk/id/local-authority/38,Oxfordshire County Council,"Older People, Phys Disabilities & Equip",PD Comm Supp Purchasg Budget - Abingdon,Other Agency and Contracted Services,57401,Direct Payments,14/01/2015,3301851240,3352,REDACTED PERSONAL DATA
http://statistics.data.gov.uk/id/local-authority/38,Oxfordshire County Council,Learning  Disabilities Pooled Budget,Direct Payments City Team,Other Agency and Contracted Services,57401,Direct Payments,14/01/2015,3301851241,1808,REDACTED PERSONAL DATA
http://statistics.data.gov.uk/id/local-authority/38,Oxfordshire County Council,Learning  Disabilities Pooled Budget,Direct Payments City Team,Other Agency and Contracted Services,57401,Direct Payments,14/01/2015,3301851242,1132.76,REDACTED PERSONAL DATA
http://statistics.data.gov.uk/id/local-authority/38,Oxfordshire County Council,"Older People, Phys Disabilities & Equip",Community Support Budget - Thame,Other Agency and Contracted Services,57401,Direct Payments,14/01/2015,3301851243,512,REDACTED PERSONAL DATA
http://statistics.data.gov.uk/id/local-authority/38,Oxfordshire County Council,"Older People, Phys Disabilities & Equip",PD Comm Supp Purchasg Budget - Didcot,Other Agency and Contracted Services,57401,Direct Payments,14/01/2015,3301851244,1152,REDACTED PERSONAL DATA
http://statistics.data.gov.uk/id/local-authority/38,Oxfordshire County Council,Learning  Disabilities Pooled Budget,Direct Payments South Team,Other Agency and Contracted Services,57401,Direct Payments,14/01/2015,3301851247,1092.92,REDACTED PERSONAL DATA
http://statistics.data.gov.uk/id/local-authority/38,Oxfordshire County Council,"Older People, Phys Disabilities & Equip",PD Comm Supp Purchasg Budget - Witney,Other Agency and Contracted Services,57401,Direct Payments,14/01/2015,3301851249,1552,REDACTED PERSONAL DATA
http://statistics.data.gov.uk/id/local-authority/38,Oxfordshire County Council,Learning  Disabilities Pooled Budget,Continuing Health Care,Other Agency and Contracted Services,57401,Direct Payments,14/01/2015,3301851250,10217.16,REDACTED PERSONAL DATA
http://statistics.data.gov.uk/id/local-authority/38,Oxfordshire County Council,Learning  Disabilities Pooled Budget,Direct Payments City Team,Other Agency and Contracted Services,57401,Direct Payments,14/01/2015,3301851251,500,REDACTED PERSONAL DATA
http://statistics.data.gov.uk/id/local-authority/38,Oxfordshire County Council,Learning  Disabilities Pooled Budget,Direct Payments City Team,Other Agency and Contracted Services,57401,Direct Payments,14/01/2015,3301851252,1521.32,REDACTED PERSONAL DATA
http://statistics.data.gov.uk/id/local-authority/38,Oxfordshire County Council,Learning  Disabilities Pooled Budget,Direct Payments North Team,Other Agency and Contracted Services,57401,Direct Payments,14/01/2015,3301851253,958.24,REDACTED PERSONAL DATA
http://statistics.data.gov.uk/id/local-authority/38,Oxfordshire County Council,"Older People, Phys Disabilities & Equip",Community Support Budget - Didcot,Other Agency and Contracted Services,57401,Direct Payments,14/01/2015,3301851254,1300,REDACTED PERSONAL DATA
http://statistics.data.gov.uk/id/local-authority/38,Oxfordshire County Council,"Older People, Phys Disabilities & Equip",PHB OP Package,Other Agency and Contracted Services,57401,Direct Payments,14/01/2015,3301851255,3548.48,REDACTED PERSONAL DATA
http://statistics.data.gov.uk/id/local-authority/38,Oxfordshire County Council,"Older People, Phys Disabilities & Equip",Community Support Budget - Thame,Other Agency and Contracted Services,57401,Direct Payments,14/01/2015,3301851256,1268,REDACTED PERSONAL DATA
http://statistics.data.gov.uk/id/local-authority/38,Oxfordshire County Council,"Older People, Phys Disabilities & Equip",Community Support Budget - Didcot,Other Agency and Contracted Services,57401,Direct Payments,14/01/2015,3301851257,1800,REDACTED PERSONAL DATA
http://statistics.data.gov.uk/id/local-authority/38,Oxfordshire County Council,"Older People, Phys Disabilities & Equip",Community Support Budget - Henley,Other Agency and Contracted Services,57401,Direct Payments,14/01/2015,3301851258,1160,REDACTED PERSONAL DATA
http://statistics.data.gov.uk/id/local-authority/38,Oxfordshire County Council,"Older People, Phys Disabilities & Equip",PD Comm Supp Purchasg Budget - Didcot,Other Agency and Contracted Services,57401,Direct Payments,14/01/2015,3301851259,504,REDACTED PERSONAL DATA
http://statistics.data.gov.uk/id/local-authority/38,Oxfordshire County Council,"Older People, Phys Disabilities & Equip",Community Support Budget - Kidlington,Other Agency and Contracted Services,57401,Direct Payments,14/01/2015,3301851260,1402.8,REDACTED PERSONAL DATA
http://statistics.data.gov.uk/id/local-authority/38,Oxfordshire County Council,"Older People, Phys Disabilities & Equip",PD Comm Supp Purchasg Budget - Witney,Other Agency and Contracted Services,57401,Direct Payments,14/01/2015,3301851261,1524,REDACTED PERSONAL DATA
http://statistics.data.gov.uk/id/local-authority/38,Oxfordshire County Council,Learning  Disabilities Pooled Budget,Direct Payments North Team,Other Agency and Contracted Services,57401,Direct Payments,14/01/2015,3301851262,3957,REDACTED PERSONAL DATA
http://statistics.data.gov.uk/id/local-authority/38,Oxfordshire County Council,Learning  Disabilities Pooled Budget,Direct Payments North Team,Other Agency and Contracted Services,57401,Direct Payments,14/01/2015,3301851263,3525,REDACTED PERSONAL DATA
http://statistics.data.gov.uk/id/local-authority/38,Oxfordshire County Council,"Older People, Phys Disabilities & Equip",PD Comm Supp Purchasg Budget - Wantage,Other Agency and Contracted Services,57401,Direct Payments,14/01/2015,3301851264,1334,REDACTED PERSONAL DATA
http://statistics.data.gov.uk/id/local-authority/38,Oxfordshire County Council,"Older People, Phys Disabilities & Equip",PD CS Purch Budget - Health S28a JC,Other Agency and Contracted Services,57401,Direct Payments,14/01/2015,3301851264,1008,REDACTED PERSONAL DATA
http://statistics.data.gov.uk/id/local-authority/38,Oxfordshire County Council,"Older People, Phys Disabilities & Equip",PD Community Support Budget - Faringdon,Other Agency and Contracted Services,57401,Direct Payments,14/01/2015,3301851265,1413.2,REDACTED PERSONAL DATA
http://statistics.data.gov.uk/id/local-authority/38,Oxfordshire County Council,"Older People, Phys Disabilities & Equip",PD Comm Supp Purchasg Budget - Wantage,Other Agency and Contracted Services,57401,Direct Payments,14/01/2015,3301851266,1205.28,REDACTED PERSONAL DATA
http://statistics.data.gov.uk/id/local-authority/38,Oxfordshire County Council,"Older People, Phys Disabilities & Equip",PD Community Support Budget - Faringdon,Other Agency and Contracted Services,57401,Direct Payments,14/01/2015,3301851268,808,REDACTED PERSONAL DATA
http://statistics.data.gov.uk/id/local-authority/38,Oxfordshire County Council,"Older People, Phys Disabilities & Equip",Community Support Budget - Abingdon,Other Agency and Contracted Services,57401,Direct Payments,14/01/2015,3301851269,1656,REDACTED PERSONAL DATA
http://statistics.data.gov.uk/id/local-authority/38,Oxfordshire County Council,"Older People, Phys Disabilities & Equip",PD Comm Supp Purchasg Budget - City,Other Agency and Contracted Services,57401,Direct Payments,14/01/2015,3301851271,3788.8,REDACTED PERSONAL DATA
http://statistics.data.gov.uk/id/local-authority/38,Oxfordshire County Council,Learning  Disabilities Pooled Budget,Direct Payments South Team,Other Agency and Contracted Services,57401,Direct Payments,14/01/2015,3301851273,6690.24,REDACTED PERSONAL DATA
http://statistics.data.gov.uk/id/local-authority/38,Oxfordshire County Council,Learning  Disabilities Pooled Budget,Direct Payments City Team,Other Agency and Contracted Services,57401,Direct Payments,14/01/2015,3301851275,3880,REDACTED PERSONAL DATA
http://statistics.data.gov.uk/id/local-authority/38,Oxfordshire County Council,Learning  Disabilities Pooled Budget,Direct Payments City Team,Other Agency and Contracted Services,57401,Direct Payments,14/01/2015,3301851276,2360.48,REDACTED PERSONAL DATA
http://statistics.data.gov.uk/id/local-authority/38,Oxfordshire County Council,"Older People, Phys Disabilities & Equip",PD Comm Supp Purchasg Budget - City,Other Agency and Contracted Services,57401,Direct Payments,14/01/2015,3301851277,2034.72,REDACTED PERSONAL DATA
http://statistics.data.gov.uk/id/local-authority/38,Oxfordshire County Council,"Older People, Phys Disabilities & Equip",PD Comm Supp Purchasg Budget - City,Other Agency and Contracted Services,57401,Direct Payments,14/01/2015,3301851278,976.36,REDACTED PERSONAL DATA
http://statistics.data.gov.uk/id/local-authority/38,Oxfordshire County Council,"Older People, Phys Disabilities & Equip",PD Comm Supp Purchasg Budget - City,Other Agency and Contracted Services,57401,Direct Payments,14/01/2015,3301851279,1320,REDACTED PERSONAL DATA
http://statistics.data.gov.uk/id/local-authority/38,Oxfordshire County Council,Learning  Disabilities Pooled Budget,Direct Payments City Team,Other Agency and Contracted Services,57401,Direct Payments,14/01/2015,3301851280,1059.16,REDACTED PERSONAL DATA
http://statistics.data.gov.uk/id/local-authority/38,Oxfordshire County Council,"Older People, Phys Disabilities & Equip",PD Comm Supp Purchasg Budget - Abingdon,Other Agency and Contracted Services,57401,Direct Payments,14/01/2015,3301851281,1803.16,REDACTED PERSONAL DATA
http://statistics.data.gov.uk/id/local-authority/38,Oxfordshire County Council,"Older People, Phys Disabilities & Equip",PD CS Purch Budget - Health S28a JC,Other Agency and Contracted Services,57401,Direct Payments,14/01/2015,3301851281,1803.16,REDACTED PERSONAL DATA
http://statistics.data.gov.uk/id/local-authority/38,Oxfordshire County Council,Learning  Disabilities Pooled Budget,Direct Payments South Team,Other Agency and Contracted Services,57401,Direct Payments,14/01/2015,3301851282,1036.16,REDACTED PERSONAL DATA
http://statistics.data.gov.uk/id/local-authority/38,Oxfordshire County Council,Learning  Disabilities Pooled Budget,Direct Payments North Team,Other Agency and Contracted Services,57401,Direct Payments,14/01/2015,3301851283,3057.6,REDACTED PERSONAL DATA
http://statistics.data.gov.uk/id/local-authority/38,Oxfordshire County Council,Learning  Disabilities Pooled Budget,Direct Payments North Team,Other Agency and Contracted Services,57401,Direct Payments,14/01/2015,3301851284,937.32,REDACTED PERSONAL DATA
http://statistics.data.gov.uk/id/local-authority/38,Oxfordshire County Council,Learning  Disabilities Pooled Budget,Direct Payments South Team,Other Agency and Contracted Services,57401,Direct Payments,14/01/2015,3301851286,1735.84,REDACTED PERSONAL DATA
http://statistics.data.gov.uk/id/local-authority/38,Oxfordshire County Council,Learning  Disabilities Pooled Budget,Direct Payments South Team,Other Agency and Contracted Services,57401,Direct Payments,14/01/2015,3301851287,1787.12,REDACTED PERSONAL DATA
http://statistics.data.gov.uk/id/local-authority/38,Oxfordshire County Council,"Older People, Phys Disabilities & Equip",PD Comm Supp Purchasg Budget - Thame,Other Agency and Contracted Services,57401,Direct Payments,14/01/2015,3301851288,1812.52,REDACTED PERSONAL DATA
http://statistics.data.gov.uk/id/local-authority/38,Oxfordshire County Council,"Older People, Phys Disabilities & Equip",Community Support Budget - Henley,Other Agency and Contracted Services,57401,Direct Payments,14/01/2015,3301851289,1232,REDACTED PERSONAL DATA
http://statistics.data.gov.uk/id/local-authority/38,Oxfordshire County Council,Learning  Disabilities Pooled Budget,Direct Payments South Team,Other Agency and Contracted Services,57401,Direct Payments,14/01/2015,3301851290,1008,REDACTED PERSONAL DATA
http://statistics.data.gov.uk/id/local-authority/38,Oxfordshire County Council,"Older People, Phys Disabilities & Equip",PD Comm Supp Purchasg Budget - Thame,Other Agency and Contracted Services,57401,Direct Payments,14/01/2015,3301851291,1236,REDACTED PERSONAL DATA
http://statistics.data.gov.uk/id/local-authority/38,Oxfordshire County Council,Learning  Disabilities Pooled Budget,Direct Payments South Team,Other Agency and Contracted Services,57401,Direct Payments,14/01/2015,3301851292,4801.68,REDACTED PERSONAL DATA
http://statistics.data.gov.uk/id/local-authority/38,Oxfordshire County Council,Learning  Disabilities Pooled Budget,Direct Payments South Team,Other Agency and Contracted Services,57401,Direct Payments,14/01/2015,3301851293,1886.76,REDACTED PERSONAL DATA
http://statistics.data.gov.uk/id/local-authority/38,Oxfordshire County Council,Learning  Disabilities Pooled Budget,Direct Payments City Team,Other Agency and Contracted Services,57401,Direct Payments,14/01/2015,3301851294,3167.92,REDACTED PERSONAL DATA
http://statistics.data.gov.uk/id/local-authority/38,Oxfordshire County Council,"Older People, Phys Disabilities & Equip",Community Support Budget - Bicester,Other Agency and Contracted Services,57401,Direct Payments,14/01/2015,3301851295,880,REDACTED PERSONAL DATA
http://statistics.data.gov.uk/id/local-authority/38,Oxfordshire County Council,Learning  Disabilities Pooled Budget,Direct Payments North Team,Other Agency and Contracted Services,57401,Direct Payments,14/01/2015,3301851296,600,REDACTED PERSONAL DATA
http://statistics.data.gov.uk/id/local-authority/38,Oxfordshire County Council,Learning  Disabilities Pooled Budget,Direct Payments North Team,Other Agency and Contracted Services,57401,Direct Payments,14/01/2015,3301851297,4493.16,REDACTED PERSONAL DATA
http://statistics.data.gov.uk/id/local-authority/38,Oxfordshire County Council,"Older People, Phys Disabilities & Equip",PD Comm Supp Budgt - Bicester/Kidlington,Other Agency and Contracted Services,57401,Direct Payments,14/01/2015,3301851298,1217.8,REDACTED PERSONAL DATA
http://statistics.data.gov.uk/id/local-authority/38,Oxfordshire County Council,Learning  Disabilities Pooled Budget,Direct Payments North Team,Other Agency and Contracted Services,57401,Direct Payments,14/01/2015,3301851299,2000,REDACTED PERSONAL DATA
http://statistics.data.gov.uk/id/local-authority/38,Oxfordshire County Council,Learning  Disabilities Pooled Budget,Direct Payments North Team,Other Agency and Contracted Services,57401,Direct Payments,14/01/2015,3301851300,840.68,REDACTED PERSONAL DATA
http://statistics.data.gov.uk/id/local-authority/38,Oxfordshire County Council,"Older People, Phys Disabilities & Equip",PD Comm Supp Budget - Banbury,Other Agency and Contracted Services,57401,Direct Payments,14/01/2015,3301851301,3457.84,REDACTED PERSONAL DATA
http://statistics.data.gov.uk/id/local-authority/38,Oxfordshire County Council,"Older People, Phys Disabilities & Equip",PD Comm Supp Budget - Banbury,Other Agency and Contracted Services,57401,Direct Payments,14/01/2015,3301851302,1716.2,REDACTED PERSONAL DATA
http://statistics.data.gov.uk/id/local-authority/38,Oxfordshire County Council,"Older People, Phys Disabilities & Equip",Community Support Budget - Banbury,Other Agency and Contracted Services,57401,Direct Payments,14/01/2015,3301851303,2480,REDACTED PERSONAL DATA
http://statistics.data.gov.uk/id/local-authority/38,Oxfordshire County Council,"Older People, Phys Disabilities & Equip",Community Support Budget - Banbury,Other Agency and Contracted Services,57401,Direct Payments,14/01/2015,3301851303,2227.74,REDACTED PERSONAL DATA
http://statistics.data.gov.uk/id/local-authority/38,Oxfordshire County Council,Learning  Disabilities Pooled Budget,Direct Payments North Team,Other Agency and Contracted Services,57401,Direct Payments,14/01/2015,3301851305,12203.64,REDACTED PERSONAL DATA
http://statistics.data.gov.uk/id/local-authority/38,Oxfordshire County Council,Learning  Disabilities Pooled Budget,Direct Payments North Team,Other Agency and Contracted Services,57401,Direct Payments,14/01/2015,3301851306,1056,REDACTED PERSONAL DATA
http://statistics.data.gov.uk/id/local-authority/38,Oxfordshire County Council,Learning  Disabilities Pooled Budget,Direct Payments City Team,Other Agency and Contracted Services,57401,Direct Payments,14/01/2015,3301851307,3041.84,REDACTED PERSONAL DATA
http://statistics.data.gov.uk/id/local-authority/38,Oxfordshire County Council,"Older People, Phys Disabilities & Equip",PD Comm Supp Purchasg Budget - Thame,Other Agency and Contracted Services,57401,Direct Payments,14/01/2015,3301851308,756,REDACTED PERSONAL DATA
http://statistics.data.gov.uk/id/local-authority/38,Oxfordshire County Council,"Older People, Phys Disabilities & Equip",Community Support Budget - Abingdon,Other Agency and Contracted Services,57401,Direct Payments,14/01/2015,3301851309,2380,REDACTED PERSONAL DATA
http://statistics.data.gov.uk/id/local-authority/38,Oxfordshire County Council,"Older People, Phys Disabilities & Equip",Community Support Budget - Banbury,Other Agency and Contracted Services,57401,Direct Payments,14/01/2015,3301851311,1312,REDACTED PERSONAL DATA
http://statistics.data.gov.uk/id/local-authority/38,Oxfordshire County Council,Learning  Disabilities Pooled Budget,Direct Payments South Team,Other Agency and Contracted Services,57401,Direct Payments,14/01/2015,3301851312,858.16,REDACTED PERSONAL DATA
http://statistics.data.gov.uk/id/local-authority/38,Oxfordshire County Council,"Older People, Phys Disabilities & Equip",Community Support Budget - City,Other Agency and Contracted Services,57401,Direct Payments,14/01/2015,3301851314,2284,REDACTED PERSONAL DATA
http://statistics.data.gov.uk/id/local-authority/38,Oxfordshire County Council,"Older People, Phys Disabilities & Equip",PD Comm Supp Purchasg Budget - City,Other Agency and Contracted Services,57401,Direct Payments,14/01/2015,3301851315,812,Citibank NA London
http://statistics.data.gov.uk/id/local-authority/38,Oxfordshire County Council,Learning  Disabilities Pooled Budget,Direct Payments South Team,Other Agency and Contracted Services,57401,Direct Payments,14/01/2015,3301851316,1082.16,Citibank NA London
http://statistics.data.gov.uk/id/local-authority/38,Oxfordshire County Council,"Older People, Phys Disabilities & Equip",Community Support Budget - Banbury,Other Agency and Contracted Services,57401,Direct Payments,14/01/2015,3301851318,780,Citibank NA London
http://statistics.data.gov.uk/id/local-authority/38,Oxfordshire County Council,Learning  Disabilities Pooled Budget,Direct Payments South Team,Other Agency and Contracted Services,57401,Direct Payments,14/01/2015,3301851322,5777.2,Citibank NA London
http://statistics.data.gov.uk/id/local-authority/38,Oxfordshire County Council,Learning  Disabilities Pooled Budget,OCCG Carers,Other Agency and Contracted Services,57401,Direct Payments,14/01/2015,3301851439,600,REDACTED PERSONAL DATA
http://statistics.data.gov.uk/id/local-authority/38,Oxfordshire County Council,"Older People, Phys Disabilities & Equip",Carers Break / Respite Project,Other Agency and Contracted Services,57401,Direct Payments,14/01/2015,3301851440,600,REDACTED PERSONAL DATA
http://statistics.data.gov.uk/id/local-authority/38,Oxfordshire County Council,"Older People, Phys Disabilities & Equip",Carers Break / Respite Project,Other Agency and Contracted Services,57401,Direct Payments,14/01/2015,3301851441,600,REDACTED PERSONAL DATA
http://statistics.data.gov.uk/id/local-authority/38,Oxfordshire County Council,"Older People, Phys Disabilities & Equip",Carers Break / Respite Project,Other Agency and Contracted Services,57401,Direct Payments,14/01/2015,3301851442,600,REDACTED PERSONAL DATA
http://statistics.data.gov.uk/id/local-authority/38,Oxfordshire County Council,"Older People, Phys Disabilities & Equip",Carers Break / Respite Project,Other Agency and Contracted Services,57401,Direct Payments,14/01/2015,3301851443,600,REDACTED PERSONAL DATA
http://statistics.data.gov.uk/id/local-authority/38,Oxfordshire County Council,"Older People, Phys Disabilities & Equip",Life Of Your Own Grant Vale,Other Agency and Contracted Services,57401,Direct Payments,14/01/2015,3301851446,600,REDACTED PERSONAL DATA
http://statistics.data.gov.uk/id/local-authority/38,Oxfordshire County Council,"Older People, Phys Disabilities & Equip",Life Of Your Own Grant West,Other Agency and Contracted Services,57401,Direct Payments,14/01/2015,3301851447,600,REDACTED PERSONAL DATA
http://statistics.data.gov.uk/id/local-authority/38,Oxfordshire County Council,"Older People, Phys Disabilities & Equip",Carers Break / Respite Project,Other Agency and Contracted Services,57401,Direct Payments,14/01/2015,3301851448,600,REDACTED PERSONAL DATA
http://statistics.data.gov.uk/id/local-authority/38,Oxfordshire County Council,"Older People, Phys Disabilities & Equip",Carers Break / Respite Project,Other Agency and Contracted Services,57401,Direct Payments,14/01/2015,3301851449,600,REDACTED PERSONAL DATA
http://statistics.data.gov.uk/id/local-authority/38,Oxfordshire County Council,"Older People, Phys Disabilities & Equip",Carers Break / Respite Project,Other Agency and Contracted Services,57401,Direct Payments,14/01/2015,3301851450,600,REDACTED PERSONAL DATA
http://statistics.data.gov.uk/id/local-authority/38,Oxfordshire County Council,"Older People, Phys Disabilities & Equip",Carers Break / Respite Project,Other Agency and Contracted Services,57401,Direct Payments,14/01/2015,3301851451,600,REDACTED PERSONAL DATA
http://statistics.data.gov.uk/id/local-authority/38,Oxfordshire County Council,"Older People, Phys Disabilities & Equip",Life Of Your Own Grant Cherwell,Other Agency and Contracted Services,57401,Direct Payments,14/01/2015,3301851452,600,REDACTED PERSONAL DATA
http://statistics.data.gov.uk/id/local-authority/38,Oxfordshire County Council,"Older People, Phys Disabilities & Equip",Carers Break / Respite Project,Other Agency and Contracted Services,57401,Direct Payments,14/01/2015,3301851453,600,REDACTED PERSONAL DATA
http://statistics.data.gov.uk/id/local-authority/38,Oxfordshire County Council,"Older People, Phys Disabilities & Equip",Carers Break / Respite Project,Other Agency and Contracted Services,57401,Direct Payments,14/01/2015,3301851454,600,REDACTED PERSONAL DATA
http://statistics.data.gov.uk/id/local-authority/38,Oxfordshire County Council,"Older People, Phys Disabilities & Equip",Carers Break / Respite Project,Other Agency and Contracted Services,57401,Direct Payments,14/01/2015,3301851455,600,REDACTED PERSONAL DATA
http://statistics.data.gov.uk/id/local-authority/38,Oxfordshire County Council,"Older People, Phys Disabilities & Equip",Life Of Your Own Grant Vale,Other Agency and Contracted Services,57401,Direct Payments,14/01/2015,3301851456,600,REDACTED PERSONAL DATA
http://statistics.data.gov.uk/id/local-authority/38,Oxfordshire County Council,Strategy & Infrastructure Planning,Oxfordshire Total Retrofit,Grants and Subscriptions,47100,Grants to Voluntary,14/01/2015,3301851637,15126.75,Low Carbon Hub - For Grant Payments
http://statistics.data.gov.uk/id/local-authority/38,Oxfordshire County Council,Oxfordshire Customer Services,MIS Payroll Workflow,Balance Sheet General,B7100,Local Government Pension Scheme,15/01/2015,3301851812,3313009.72,Oxfordshire County Council
http://statistics.data.gov.uk/id/local-authority/38,Oxfordshire County Council,Oxfordshire Customer Services,MIS Payroll Workflow,Balance Sheet General,B7200,Income Tax - PAYE,20/01/2015,3301851813,2634109.05,Inland Revenue
http://statistics.data.gov.uk/id/local-authority/38,Oxfordshire County Council,Oxfordshire Customer Services,MIS Payroll Workflow,Balance Sheet General,B7203,Student Loan Repayments,20/01/2015,3301851813,117883,Inland Revenue
http://statistics.data.gov.uk/id/local-authority/38,Oxfordshire County Council,Oxfordshire Customer Services,MIS Payroll Workflow,Balance Sheet General,B7201,National Insurance,20/01/2015,3301851814,3043287.58,INLAND REVENUE
http://statistics.data.gov.uk/id/local-authority/38,Oxfordshire County Council,Oxfordshire Customer Services,MIS Payroll Workflow,Balance Sheet General,B7202,Statutory Maternity Pay,20/01/2015,3301851814,-117904.52,INLAND REVENUE
http://statistics.data.gov.uk/id/local-authority/38,Oxfordshire County Council,Learning  Disabilities Pooled Budget,OCCG Carers,Other Agency and Contracted Services,57401,Direct Payments,15/01/2015,3301852071,600,REDACTED PERSONAL DATA
http://statistics.data.gov.uk/id/local-authority/38,Oxfordshire County Council,Learning  Disabilities Pooled Budget,OCCG Carers,Other Agency and Contracted Services,57401,Direct Payments,15/01/2015,3301852072,600,REDACTED PERSONAL DATA
http://statistics.data.gov.uk/id/local-authority/38,Oxfordshire County Council,Adult Social Care,MH Community Sup't,Other Agency and Contracted Services,57300,Home Support (Ext) OS&HCD,15/01/2015,3301852074,710,REDACTED PERSONAL DATA
